TRANS.No,Service Area Categorisation,Service Division Categorisation,Responsible Unit,Unit Code,Expenses Type,Expenses Sub Type,Expense Code,Narrative,Amount,Invoice Date,CAPITAL/REVENUE,SupplierName
1,Adult Social Care,OP 65&Over Resi Care Placement,OP Hosp - Residential Care Ext,W2LF55,Third Party Payments          ,Private Contractors           ,EH01,Miscellaneous Agency Services           ,523.6,28/03/2014,REV,ABBEYFIELD PEABODY S.LOND.LTD 
2,Adult Social Care,OP 65&Over Resi Care Placement,OP Hosp - Residential Care Ext,W2LF55,Third Party Payments          ,Private Contractors           ,EH01,Miscellaneous Agency Services           ,523.6,28/03/2014,REV,ABBEYFIELD PEABODY S.LOND.LTD 
3,Adult Social Care,OP 65&Over Resi Care Placement,OP Hosp - Residential Care Ext,W2LF55,Third Party Payments          ,Private Contractors           ,EH01,Miscellaneous Agency Services           ,523.6,28/03/2014,REV,ABBEYFIELD PEABODY S.LOND.LTD 
4,Adult Social Care,OP 65&Over Resi Care Placement,OP Hosp - Residential Care Ext,W2LF55,Third Party Payments          ,Private Contractors           ,EH01,Miscellaneous Agency Services           ,523.6,28/03/2014,REV,ABBEYFIELD PEABODY S.LOND.LTD 
5,Adult Social Care,MH u65 Residentl Care Placemnt,MH ResidentialCare Ext-Morden,W2HB55,Third Party Payments          ,Private Contractors           ,EH01,Miscellaneous Agency Services           ,600,28/03/2014,REV,ABBEY HOUSE RESIDENTIAL HOMES 
6,Adult Social Care,MH u65 Residentl Care Placemnt,MH ResidentialCare Ext-Morden,W2HB55,Third Party Payments          ,Private Contractors           ,EH01,Miscellaneous Agency Services           ,600,28/03/2014,REV,ABBEY HOUSE RESIDENTIAL HOMES 
7,Adult Social Care,MH u65 Residentl Care Placemnt,MH ResidentialCare Ext-Morden,W2HB55,Third Party Payments          ,Private Contractors           ,EH01,Miscellaneous Agency Services           ,500,28/03/2014,REV,ABBEY HOUSE RESIDENTIAL HOMES 
8,Adult Social Care,MH u65 Residentl Care Placemnt,MH ResidentialCare Ext-Morden,W2HB55,Third Party Payments          ,Private Contractors           ,EH01,Miscellaneous Agency Services           ,500,28/03/2014,REV,ABBEY HOUSE RESIDENTIAL HOMES 
9,Adult Social Care,MH u65 Residentl Care Placemnt,MH ResidentialCare Ext-Morden,W2HB55,Third Party Payments          ,Private Contractors           ,EH01,Miscellaneous Agency Services           ,500,28/03/2014,REV,ABBEY HOUSE RESIDENTIAL HOMES 
10,Adult Social Care,MH u65 Residentl Care Placemnt,MH ResidentialCare Ext-Morden,W2HB55,Third Party Payments          ,Private Contractors           ,EH01,Miscellaneous Agency Services           ,600,28/03/2014,REV,ABBEY HOUSE RESIDENTIAL HOMES 
11,Adult Social Care,MH u65 Residentl Care Placemnt,MH ResidentialCare Ext-Morden,W2HB55,Third Party Payments          ,Private Contractors           ,EH01,Miscellaneous Agency Services           ,600,28/03/2014,REV,ABBEY HOUSE RESIDENTIAL HOMES 
12,Adult Social Care,MH u65 Residentl Care Placemnt,MH ResidentialCare Ext-Morden,W2HB55,Third Party Payments          ,Private Contractors           ,EH01,Miscellaneous Agency Services           ,500,28/03/2014,REV,ABBEY HOUSE RESIDENTIAL HOMES 
13,Adult Social Care,MH u65 Residentl Care Placemnt,MH ResidentialCare Ext - Wim,W2HC55,Third Party Payments          ,Private Contractors           ,EH01,Miscellaneous Agency Services           ,500.05,28/03/2014,REV,ABBEY HOUSE RESIDENTIAL HOMES 
14,Adult Social Care,MH u65 Residentl Care Placemnt,MH ResidentialCare Ext - Wim,W2HC55,Third Party Payments          ,Private Contractors           ,EH01,Miscellaneous Agency Services           ,500.05,28/03/2014,REV,ABBEY HOUSE RESIDENTIAL HOMES 
15,Adult Social Care,MH u65 Residentl Care Placemnt,MH ResidentialCare Ext - Wim,W2HC55,Third Party Payments          ,Private Contractors           ,EH01,Miscellaneous Agency Services           ,500.05,28/03/2014,REV,ABBEY HOUSE RESIDENTIAL HOMES 
16,Adult Social Care,MH u65 Residentl Care Placemnt,MH ResidentialCare Ext - Wim,W2HC55,Third Party Payments          ,Private Contractors           ,EH01,Miscellaneous Agency Services           ,500.05,28/03/2014,REV,ABBEY HOUSE RESIDENTIAL HOMES 
17,Adult Social Care,OP 65&Over Resi Care Placement,OP Hosp - Residential Care Ext,W2LF55,Third Party Payments          ,Private Contractors           ,EH01,Miscellaneous Agency Services           ,550,28/03/2014,REV,ABBEY HOUSE RESIDENTIAL HOMES 
18,Adult Social Care,OP 65&Over Resi Care Placement,OP Hosp - Residential Care Ext,W2LF55,Third Party Payments          ,Private Contractors           ,EH01,Miscellaneous Agency Services           ,550,28/03/2014,REV,ABBEY HOUSE RESIDENTIAL HOMES 
19,Adult Social Care,OP 65&Over Resi Care Placement,OP Hosp - Residential Care Ext,W2LF55,Third Party Payments          ,Private Contractors           ,EH01,Miscellaneous Agency Services           ,550,28/03/2014,REV,ABBEY HOUSE RESIDENTIAL HOMES 
20,Adult Social Care,OP 65&Over Resi Care Placement,OP Hosp - Residential Care Ext,W2LF55,Third Party Payments          ,Private Contractors           ,EH01,Miscellaneous Agency Services           ,550,28/03/2014,REV,ABBEY HOUSE RESIDENTIAL HOMES 
21,Adult Social Care,OP 65&Over Resi Care Placement,OP Hosp - Residential Care Ext,W2LF55,Third Party Payments          ,Private Contractors           ,EH01,Miscellaneous Agency Services           ,550,28/03/2014,REV,ABBEY HOUSE RESIDENTIAL HOMES 
22,Adult Social Care,OP 65&Over Resi Care Placement,OP Hosp - Residential Care Ext,W2LF55,Third Party Payments          ,Private Contractors           ,EH01,Miscellaneous Agency Services           ,550,28/03/2014,REV,ABBEY HOUSE RESIDENTIAL HOMES 
23,Adult Social Care,OP 65&Over Resi Care Placement,OP Hosp - Residential Care Ext,W2LF55,Third Party Payments          ,Private Contractors           ,EH01,Miscellaneous Agency Services           ,550,28/03/2014,REV,ABBEY HOUSE RESIDENTIAL HOMES 
24,Adult Social Care,OP 65&Over Resi Care Placement,OP Hosp - Residential Care Ext,W2LF55,Third Party Payments          ,Private Contractors           ,EH01,Miscellaneous Agency Services           ,550,28/03/2014,REV,ABBEY HOUSE RESIDENTIAL HOMES 
25,Adult Social Care,Other - Other Adult Services,Fixed & Variable Client Paymen,W6AA65,Third Party Payments          ,Private Contractors           ,EH01,Miscellaneous Agency Services           ,"25,969.46",01/04/2014,REV,ABILITY HOUSING ASSOCIATION   
26,Adult Social Care,Other - Other Adult Services,Fixed & Variable Client Paymen,W6AA65,Third Party Payments          ,Private Contractors           ,EH01,Miscellaneous Agency Services           ,"1,406.00",01/04/2014,REV,ABILITY HOUSING ASSOCIATION   
27,Adult Social Care,Other - Other Adult Services,Fixed & Variable Client Paymen,W6AA65,Third Party Payments          ,Private Contractors           ,EH01,Miscellaneous Agency Services           ,"10,267.23",01/04/2014,REV,ABILITY HOUSING ASSOCIATION   
28,Adult Social Care,LD u65 Home Care,LD Home Care External,W2KB49,Third Party Payments          ,Private Contractors           ,EH01,Miscellaneous Agency Services           ,689.25,02/04/2014,REV,ABLE COMMUNITY CARE LTD       
29,Adult Social Care,LD u65 Home Care,LD Home Care External,W2KB49,Third Party Payments          ,Private Contractors           ,EH01,Miscellaneous Agency Services           ,689.25,02/04/2014,REV,ABLE COMMUNITY CARE LTD       
30,Adult Social Care,LD u65 Home Care,LD Home Care External,W2KB49,Third Party Payments          ,Private Contractors           ,EH01,Miscellaneous Agency Services           ,700,02/04/2014,REV,ABLE COMMUNITY CARE LTD       
31,Adult Social Care,LD u65 Home Care,LD Home Care External,W2KB49,Third Party Payments          ,Private Contractors           ,EH01,Miscellaneous Agency Services           ,528,15/04/2014,REV,ABLE COMMUNITY CARE LTD       
32,Adult Social Care,LD u65 Home Care,LD Home Care External,W2KB49,Third Party Payments          ,Private Contractors           ,EH01,Miscellaneous Agency Services           ,689.25,15/04/2014,REV,ABLE COMMUNITY CARE LTD       
33,Adult Social Care,LD u65 Home Care,LD Home Care External,W2KB49,Third Party Payments          ,Private Contractors           ,EH01,Miscellaneous Agency Services           ,521.25,15/04/2014,REV,ABLE COMMUNITY CARE LTD       
34,Adult Social Care,LD u65 Home Care,LD Home Care External,W2KB49,Third Party Payments          ,Private Contractors           ,EH01,Miscellaneous Agency Services           ,700,02/04/2014,REV,ABLE COMMUNITY CARE LTD       
35,Adult Social Care,LD u65 Home Care,LD Home Care External,W2KB49,Third Party Payments          ,Private Contractors           ,EH01,Miscellaneous Agency Services           ,700,15/04/2014,REV,ABLE COMMUNITY CARE LTD       
36,Adult Social Care,PS u65 Home Care,PD WEST TEAM-Homecare,W2JK49,Third Party Payments          ,Private Contractors           ,EH01,Miscellaneous Agency Services           ,504,20/04/2014,REV,ACCESS CARE LTD               
37,Adult Social Care,PS u65 Home Care,PD WEST TEAM-Homecare,W2JK49,Third Party Payments          ,Private Contractors           ,EH01,Miscellaneous Agency Services           ,749,20/04/2014,REV,ACCESS CARE LTD               
38,Adult Social Care,PS u65 Home Care,PD WEST TEAM-Homecare,W2JK49,Third Party Payments          ,Private Contractors           ,EH01,Miscellaneous Agency Services           ,749,20/04/2014,REV,ACCESS CARE LTD               
39,Adult Social Care,PS u65 Home Care,PD WEST TEAM-Homecare,W2JK49,Third Party Payments          ,Private Contractors           ,EH01,Miscellaneous Agency Services           ,749,20/04/2014,REV,ACCESS CARE LTD               
40,Childrens & Education Services,Nursery schools,EARLY YEARS NURSERY GRANTS,K90042,Supplies & Services           ,Grants and Subscriptions      ,DJ57,Nursery Grant Payment-4yr olds          ,"1,441.44",04/04/2014,REV,ACORN NURSERY                 
41,Childrens & Education Services,Nursery schools,2Year Old Offer                         ,K90051,Supplies & Services           ,Grants and Subscriptions      ,DJ01,Grants                                  ,"3,110.40",10/04/2014,REV,ACORN NURSERY                 
42,Childrens & Education Services,Leaving Care Services,CL Setting Up Home Allowance,W1DF41,Third Party Payments          ,Private Contractors           ,EH01,Miscellaneous Agency Services           ,700,24/04/2014,REV,REDACTED
43,Childrens & Education Services,Leaving Care Services,CL Setting Up Home Allowance,W1DF41,Third Party Payments          ,Private Contractors           ,EH01,Miscellaneous Agency Services           ,"3,447.00",24/04/2014,REV,REDACTED
44,Cultural Env Reg&Plan Services,Mgt & Support (Env),Senior Mgt. - E.S.C.,G00100,Supplies & Services           ,Services                      ,DF11,Counsel's fees                          ,"3,118.75",27/03/2014,REV,REDACTED
45,Adult Social Care,SS Management & Administration,SP Direct Payments,W3VA08,Supplies & Services           ,Prntng Stnry Gen Off Exp      ,DE03,Stationery                              ,704.95,17/04/2014,REV,ADVANCED PAYMENT SOLUTIONS LTD
46,Childrens & Education Services,CS - Commiss'ing & Social Work,SD Finance & Admin,W1BE02,Supplies & Services           ,Services                      ,DF56,Bank and Giro Charges                   ,"4,339.36",08/04/2014,REV,ADVANCED PAYMENT SOLUTIONS LTD
47,Childrens & Education Services,CS - Commiss'ing & Social Work,SD Finance & Admin,W1BE02,Supplies & Services           ,Services                      ,DF56,Bank and Giro Charges                   ,"4,607.55",23/04/2014,REV,ADVANCED PAYMENT SOLUTIONS LTD
48,Childrens & Education Services,CS - Commiss'ing & Social Work,SD Finance & Admin,W1BE02,Supplies & Services           ,Services                      ,DF56,Bank and Giro Charges                   ,"1,129.17",08/04/2014,REV,ADVANCED PAYMENT SOLUTIONS LTD
49,Childrens & Education Services,CS - Commiss'ing & Social Work,SD Finance & Admin,W1BE02,Supplies & Services           ,Services                      ,DF56,Bank and Giro Charges                   ,"2,387.21",10/04/2014,REV,ADVANCED PAYMENT SOLUTIONS LTD
50,Childrens & Education Services,CS - Commiss'ing & Social Work,SD Finance & Admin,W1BE02,Supplies & Services           ,Services                      ,DF56,Bank and Giro Charges                   ,"1,949.30",20/03/2014,REV,ADVANCED PAYMENT SOLUTIONS LTD
51,Childrens & Education Services,CS - Commiss'ing & Social Work,SD Finance & Admin,W1BE02,Supplies & Services           ,Services                      ,DF56,Bank and Giro Charges                   ,"3,486.53",09/04/2014,REV,ADVANCED PAYMENT SOLUTIONS LTD
52,Childrens & Education Services,CS - Commiss'ing & Social Work,SD Finance & Admin,W1BE02,Supplies & Services           ,Services                      ,DF56,Bank and Giro Charges                   ,"2,311.18",20/03/2014,REV,ADVANCED PAYMENT SOLUTIONS LTD
53,Childrens & Education Services,Leaving Care Services,CL Leaving Care/Supp Lodgings,W1DF58,Supplies & Services           ,Services                      ,DF56,Bank and Giro Charges                   ,750,12/03/2014,REV,ADVANCED PAYMENT SOLUTIONS LTD
54,CS -Oth Operating Inc & Expend,T/A Vehicle Maintenance etc,Transport-Contract Hire,J01374,Transport Related Expenditure ,Contract Hire and Op Leasing  ,CC64,HIRING TRANSPORT SEN CABS               ,735,01/04/2014,REV,AERIAL CAR SERVICES LTD       
55,CS -Oth Operating Inc & Expend,T/A Vehicle Maintenance etc,Transport-Contract Hire,J01374,Transport Related Expenditure ,Contract Hire and Op Leasing  ,CC64,HIRING TRANSPORT SEN CABS               ,924,01/04/2014,REV,AERIAL CAR SERVICES LTD       
56,CS -Oth Operating Inc & Expend,T/A Vehicle Maintenance etc,Transport-Contract Hire,J01374,Transport Related Expenditure ,Contract Hire and Op Leasing  ,CC67,HIRING TRANSPORT H&SS CAB ADULTS        ,840,01/04/2014,REV,AERIAL CAR SERVICES LTD       
57,Adult Social Care,OP 65 & Over Other Services,OP Voluntary Organisations,W2LA03,Supplies & Services           ,Grants and Subscriptions      ,DJ01,Grants                                  ,"48,522.00",03/04/2014,REV,AGE UK MERTON LIMITED         
58,Childrens & Education Services,Leaving Care Services,CL Setting Up Home Allowance,W1DF41,Third Party Payments          ,Private Contractors           ,EH01,Miscellaneous Agency Services           ,750,24/04/2014,REV,REDACTED
59,Public Health,,PH � Substance Misuse                   ,WPHD01,Third Party Payments          ,Private Contractors           ,EH20,Drugs Misuse                            ,"3,000.00",31/03/2014,REV,ALCOHOL CONCERN               
60,Adult Social Care,SS Management & Administration,DS Directorate SSM Costs,W3XA00,Supplies & Services           ,Services                      ,DF03,Consultants                             ,646.64,07/03/2014,REV,ALDER                         
61,Adult Social Care,SS Management & Administration,DS Directorate SSM Costs,W3XA00,Supplies & Services           ,Services                      ,DF03,Consultants                             ,"21,600.00",07/03/2014,REV,ALDER                         
62,Adult Social Care,SS Management & Administration,DS Directorate SSM Costs,W3XA00,Supplies & Services           ,Services                      ,DF03,Consultants                             ,565.67,07/03/2014,REV,ALDER                         
63,Adult Social Care,SS Management & Administration,DS Directorate SSM Costs,W3XA00,Supplies & Services           ,Services                      ,DF03,Consultants                             ,"4,800.00",07/03/2014,REV,ALDER                         
64,Housing Services,Bed / breakfast accommodation,Homelessness Prevention,N47171,Transfer Payments             ,Housing Benefits              ,FA12,Rent Deposits                           ,"2,360.00",23/04/2014,REV,ALDERMATIN BAINES & CUTHBERT  
65,Public Health,,PH � NHS Health check�                  ,WPHN01,Supplies & Services           ,Grants and Subscriptions      ,DJ04,Subscriptions                           ,831,15/04/2014,REV,ALERE LIMITED                 
66,Public Health,,PH � NHS Health check�                  ,WPHN01,Supplies & Services           ,Services                      ,DF14,Doctors and Other Fees                  ,"1,000.00",08/04/2014,REV,ALEXANDRA ROAD SURGERY        
68,Childrens & Education Services,Nursery schools,EARLY YEARS NURSERY GRANTS,K90042,Supplies & Services           ,Grants and Subscriptions      ,DJ57,Nursery Grant Payment-4yr olds          ,"5,987.52",03/04/2014,REV,REDACTED
69,Childrens & Education Services,Nursery schools,2Year Old Offer                         ,K90051,Supplies & Services           ,Grants and Subscriptions      ,DJ01,Grants                                  ,"7,568.64",04/04/2014,REV,REDACTED
70,Childrens & Education Services,Family - Other Services,CS SWD Personal support                 ,W1CF49,Third Party Payments          ,Private Contractors           ,EH01,Miscellaneous Contrct Services          ,"-2,456.75",02/04/2014,REV,AMBITION RECRUITMENT          
71,Childrens & Education Services,Family - Other Services,CS SWD Personal support                 ,W1CF49,Third Party Payments          ,Private Contractors           ,EH01,Miscellaneous Contrct Services          ,"2,456.75",19/03/2014,REV,AMBITION RECRUITMENT          
72,Childrens & Education Services,Family - Other Services,CS SWD Personal support                 ,W1CF49,Third Party Payments          ,Private Contractors           ,EH01,Miscellaneous Contrct Services          ,"4,101.06",26/03/2014,REV,AMBITION RECRUITMENT          
73,Childrens & Education Services,Family - Other Services,CS SWD Personal support                 ,W1CF49,Third Party Payments          ,Private Contractors           ,EH01,Miscellaneous Contrct Services          ,"4,101.06",02/04/2014,REV,AMBITION RECRUITMENT          
74,Central Services,SupS IT,Distributed Services,E14368,Supplies & Services           ,Comms and Computing           ,DG63,Software Licences - Data                ,996,24/04/2014,REV,AMTEC COMPUTER CORPORATION LTD
75,Childrens & Education Services,Leaving Care Services,CL Setting Up Home Allowance,W1DF41,Third Party Payments          ,Private Contractors           ,EH01,Miscellaneous Agency Services           ,578.24,08/04/2014,REV,ARGOS BUSINESS SOLUTIONS LTD  
76,Childrens & Education Services,Leaving Care Services,CL Setting Up Home Allowance,W1DF41,Third Party Payments          ,Private Contractors           ,EH01,Miscellaneous Agency Services           ,747.31,08/04/2014,REV,ARGOS BUSINESS SOLUTIONS LTD  
77,Childrens & Education Services,Nursery schools,EARLY YEARS NURSERY GRANTS,K90042,Supplies & Services           ,Grants and Subscriptions      ,DJ57,Nursery Grant Payment-4yr olds          ,"6,098.40",03/04/2014,REV,ARK AT SHERWOOD LTD           
78,Childrens & Education Services,Nursery schools,2Year Old Offer                         ,K90051,Supplies & Services           ,Grants and Subscriptions      ,DJ01,Grants                                  ,"19,440.00",07/04/2014,REV,ARK AT SHERWOOD LTD           
79,Adult Social Care,LD u65 Home Care,LD Home Care External,W2KB49,Third Party Payments          ,Private Contractors           ,EH01,Miscellaneous Agency Services           ,507,13/01/2014,REV,THE ARTEMIS TEAM LIMITED      
80,Adult Social Care,LD u65 Home Care,LD Home Care External,W2KB49,Third Party Payments          ,Private Contractors           ,EH01,Miscellaneous Agency Services           ,507,13/01/2014,REV,THE ARTEMIS TEAM LIMITED      
81,Adult Social Care,LD u65 Home Care,LD Home Care External,W2KB49,Third Party Payments          ,Private Contractors           ,EH01,Miscellaneous Agency Services           ,507,10/02/2014,REV,THE ARTEMIS TEAM LIMITED      
82,Adult Social Care,LD u65 Home Care,LD Home Care External,W2KB49,Third Party Payments          ,Private Contractors           ,EH01,Miscellaneous Agency Services           ,507,10/02/2014,REV,THE ARTEMIS TEAM LIMITED      
83,Adult Social Care,LD u65 Home Care,LD Home Care External,W2KB49,Third Party Payments          ,Private Contractors           ,EH01,Miscellaneous Agency Services           ,507,24/03/2014,REV,THE ARTEMIS TEAM LIMITED      
84,Adult Social Care,LD u65 Home Care,LD Home Care External,W2KB49,Third Party Payments          ,Private Contractors           ,EH01,Miscellaneous Agency Services           ,507,24/03/2014,REV,THE ARTEMIS TEAM LIMITED      
85,Adult Social Care,LD u65 Home Care,LD Home Care External,W2KB49,Third Party Payments          ,Private Contractors           ,EH01,Miscellaneous Agency Services           ,507,24/03/2014,REV,THE ARTEMIS TEAM LIMITED      
86,Adult Social Care,LD u65 Home Care,LD Home Care External,W2KB49,Third Party Payments          ,Private Contractors           ,EH01,Miscellaneous Agency Services           ,507,13/01/2014,REV,THE ARTEMIS TEAM LIMITED      
87,Adult Social Care,LD u65 Home Care,LD Home Care External,W2KB49,Third Party Payments          ,Private Contractors           ,EH01,Miscellaneous Agency Services           ,507,13/01/2014,REV,THE ARTEMIS TEAM LIMITED      
88,Adult Social Care,LD u65 Home Care,LD Home Care External,W2KB49,Third Party Payments          ,Private Contractors           ,EH01,Miscellaneous Agency Services           ,507,13/01/2014,REV,THE ARTEMIS TEAM LIMITED      
89,Adult Social Care,LD u65 Home Care,LD Home Care External,W2KB49,Third Party Payments          ,Private Contractors           ,EH01,Miscellaneous Agency Services           ,507,10/02/2014,REV,THE ARTEMIS TEAM LIMITED      
90,Adult Social Care,LD u65 Home Care,LD Home Care External,W2KB49,Third Party Payments          ,Private Contractors           ,EH01,Miscellaneous Agency Services           ,507,10/02/2014,REV,THE ARTEMIS TEAM LIMITED      
91,Adult Social Care,LD u65 Home Care,LD Home Care External,W2KB49,Third Party Payments          ,Private Contractors           ,EH01,Miscellaneous Agency Services           ,507,24/03/2014,REV,THE ARTEMIS TEAM LIMITED      
92,Adult Social Care,OP 65&Over Resi Care Placement,OP Hosp - Residential Care Ext,W2LF55,Third Party Payments          ,Private Contractors           ,EH01,Miscellaneous Agency Services           ,550,30/04/2014,REV,CRAEGMOOR ARTHUR HOUSE PRIORY 
93,Adult Social Care,OP 65&Over Resi Care Placement,OP Hosp - Residential Care Ext,W2LF55,Third Party Payments          ,Private Contractors           ,EH01,Miscellaneous Agency Services           ,550,30/04/2014,REV,CRAEGMOOR ARTHUR HOUSE PRIORY 
94,Adult Social Care,OP 65&Over Resi Care Placement,OP Hosp - Residential Care Ext,W2LF55,Third Party Payments          ,Private Contractors           ,EH01,Miscellaneous Agency Services           ,550,30/04/2014,REV,CRAEGMOOR ARTHUR HOUSE PRIORY 
95,Adult Social Care,OP 65&Over Resi Care Placement,OP Hosp - Residential Care Ext,W2LF55,Third Party Payments          ,Private Contractors           ,EH01,Miscellaneous Agency Services           ,550,30/04/2014,REV,CRAEGMOOR ARTHUR HOUSE PRIORY 
96,Adult Social Care,OP 65 & Over Direct Payments,OP R/Park-Direct PaymentScheme,W2LR36,Third Party Payments          ,Private Contractors           ,EH73,Direct Payments                         ,525.95,11/04/2014,REV,REDACTED
97,Adult Social Care,OP 65 & Over Direct Payments,OP R/Park-Direct PaymentScheme,W2LR36,Third Party Payments          ,Private Contractors           ,EH73,Direct Payments                         ,525.95,11/04/2014,REV,REDACTED
98,Adult Social Care,OP 65 & Over Direct Payments,OP R/Park-Direct PaymentScheme,W2LR36,Third Party Payments          ,Private Contractors           ,EH73,Direct Payments                         ,525.95,11/04/2014,REV,REDACTED
99,Adult Social Care,OP 65 & Over Direct Payments,OP R/Park-Direct PaymentScheme,W2LR36,Third Party Payments          ,Private Contractors           ,EH73,Direct Payments                         ,525.95,11/04/2014,REV,REDACTED
100,Housing Services,Bed / breakfast accommodation,Homelessness Prevention,N47171,Transfer Payments             ,Housing Benefits              ,FA12,Rent Deposits                           ,"4,000.00",03/04/2014,REV,REDACTED
101,Adult Social Care,OP 65 & Over Other Services,MA Mascot Wardens Alarms,W2LN00,Supplies & Services           ,Services                      ,DF08,Affiliation Fees                        ,"1,110.00",03/03/2014,REV,TELECARE SERVICES ASSOCIATION 
102,,,Disabled Facilities Grant DCLG          ,CE004RA,Other Capital Expenditure,,E1,Grants                                  ,"2,420.00",02/04/2014,CAP,ASCENDIT LIFTS LTD            
103,Childrens & Education Services,Fostering Services,ART Independent Agency Foster,W1DE46,Supplies & Services           ,Services                      ,DF53,Task Based Fostering                    ,"1,125.00",06/03/2014,REV,ASCENT FOSTERING AGENCY LTD   
104,Childrens & Education Services,Fostering Services,ART Independent Agency Foster,W1DE46,Supplies & Services           ,Services                      ,DF53,Task Based Fostering                    ,-964.28,06/03/2014,REV,ASCENT FOSTERING AGENCY LTD   
105,Childrens & Education Services,Fostering Services,ART Independent Agency Foster,W1DE46,Supplies & Services           ,Services                      ,DF53,Task Based Fostering                    ,"1,125.00",06/03/2014,REV,ASCENT FOSTERING AGENCY LTD   
106,Childrens & Education Services,Fostering Services,ART Independent Agency Foster,W1DE46,Supplies & Services           ,Services                      ,DF53,Task Based Fostering                    ,"1,125.00",06/03/2014,REV,ASCENT FOSTERING AGENCY LTD   
107,Childrens & Education Services,Fostering Services,ART Independent Agency Foster,W1DE46,Supplies & Services           ,Services                      ,DF53,Task Based Fostering                    ,"1,125.00",06/03/2014,REV,ASCENT FOSTERING AGENCY LTD   
108,Adult Social Care,LD u65 Residentl Care Placemnt,LD Residential Care External,W2KB55,Third Party Payments          ,Private Contractors           ,EH01,Miscellaneous Agency Services           ,"1,074.97",01/04/2014,REV,ASHCROFT CARE SERVICES        
109,Adult Social Care,LD u65 Residentl Care Placemnt,LD Residential Care External,W2KB55,Third Party Payments          ,Private Contractors           ,EH01,Miscellaneous Agency Services           ,"1,074.97",01/04/2014,REV,ASHCROFT CARE SERVICES        
110,Adult Social Care,LD u65 Residentl Care Placemnt,LD Residential Care External,W2KB55,Third Party Payments          ,Private Contractors           ,EH01,Miscellaneous Agency Services           ,"1,343.73",01/04/2014,REV,ASHCROFT CARE SERVICES        
111,Adult Social Care,LD u65 Residentl Care Placemnt,LD Residential Care External,W2KB55,Third Party Payments          ,Private Contractors           ,EH01,Miscellaneous Agency Services           ,"1,343.73",01/04/2014,REV,ASHCROFT CARE SERVICES        
112,Adult Social Care,LD u65 Residentl Care Placemnt,LD Residential Care External,W2KB55,Third Party Payments          ,Private Contractors           ,EH01,Miscellaneous Agency Services           ,"1,074.97",01/04/2014,REV,ASHCROFT CARE SERVICES        
113,Adult Social Care,LD u65 Residentl Care Placemnt,LD Residential Care External,W2KB55,Third Party Payments          ,Private Contractors           ,EH01,Miscellaneous Agency Services           ,"1,343.73",01/04/2014,REV,ASHCROFT CARE SERVICES        
114,Adult Social Care,LD u65 Residentl Care Placemnt,LD Residential Care External,W2KB55,Third Party Payments          ,Private Contractors           ,EH01,Miscellaneous Agency Services           ,"1,074.97",01/04/2014,REV,ASHCROFT CARE SERVICES        
115,Adult Social Care,LD u65 Residentl Care Placemnt,LD Residential Care External,W2KB55,Third Party Payments          ,Private Contractors           ,EH01,Miscellaneous Agency Services           ,"1,343.73",01/04/2014,REV,ASHCROFT CARE SERVICES        
116,Central Services,SupS IT,Systems & Projects,E14366,Supplies & Services           ,Comms and Computing           ,DG50,Other IT Expenditure                    ,"7,285.00",14/03/2014,REV,ASH INFORMATION SYSTEMS LTD   
117,Central Services,SupS IT,Systems & Projects,E14366,Supplies & Services           ,Comms and Computing           ,DG50,Other IT Expenditure                    ,"2,723.00",14/03/2014,REV,ASH INFORMATION SYSTEMS LTD   
118,Adult Social Care,LD u65 Residentl Care Placemnt,LD Residential Care External,W2KB55,Third Party Payments          ,Private Contractors           ,EH01,Miscellaneous Agency Services           ,"1,248.13",28/03/2014,REV,ASHBROOK HOUSE                
119,Adult Social Care,LD u65 Residentl Care Placemnt,LD Residential Care External,W2KB55,Third Party Payments          ,Private Contractors           ,EH01,Miscellaneous Agency Services           ,"1,248.13",28/03/2014,REV,ASHBROOK HOUSE                
120,Adult Social Care,LD u65 Residentl Care Placemnt,LD Residential Care External,W2KB55,Third Party Payments          ,Private Contractors           ,EH01,Miscellaneous Agency Services           ,"1,248.13",28/03/2014,REV,ASHBROOK HOUSE                
121,Adult Social Care,LD u65 Residentl Care Placemnt,LD Residential Care External,W2KB55,Third Party Payments          ,Private Contractors           ,EH01,Miscellaneous Agency Services           ,"1,248.13",28/03/2014,REV,ASHBROOK HOUSE                
122,Adult Social Care,OP 65&Over NursingCarePlacemts,OP R/Park - Nursing Care,W2LR53,Third Party Payments          ,Private Contractors           ,EH01,Miscellaneous Agency Services           ,651.27,09/04/2014,REV,ASHCOMBE HOUSE NURSING HOME   
123,Adult Social Care,OP 65&Over NursingCarePlacemts,OP R/Park - Nursing Care,W2LR53,Third Party Payments          ,Private Contractors           ,EH01,Miscellaneous Agency Services           ,651.27,09/04/2014,REV,ASHCOMBE HOUSE NURSING HOME   
124,Adult Social Care,OP 65&Over NursingCarePlacemts,OP R/Park - Nursing Care,W2LR53,Third Party Payments          ,Private Contractors           ,EH01,Miscellaneous Agency Services           ,651.27,09/04/2014,REV,ASHCOMBE HOUSE NURSING HOME   
125,Adult Social Care,OP 65&Over NursingCarePlacemts,OP R/Park - Nursing Care,W2LR53,Third Party Payments          ,Private Contractors           ,EH01,Miscellaneous Agency Services           ,651.27,09/04/2014,REV,ASHCOMBE HOUSE NURSING HOME   
126,Adult Social Care,OP 65&Over NursingCarePlacemts,OP R/Park - Nursing Care,W2LR53,Third Party Payments          ,Private Contractors           ,EH01,Miscellaneous Agency Services           ,651.27,09/04/2014,REV,ASHCOMBE HOUSE NURSING HOME   
127,Adult Social Care,OP 65&Over NursingCarePlacemts,OP R/Park - Nursing Care,W2LR53,Third Party Payments          ,Private Contractors           ,EH01,Miscellaneous Agency Services           ,651.27,09/04/2014,REV,ASHCOMBE HOUSE NURSING HOME   
128,Adult Social Care,LD u65 Residentl Care Placemnt,LD Residential Care External,W2KB55,Third Party Payments          ,Private Contractors           ,EH01,Miscellaneous Agency Services           ,"1,016.47",28/03/2014,REV,ASHINGTON HOUSE               
129,Adult Social Care,LD u65 Residentl Care Placemnt,LD Residential Care External,W2KB55,Third Party Payments          ,Private Contractors           ,EH01,Miscellaneous Agency Services           ,"1,016.47",28/03/2014,REV,ASHINGTON HOUSE               
130,Adult Social Care,LD u65 Residentl Care Placemnt,LD Residential Care External,W2KB55,Third Party Payments          ,Private Contractors           ,EH01,Miscellaneous Agency Services           ,"1,016.47",28/03/2014,REV,ASHINGTON HOUSE               
131,Adult Social Care,LD u65 Residentl Care Placemnt,LD Residential Care External,W2KB55,Third Party Payments          ,Private Contractors           ,EH01,Miscellaneous Agency Services           ,"1,016.47",28/03/2014,REV,ASHINGTON HOUSE               
132,Adult Social Care,LD u65 Residentl Care Placemnt,LD Residential Care External,W2KB55,Third Party Payments          ,Private Contractors           ,EH01,Miscellaneous Agency Services           ,"1,154.79",26/04/2014,REV,ASHTEAD HOUSE LIMITED         
133,Adult Social Care,LD u65 Residentl Care Placemnt,LD Residential Care External,W2KB55,Third Party Payments          ,Private Contractors           ,EH01,Miscellaneous Agency Services           ,"1,154.79",28/03/2014,REV,ASHTEAD HOUSE LIMITED         
134,Adult Social Care,LD u65 Residentl Care Placemnt,LD Residential Care External,W2KB55,Third Party Payments          ,Private Contractors           ,EH01,Miscellaneous Agency Services           ,"1,154.79",28/03/2014,REV,ASHTEAD HOUSE LIMITED         
135,Adult Social Care,LD u65 Residentl Care Placemnt,LD Residential Care External,W2KB55,Third Party Payments          ,Private Contractors           ,EH01,Miscellaneous Agency Services           ,"1,154.79",28/03/2014,REV,ASHTEAD HOUSE LIMITED         
136,Adult Social Care,LD u65 Residentl Care Placemnt,LD Residential Care External,W2KB55,Third Party Payments          ,Private Contractors           ,EH01,Miscellaneous Agency Services           ,"1,154.79",28/03/2014,REV,ASHTEAD HOUSE LIMITED         
137,Adult Social Care,LD u65 Residentl Care Placemnt,LD Residential Care External,W2KB55,Third Party Payments          ,Private Contractors           ,EH01,Miscellaneous Agency Services           ,"1,154.79",26/04/2014,REV,ASHTEAD HOUSE LIMITED         
138,Adult Social Care,LD u65 Residentl Care Placemnt,LD Residential Care External,W2KB55,Third Party Payments          ,Private Contractors           ,EH01,Miscellaneous Agency Services           ,"1,154.79",26/04/2014,REV,ASHTEAD HOUSE LIMITED         
139,Adult Social Care,LD u65 Residentl Care Placemnt,LD Residential Care External,W2KB55,Third Party Payments          ,Private Contractors           ,EH01,Miscellaneous Agency Services           ,"1,154.79",26/04/2014,REV,ASHTEAD HOUSE LIMITED         
140,Adult Social Care,OP 65&Over NursingCarePlacemts,OP Hosp - Nursing Care,W2LF53,Third Party Payments          ,Private Contractors           ,EH01,Miscellaneous Agency Services           ,610.9,03/04/2014,REV,ASHTON LODGE CARE HOME        
141,Adult Social Care,OP 65&Over NursingCarePlacemts,OP Hosp - Nursing Care,W2LF53,Third Party Payments          ,Private Contractors           ,EH01,Miscellaneous Agency Services           ,610.9,03/04/2014,REV,ASHTON LODGE CARE HOME        
142,Adult Social Care,OP 65&Over NursingCarePlacemts,OP Hosp - Nursing Care,W2LF53,Third Party Payments          ,Private Contractors           ,EH01,Miscellaneous Agency Services           ,610.9,03/04/2014,REV,ASHTON LODGE CARE HOME        
143,Adult Social Care,OP 65&Over NursingCarePlacemts,OP Hosp - Nursing Care,W2LF53,Third Party Payments          ,Private Contractors           ,EH01,Miscellaneous Agency Services           ,610.9,03/04/2014,REV,ASHTON LODGE CARE HOME        
144,Central Services,SupS IT,Systems & Projects,E14366,Employees                     ,Direct Employee Expenses      ,AA17,Agency Staff & Casual Paymts            ,990,28/03/2014,REV,REDACTED
145,Central Services,SupS IT,Systems & Projects,E14366,Employees                     ,Direct Employee Expenses      ,AA17,Agency Staff & Casual Paymts            ,"1,375.00",11/04/2014,REV,REDACTED
146,Adult Social Care,OP 65 & Over Other Services,Asian Elderley Merton Grant             ,W2LA09,Supplies & Services           ,Grants and Subscriptions      ,DJ01,Grants                                  ,"34,980.00",03/04/2014,REV,ASIAN ELDERLY GROUP OF MERTON 
147,Adult Social Care,Other - Other Adult Services,Fixed & Variable Client Paymen,W6AA65,Third Party Payments          ,Private Contractors           ,EH01,Miscellaneous Agency Services           ,"1,522.50",01/04/2014,REV,ASIAN ELDERLY GROUP OF MERTON 
148,Adult Social Care,OP 65 & Over Direct Payments,OP West -Direct Payment Scheme,W2LG36,Third Party Payments          ,Private Contractors           ,EH73,Direct Payments                         ,507.95,11/04/2014,REV,REDACTED
149,Adult Social Care,OP 65 & Over Direct Payments,OP West -Direct Payment Scheme,W2LG36,Third Party Payments          ,Private Contractors           ,EH73,Direct Payments                         ,507.95,11/04/2014,REV,REDACTED
150,Adult Social Care,OP 65 & Over Direct Payments,OP West -Direct Payment Scheme,W2LG36,Third Party Payments          ,Private Contractors           ,EH73,Direct Payments                         ,507.95,11/04/2014,REV,REDACTED
151,Adult Social Care,OP 65 & Over Direct Payments,OP West -Direct Payment Scheme,W2LG36,Third Party Payments          ,Private Contractors           ,EH73,Direct Payments                         ,507.95,11/04/2014,REV,REDACTED
152,Adult Social Care,MH u65 Residentl Care Placemnt,MH ResidentialCare Ext - Wim,W2HC55,Third Party Payments          ,Private Contractors           ,EH01,Miscellaneous Agency Services           ,689.09,21/04/2014,REV,SANCTUARY CARE LTD            
153,Adult Social Care,MH u65 Residentl Care Placemnt,MH ResidentialCare Ext - Wim,W2HC55,Third Party Payments          ,Private Contractors           ,EH01,Miscellaneous Agency Services           ,689.09,21/04/2014,REV,SANCTUARY CARE LTD            
154,Adult Social Care,MH u65 Residentl Care Placemnt,MH ResidentialCare Ext - Wim,W2HC55,Third Party Payments          ,Private Contractors           ,EH01,Miscellaneous Agency Services           ,689.09,21/04/2014,REV,SANCTUARY CARE LTD            
155,Adult Social Care,MH u65 Residentl Care Placemnt,MH ResidentialCare Ext - Wim,W2HC55,Third Party Payments          ,Private Contractors           ,EH01,Miscellaneous Agency Services           ,689.09,21/04/2014,REV,SANCTUARY CARE LTD            
156,Adult Social Care,OP 65&OverAssessment&Care Mgt,OP Ass&Care Mgt,W2LA01,Supplies & Services           ,Services                      ,DF88,Assessor Fees                           ,713,11/04/2014,REV,G4S ASSESSMENT SERVICES UK LTD
157,Housing Services,Bed / breakfast accommodation,TEMPORARY ACCOMMODATION,N47160,Third Party Payments          ,Private Contractors           ,EH01,Miscellaneous Agency Services           ,560,28/03/2014,REV,ASSETGROVE LETTINGS LTD       
158,CS -Oth Operating Inc & Expend,T/A Vehicle Maintenance etc,Transport-Contract Hire,J01374,Transport Related Expenditure ,Contract Hire and Op Leasing  ,CC64,HIRING TRANSPORT SEN CABS               ,"1,368.00",31/03/2014,REV,A STAR TRANSPORT LIMITED      
159,CS -Oth Operating Inc & Expend,T/A Vehicle Maintenance etc,Transport-Contract Hire,J01374,Transport Related Expenditure ,Contract Hire and Op Leasing  ,CC64,HIRING TRANSPORT SEN CABS               ,"1,558.00",31/03/2014,REV,A STAR TRANSPORT LIMITED      
160,CS -Oth Operating Inc & Expend,T/A Vehicle Maintenance etc,Transport-Contract Hire,J01374,Transport Related Expenditure ,Contract Hire and Op Leasing  ,CC67,HIRING TRANSPORT H&SS CAB ADULTS        ,792,31/03/2014,REV,A STAR TRANSPORT LIMITED      
161,CS -Oth Operating Inc & Expend,T/A Vehicle Maintenance etc,Transport-Contract Hire,J01374,Transport Related Expenditure ,Contract Hire and Op Leasing  ,CC67,HIRING TRANSPORT H&SS CAB ADULTS        ,"1,024.00",31/03/2014,REV,A STAR TRANSPORT LIMITED      
162,CS -Oth Operating Inc & Expend,T/A Vehicle Maintenance etc,Transport-Contract Hire,J01374,Transport Related Expenditure ,Contract Hire and Op Leasing  ,CC67,HIRING TRANSPORT H&SS CAB ADULTS        ,504,31/03/2014,REV,A STAR TRANSPORT LIMITED      
163,Adult Social Care,MH u65 Residentl Care Placemnt,MH Res Care Ext- Mitcham West,W2HD55,Third Party Payments          ,Private Contractors           ,EH01,Miscellaneous Agency Services           ,518.68,15/04/2014,REV,ASTRA HOMES                   
164,Adult Social Care,MH u65 Residentl Care Placemnt,MH Res Care Ext- Mitcham West,W2HD55,Third Party Payments          ,Private Contractors           ,EH01,Miscellaneous Agency Services           ,518.68,15/04/2014,REV,ASTRA HOMES                   
165,Adult Social Care,MH u65 Residentl Care Placemnt,MH Res Care Ext- Mitcham West,W2HD55,Third Party Payments          ,Private Contractors           ,EH01,Miscellaneous Agency Services           ,518.68,15/04/2014,REV,ASTRA HOMES                   
166,Adult Social Care,MH u65 Residentl Care Placemnt,MH Res Care Ext- Mitcham West,W2HD55,Third Party Payments          ,Private Contractors           ,EH01,Miscellaneous Agency Services           ,518.68,15/04/2014,REV,ASTRA HOMES                   
167,,,Singlegate expansion                    ,CS049AA,New Construction Conversion and Renovation,,B1,Consultants Fees D&S Structure          ,"26,400.00",28/03/2014,CAP,ATKINS LIMITED                
168,,,Singlegate expansion                    ,CS049AA,New Construction Conversion and Renovation,,B1,Consultants Fees D&S Structure          ,"47,459.24",28/03/2014,CAP,ATKINS LIMITED                
169,Cultural Env Reg&Plan Services,Parks & Open Spaces,Mitcham Parks,P05109,Premises Related Expenditure  ,Ground Maintenance Costs      ,BL03,Maintenance of Grounds                  ,720,09/04/2014,REV,ATLAS BULK CARRIERS LTD       
170,Childrens & Education Services,Statutory & Regulatory Duties,Schools IT Support,K02008,Supplies & Services           ,Comms and Computing           ,DG50,Other IT Expenditure                    ,562.5,02/04/2014,REV,ATOMWIDE LTD                  
171,Central Services,SupS Legal,Richmond Legal,E10289,Supplies & Services           ,Services                      ,DF11,Counsel's Fees                          ,675,27/02/2014,REV,REDACTED
172,Adult Social Care,OP 65&Over NursingCarePlacemts,OP West - Nursing Care,W2LG53,Third Party Payments          ,Private Contractors           ,EH01,Miscellaneous Agency Services           ,585.46,17/04/2014,REV,ST AUBYNS NURSING HOME        
173,Adult Social Care,OP 65&Over NursingCarePlacemts,OP West - Nursing Care,W2LG53,Third Party Payments          ,Private Contractors           ,EH01,Miscellaneous Agency Services           ,585.46,17/04/2014,REV,ST AUBYNS NURSING HOME        
174,Adult Social Care,OP 65&Over NursingCarePlacemts,OP West - Nursing Care,W2LG53,Third Party Payments          ,Private Contractors           ,EH01,Miscellaneous Agency Services           ,585.46,17/04/2014,REV,ST AUBYNS NURSING HOME        
175,Adult Social Care,OP 65&Over NursingCarePlacemts,OP West - Nursing Care,W2LG53,Third Party Payments          ,Private Contractors           ,EH01,Miscellaneous Agency Services           ,585.46,17/04/2014,REV,ST AUBYNS NURSING HOME        
176,Central Services,SupS IT,Operations & Telecomms,E14367,Supplies & Services           ,Comms and Computing           ,DG14,Telephones - Mobile                     ,"1,260.48",31/03/2014,REV,PROCESSFLOWS UK LTD           
177,Central Services,SupS Facilities,Facilities,E02231,Supplies & Services           ,Equip Furniture/Materials     ,DA09,Equip-Purchases                         ,"18,308.37",31/03/2014,REV,AVELEC SOLUTIONS              
178,Adult Social Care,OP 65&Over NursingCarePlacemts,OP Hosp - Nursing Care,W2LF53,Third Party Payments          ,Private Contractors           ,EH01,Miscellaneous Agency Services           ,585.46,01/04/2014,REV,THE AVENUE NURSING HOME       
179,Adult Social Care,OP 65&Over NursingCarePlacemts,OP Hosp - Nursing Care,W2LF53,Third Party Payments          ,Private Contractors           ,EH01,Miscellaneous Agency Services           ,585.46,01/04/2014,REV,THE AVENUE NURSING HOME       
180,Adult Social Care,OP 65&Over NursingCarePlacemts,OP Hosp - Nursing Care,W2LF53,Third Party Payments          ,Private Contractors           ,EH01,Miscellaneous Agency Services           ,585.46,01/04/2014,REV,THE AVENUE NURSING HOME       
181,Adult Social Care,OP 65&Over NursingCarePlacemts,OP Hosp - Nursing Care,W2LF53,Third Party Payments          ,Private Contractors           ,EH01,Miscellaneous Agency Services           ,585.46,01/04/2014,REV,THE AVENUE NURSING HOME       
182,Adult Social Care,OP 65&Over NursingCarePlacemts,OP West - Nursing Care,W2LG53,Third Party Payments          ,Private Contractors           ,EH01,Miscellaneous Agency Services           ,585.46,01/04/2014,REV,THE AVENUE NURSING HOME       
183,Adult Social Care,OP 65&Over NursingCarePlacemts,OP West - Nursing Care,W2LG53,Third Party Payments          ,Private Contractors           ,EH01,Miscellaneous Agency Services           ,585.46,01/04/2014,REV,THE AVENUE NURSING HOME       
184,Adult Social Care,OP 65&Over NursingCarePlacemts,OP West - Nursing Care,W2LG53,Third Party Payments          ,Private Contractors           ,EH01,Miscellaneous Agency Services           ,585.46,01/04/2014,REV,THE AVENUE NURSING HOME       
185,Adult Social Care,OP 65&Over NursingCarePlacemts,OP West - Nursing Care,W2LG53,Third Party Payments          ,Private Contractors           ,EH01,Miscellaneous Agency Services           ,585.46,01/04/2014,REV,THE AVENUE NURSING HOME       
187,Central Services,SupS Chief Execs,NON-STATUTORY MARKETING & COMM,A02019,Supplies & Services           ,Services                      ,DF02,Misc Advertising/Publicity              ,541,08/01/2014,REV,BAAF REGISTERED CHARITY       
188,Childrens & Education Services,Adoption Services,CL Permanency,W1DC00,Supplies & Services           ,Grants and Subscriptions      ,DJ04,Subscriptions                           ,"3,045.54",21/02/2014,REV,BAAF REGISTERED CHARITY       
189,Childrens & Education Services,Adoption Services,CL Permanency,W1DC00,Supplies & Services           ,Grants and Subscriptions      ,DJ04,Subscriptions                           ,591.6,19/03/2014,REV,BAAF REGISTERED CHARITY       
190,Central Services,SupS DOF,Director of Corporate Services,E04060,Employees                     ,Direct Employee Expenses      ,AA17,Agency Staff & Casual Paymts            ,"11,375.00",04/04/2014,REV,REDACTED
191,Childrens & Education Services,Family - Direct Payments,CS Direct Payments,W1CF36,Third Party Payments          ,Private Contractors           ,EH73,Direct Payments                         ,"2,353.60",17/04/2014,REV,REDACTED
192,Childrens & Education Services,Statutory & Regulatory Duties,Senior Mngt & Support Services,K01005,Supplies & Services           ,Services                      ,DF11,Counsel's Fees                          ,"1,015.00",19/03/2014,REV,REDACTED
193,Adult Social Care,OP 65 & Over Direct Payments,OP R/Park-Direct PaymentScheme,W2LR36,Third Party Payments          ,Private Contractors           ,EH73,Direct Payments                         ,680.28,11/04/2014,REV,REDACTED
194,Adult Social Care,OP 65 & Over Direct Payments,OP R/Park-Direct PaymentScheme,W2LR36,Third Party Payments          ,Private Contractors           ,EH73,Direct Payments                         ,680.28,11/04/2014,REV,REDACTED
195,Adult Social Care,OP 65 & Over Direct Payments,OP R/Park-Direct PaymentScheme,W2LR36,Third Party Payments          ,Private Contractors           ,EH73,Direct Payments                         ,680.28,11/04/2014,REV,REDACTED
196,Adult Social Care,OP 65 & Over Direct Payments,OP R/Park-Direct PaymentScheme,W2LR36,Third Party Payments          ,Private Contractors           ,EH73,Direct Payments                         ,680.28,11/04/2014,REV,REDACTED
197,Central Services,GENERATED ACCOUNT,Parking Cash Collect'n Contrct,E06225,Third Party Payments          ,Private Contractors           ,EH02,Miscellaneous Hired Services            ,"9,967.40",28/02/2014,REV,BANKING AUTOMATION LTD        
198,Central Services,GENERATED ACCOUNT,Parking Cash Collect'n Contrct,E06225,Third Party Payments          ,Private Contractors           ,EH02,Miscellaneous Hired Services            ,"1,015.40",28/02/2014,REV,BANKING AUTOMATION LTD        
199,Highways & Transport Services,Parking Enforcement not split,Operational Running Costs,G00331,Supplies & Services           ,Comms and Computing           ,DG61,Computer Servs Special                  ,"29,750.00",08/04/2014,REV,BARBOUR LOGIC LTD             
200,CS -Oth Operating Inc & Expend,T/A Vehicle Maintenance etc,Transport-Contract Hire,J01374,Transport Related Expenditure ,Contract Hire and Op Leasing  ,CC64,HIRING TRANSPORT SEN CABS               ,"1,113.00",31/03/2014,REV,BARCLAYS ASSET & SALES FINANCE
201,CS -Oth Operating Inc & Expend,T/A Vehicle Maintenance etc,Transport-Contract Hire,J01374,Transport Related Expenditure ,Contract Hire and Op Leasing  ,CC64,HIRING TRANSPORT SEN CABS               ,"2,028.00",31/03/2014,REV,BARCLAYS ASSET & SALES FINANCE
202,CS -Oth Operating Inc & Expend,T/A Vehicle Maintenance etc,Transport-Contract Hire,J01374,Transport Related Expenditure ,Contract Hire and Op Leasing  ,CC64,HIRING TRANSPORT SEN CABS               ,"3,192.00",31/03/2014,REV,BARCLAYS ASSET & SALES FINANCE
203,CS -Oth Operating Inc & Expend,T/A Vehicle Maintenance etc,Transport-Contract Hire,J01374,Transport Related Expenditure ,Contract Hire and Op Leasing  ,CC64,HIRING TRANSPORT SEN CABS               ,"2,100.00",31/03/2014,REV,BARCLAYS ASSET & SALES FINANCE
204,CS -Oth Operating Inc & Expend,T/A Vehicle Maintenance etc,Transport-Contract Hire,J01374,Transport Related Expenditure ,Contract Hire and Op Leasing  ,CC64,HIRING TRANSPORT SEN CABS               ,"3,990.00",31/03/2014,REV,BARCLAYS ASSET & SALES FINANCE
205,CS -Oth Operating Inc & Expend,T/A Vehicle Maintenance etc,Transport-Contract Hire,J01374,Transport Related Expenditure ,Contract Hire and Op Leasing  ,CC64,HIRING TRANSPORT SEN CABS               ,"2,940.00",31/03/2014,REV,BARCLAYS ASSET & SALES FINANCE
206,CS -Oth Operating Inc & Expend,T/A Vehicle Maintenance etc,Transport-Contract Hire,J01374,Transport Related Expenditure ,Contract Hire and Op Leasing  ,CC64,HIRING TRANSPORT SEN CABS               ,"3,150.00",31/03/2014,REV,BARCLAYS ASSET & SALES FINANCE
207,CS -Oth Operating Inc & Expend,T/A Vehicle Maintenance etc,Transport-Contract Hire,J01374,Transport Related Expenditure ,Contract Hire and Op Leasing  ,CC64,HIRING TRANSPORT SEN CABS               ,"2,870.00",31/03/2014,REV,BARCLAYS ASSET & SALES FINANCE
208,CS -Oth Operating Inc & Expend,T/A Vehicle Maintenance etc,Transport-Contract Hire,J01374,Transport Related Expenditure ,Contract Hire and Op Leasing  ,CC64,HIRING TRANSPORT SEN CABS               ,"3,444.00",31/03/2014,REV,BARCLAYS ASSET & SALES FINANCE
209,CS -Oth Operating Inc & Expend,T/A Vehicle Maintenance etc,Transport-Contract Hire,J01374,Transport Related Expenditure ,Contract Hire and Op Leasing  ,CC64,HIRING TRANSPORT SEN CABS               ,"3,570.00",31/03/2014,REV,BARCLAYS ASSET & SALES FINANCE
210,CS -Oth Operating Inc & Expend,T/A Vehicle Maintenance etc,Transport-Contract Hire,J01374,Transport Related Expenditure ,Contract Hire and Op Leasing  ,CC64,HIRING TRANSPORT SEN CABS               ,"2,436.00",31/03/2014,REV,BARCLAYS ASSET & SALES FINANCE
211,CS -Oth Operating Inc & Expend,T/A Vehicle Maintenance etc,Transport-Contract Hire,J01374,Transport Related Expenditure ,Contract Hire and Op Leasing  ,CC64,HIRING TRANSPORT SEN CABS               ,"2,665.00",31/03/2014,REV,BARCLAYS ASSET & SALES FINANCE
212,CS -Oth Operating Inc & Expend,T/A Vehicle Maintenance etc,Transport-Contract Hire,J01374,Transport Related Expenditure ,Contract Hire and Op Leasing  ,CC66,HIRING TRANSPORT H&SS CAB CHILDREN      ,"1,292.00",31/03/2014,REV,BARCLAYS ASSET & SALES FINANCE
213,CS -Oth Operating Inc & Expend,T/A Vehicle Maintenance etc,Transport-Contract Hire,J01374,Transport Related Expenditure ,Contract Hire and Op Leasing  ,CC67,HIRING TRANSPORT H&SS CAB ADULTS        ,"1,428.00",31/03/2014,REV,BARCLAYS ASSET & SALES FINANCE
214,CS -Oth Operating Inc & Expend,T/A Vehicle Maintenance etc,Transport-Contract Hire,J01374,Transport Related Expenditure ,Contract Hire and Op Leasing  ,CC67,HIRING TRANSPORT H&SS CAB ADULTS        ,"2,420.00",31/03/2014,REV,BARCLAYS ASSET & SALES FINANCE
215,CS -Oth Operating Inc & Expend,T/A Vehicle Maintenance etc,Transport-Contract Hire,J01374,Transport Related Expenditure ,Contract Hire and Op Leasing  ,CC67,HIRING TRANSPORT H&SS CAB ADULTS        ,576,31/03/2014,REV,BARCLAYS ASSET & SALES FINANCE
216,CS -Oth Operating Inc & Expend,T/A Vehicle Maintenance etc,Transport-Contract Hire,J01374,Transport Related Expenditure ,Contract Hire and Op Leasing  ,CC67,HIRING TRANSPORT H&SS CAB ADULTS        ,"2,506.00",31/03/2014,REV,BARCLAYS ASSET & SALES FINANCE
217,CS -Oth Operating Inc & Expend,T/A Vehicle Maintenance etc,Transport-Contract Hire,J01374,Transport Related Expenditure ,Contract Hire and Op Leasing  ,CC67,HIRING TRANSPORT H&SS CAB ADULTS        ,504,31/03/2014,REV,BARCLAYS ASSET & SALES FINANCE
218,CS -Oth Operating Inc & Expend,T/A Vehicle Maintenance etc,Transport-Contract Hire,J01374,Transport Related Expenditure ,Contract Hire and Op Leasing  ,CC67,HIRING TRANSPORT H&SS CAB ADULTS        ,"1,872.00",31/03/2014,REV,BARCLAYS ASSET & SALES FINANCE
219,CS -Oth Operating Inc & Expend,T/A Vehicle Maintenance etc,Transport-Contract Hire,J01374,Transport Related Expenditure ,Contract Hire and Op Leasing  ,CC67,HIRING TRANSPORT H&SS CAB ADULTS        ,672,31/03/2014,REV,BARCLAYS ASSET & SALES FINANCE
220,CS -Oth Operating Inc & Expend,T/A Vehicle Maintenance etc,Transport-Contract Hire,J01374,Transport Related Expenditure ,Contract Hire and Op Leasing  ,CC68,HIRING TRANSPORT SEN COLLEGES CABS      ,"1,253.00",31/03/2014,REV,BARCLAYS ASSET & SALES FINANCE
221,CS -Oth Operating Inc & Expend,T/A Vehicle Maintenance etc,Transport-Contract Hire,J01374,Transport Related Expenditure ,Contract Hire and Op Leasing  ,CC68,HIRING TRANSPORT SEN COLLEGES CABS      ,"1,292.00",31/03/2014,REV,BARCLAYS ASSET & SALES FINANCE
222,CS -Oth Operating Inc & Expend,T/A Vehicle Maintenance etc,Transport-Workshop,J01376,Transport Related Expenditure ,Contract Hire and Op Leasing  ,CC60,Vehicle Hire for LB Sutton              ,"5,208.00",31/03/2014,REV,BARCLAYS ASSET & SALES FINANCE
223,CS -Oth Operating Inc & Expend,T/A Vehicle Maintenance etc,Transport-Workshop,J01376,Transport Related Expenditure ,Contract Hire and Op Leasing  ,CC60,Vehicle Hire for LB Sutton              ,"2,604.00",31/03/2014,REV,BARCLAYS ASSET & SALES FINANCE
224,CS -Oth Operating Inc & Expend,T/A Vehicle Maintenance etc,Transport-Workshop,J01376,Transport Related Expenditure ,Contract Hire and Op Leasing  ,CC65,Vehicle Hire for Education              ,"2,325.00",31/03/2014,REV,BARCLAYS ASSET & SALES FINANCE
225,CS -Oth Operating Inc & Expend,T/A Vehicle Maintenance etc,Transport-Workshop,J01376,Transport Related Expenditure ,Contract Hire and Op Leasing  ,CC65,Vehicle Hire for Education              ,"1,465.24",31/03/2014,REV,BARCLAYS ASSET & SALES FINANCE
226,Childrens & Education Services,Leaving Care Services,CL Setting Up Home Allowance,W1DF41,Third Party Payments          ,Private Contractors           ,EH01,Miscellaneous Agency Services           ,750,24/04/2014,REV,REDACTED
227,Adult Social Care,LD u65 Nursing Care Placements,LD Nursing Care,W2KB53,Third Party Payments          ,Private Contractors           ,EH01,Miscellaneous Agency Services           ,924.08,31/03/2014,REV,BARONS LODGE NURSING HOME     
228,Adult Social Care,LD u65 Nursing Care Placements,LD Nursing Care,W2KB53,Third Party Payments          ,Private Contractors           ,EH01,Miscellaneous Agency Services           ,924.08,31/03/2014,REV,BARONS LODGE NURSING HOME     
229,Adult Social Care,LD u65 Nursing Care Placements,LD Nursing Care,W2KB53,Third Party Payments          ,Private Contractors           ,EH01,Miscellaneous Agency Services           ,924.08,31/03/2014,REV,BARONS LODGE NURSING HOME     
230,Adult Social Care,LD u65 Nursing Care Placements,LD Nursing Care,W2KB53,Third Party Payments          ,Private Contractors           ,EH01,Miscellaneous Agency Services           ,924.08,31/03/2014,REV,BARONS LODGE NURSING HOME     
231,Adult Social Care,LD u65 Residentl Care Placemnt,LD Residential Care External,W2KB55,Third Party Payments          ,Private Contractors           ,EH01,Miscellaneous Agency Services           ,650,31/03/2014,REV,BARONS LODGE NURSING HOME     
232,Adult Social Care,LD u65 Residentl Care Placemnt,LD Residential Care External,W2KB55,Third Party Payments          ,Private Contractors           ,EH01,Miscellaneous Agency Services           ,650,31/03/2014,REV,BARONS LODGE NURSING HOME     
233,Adult Social Care,LD u65 Residentl Care Placemnt,LD Residential Care External,W2KB55,Third Party Payments          ,Private Contractors           ,EH01,Miscellaneous Agency Services           ,650,31/03/2014,REV,BARONS LODGE NURSING HOME     
234,Adult Social Care,LD u65 Residentl Care Placemnt,LD Residential Care External,W2KB55,Third Party Payments          ,Private Contractors           ,EH01,Miscellaneous Agency Services           ,650,31/03/2014,REV,BARONS LODGE NURSING HOME     
235,Adult Social Care,OP 65&Over NursingCarePlacemts,OP East - Nursing Care,W2LH53,Third Party Payments          ,Private Contractors           ,EH01,Miscellaneous Agency Services           ,585.46,01/04/2014,REV,LONDON RESIDENTIAL H/CARE LTD 
236,Adult Social Care,OP 65&Over NursingCarePlacemts,OP East - Nursing Care,W2LH53,Third Party Payments          ,Private Contractors           ,EH01,Miscellaneous Agency Services           ,585.46,01/04/2014,REV,LONDON RESIDENTIAL H/CARE LTD 
237,Adult Social Care,OP 65&Over NursingCarePlacemts,OP East - Nursing Care,W2LH53,Third Party Payments          ,Private Contractors           ,EH01,Miscellaneous Agency Services           ,585.46,01/04/2014,REV,LONDON RESIDENTIAL H/CARE LTD 
238,Adult Social Care,OP 65&Over NursingCarePlacemts,OP East - Nursing Care,W2LH53,Third Party Payments          ,Private Contractors           ,EH01,Miscellaneous Agency Services           ,585.46,01/04/2014,REV,LONDON RESIDENTIAL H/CARE LTD 
239,Childrens & Education Services,Leaving Care Services,CL Setting Up Home Allowance,W1DF41,Third Party Payments          ,Private Contractors           ,EH01,Miscellaneous Agency Services           ,750,24/04/2014,REV,REDACTED
240,Childrens & Education Services,Statutory & Regulatory Duties,Head of Special Educatn Needs,K04017,Supplies & Services           ,Services                      ,DF03,Consultants                             ,"3,900.00",01/04/2014,REV,REDACTED
241,Cultural Env Reg&Plan Services,Library DoS not split,Media Fund,L83081,Supplies & Services           ,Grants and Subscriptions      ,DJ04,Subscriptions                           ,"5,347.50",11/04/2014,REV,BDS LTD                       
242,Childrens & Education Services,Support for SEN Pupils,Non-Delegated Statements,K90024,Third Party Payments          ,Other Local Authorities       ,EB50,OLA-Payments - Day Schools              ,"10,546.00",28/04/2014,REV,BEDELSFORD SCHOOL             
243,Adult Social Care,OP 65&Over Resi Care Placement,OP East - Residential Care Ext,W2LH55,Third Party Payments          ,Private Contractors           ,EH01,Miscellaneous Agency Services           ,542,11/04/2014,REV,THE BEECHES                   
244,Adult Social Care,OP 65&Over Resi Care Placement,OP East - Residential Care Ext,W2LH55,Third Party Payments          ,Private Contractors           ,EH01,Miscellaneous Agency Services           ,542,11/04/2014,REV,THE BEECHES                   
245,Adult Social Care,OP 65&Over Resi Care Placement,OP East - Residential Care Ext,W2LH55,Third Party Payments          ,Private Contractors           ,EH01,Miscellaneous Agency Services           ,542,11/04/2014,REV,THE BEECHES                   
246,Adult Social Care,OP 65&Over Resi Care Placement,OP East - Residential Care Ext,W2LH55,Third Party Payments          ,Private Contractors           ,EH01,Miscellaneous Agency Services           ,542,11/04/2014,REV,THE BEECHES                   
247,Childrens & Education Services,Chidren's Homes,ART Residential Placements,W1DE57,Third Party Payments          ,Private Contractors           ,EH01,Miscellaneous Agency Services           ,"3,718.90",24/03/2014,REV,REDACTED
248,Childrens & Education Services,Chidren's Homes,ART Residential Placements,W1DE57,Third Party Payments          ,Private Contractors           ,EH01,Miscellaneous Agency Services           ,"-3,187.63",24/03/2014,REV,REDACTED
249,Childrens & Education Services,Chidren's Homes,ART Residential Placements,W1DE57,Third Party Payments          ,Private Contractors           ,EH01,Miscellaneous Agency Services           ,"3,718.90",24/03/2014,REV,REDACTED
250,Childrens & Education Services,Chidren's Homes,ART Residential Placements,W1DE57,Third Party Payments          ,Private Contractors           ,EH01,Miscellaneous Agency Services           ,"3,718.90",24/03/2014,REV,REDACTED
251,Childrens & Education Services,Chidren's Homes,ART Residential Placements,W1DE57,Third Party Payments          ,Private Contractors           ,EH01,Miscellaneous Agency Services           ,"3,718.90",24/03/2014,REV,REDACTED
252,Childrens & Education Services,Chidren's Homes,ART Residential Placements,W1DE57,Third Party Payments          ,Private Contractors           ,EH01,Miscellaneous Agency Services           ,"3,718.90",24/03/2014,REV,REDACTED
253,Adult Social Care,LD u65 Home Care,LD Home Care External,W2KB49,Third Party Payments          ,Private Contractors           ,EH01,Miscellaneous Agency Services           ,656.39,30/03/2014,REV,BEECH HOME CARE SERVICES      
254,Adult Social Care,LD u65 Home Care,LD Home Care External,W2KB49,Third Party Payments          ,Private Contractors           ,EH01,Miscellaneous Agency Services           ,656.39,23/03/2014,REV,BEECH HOME CARE SERVICES      
255,Adult Social Care,OP 65&Over Resi Care Placement,OP R/Park-Residential Care Ext,W2LR55,Third Party Payments          ,Private Contractors           ,EH01,Miscellaneous Agency Services           ,500,25/04/2014,REV,BEECHWOOD HOUSE               
256,Adult Social Care,OP 65&Over Resi Care Placement,OP R/Park-Residential Care Ext,W2LR55,Third Party Payments          ,Private Contractors           ,EH01,Miscellaneous Agency Services           ,500,25/04/2014,REV,BEECHWOOD HOUSE               
257,Adult Social Care,OP 65&Over Resi Care Placement,OP R/Park-Residential Care Ext,W2LR55,Third Party Payments          ,Private Contractors           ,EH01,Miscellaneous Agency Services           ,500,25/04/2014,REV,BEECHWOOD HOUSE               
258,Adult Social Care,OP 65&Over Resi Care Placement,OP R/Park-Residential Care Ext,W2LR55,Third Party Payments          ,Private Contractors           ,EH01,Miscellaneous Agency Services           ,500,25/04/2014,REV,BEECHWOOD HOUSE               
259,Cultural Env Reg&Plan Services,Street Clean - Not highways,Street Cleansing (Inc. Gully),G00492,Supplies & Services           ,Equip Furniture/Materials     ,DA08,Tools-Purchase                          ,773.5,05/02/2014,REV,BELL BRUSH                    
260,Cultural Env Reg&Plan Services,Street Clean - Not highways,Street Cleansing (Inc. Gully),G00492,Supplies & Services           ,Equip Furniture/Materials     ,DA08,Tools-Purchase                          ,"1,687.30",16/04/2014,REV,BELL BRUSH                    
261,Childrens & Education Services,Chidren's Homes,ART Residential Placements,W1DE57,Third Party Payments          ,Private Contractors           ,EH01,Miscellaneous Agency Services           ,511.43,31/03/2014,REV,REDACTED
262,Childrens & Education Services,Chidren's Homes,ART Residential Placements,W1DE57,Third Party Payments          ,Private Contractors           ,EH01,Miscellaneous Agency Services           ,"3,580.00",31/03/2014,REV,REDACTED
263,Childrens & Education Services,Chidren's Homes,ART Residential Placements,W1DE57,Third Party Payments          ,Private Contractors           ,EH01,Miscellaneous Agency Services           ,511.43,31/03/2014,REV,REDACTED
264,Childrens & Education Services,Chidren's Homes,ART Residential Placements,W1DE57,Third Party Payments          ,Private Contractors           ,EH01,Miscellaneous Agency Services           ,"2,060.00",31/03/2014,REV,REDACTED
265,Childrens & Education Services,Chidren's Homes,ART Residential Placements,W1DE57,Third Party Payments          ,Private Contractors           ,EH01,Miscellaneous Agency Services           ,"2,500.00",31/03/2014,REV,REDACTED
266,Childrens & Education Services,Chidren's Homes,ART Residential Placements,W1DE57,Third Party Payments          ,Private Contractors           ,EH01,Miscellaneous Agency Services           ,"2,500.00",31/03/2014,REV,REDACTED
267,Childrens & Education Services,Chidren's Homes,ART Residential Placements,W1DE57,Third Party Payments          ,Private Contractors           ,EH01,Miscellaneous Agency Services           ,"2,500.00",31/03/2014,REV,REDACTED
268,Childrens & Education Services,Chidren's Homes,ART Residential Placements,W1DE57,Third Party Payments          ,Private Contractors           ,EH01,Miscellaneous Agency Services           ,"-2,982.71",31/03/2014,REV,REDACTED
269,Childrens & Education Services,Chidren's Homes,ART Residential Placements,W1DE57,Third Party Payments          ,Private Contractors           ,EH01,Miscellaneous Agency Services           ,-511.43,31/03/2014,REV,REDACTED
270,Childrens & Education Services,Chidren's Homes,ART Residential Placements,W1DE57,Third Party Payments          ,Private Contractors           ,EH01,Miscellaneous Agency Services           ,"1,080.00",31/03/2014,REV,REDACTED
271,Childrens & Education Services,Chidren's Homes,ART Residential Placements,W1DE57,Third Party Payments          ,Private Contractors           ,EH01,Miscellaneous Agency Services           ,"2,500.00",31/03/2014,REV,REDACTED
272,Childrens & Education Services,Chidren's Homes,ART Residential Placements,W1DE57,Third Party Payments          ,Private Contractors           ,EH01,Miscellaneous Agency Services           ,"3,580.00",31/03/2014,REV,REDACTED
273,Childrens & Education Services,Chidren's Homes,ART Residential Placements,W1DE57,Third Party Payments          ,Private Contractors           ,EH01,Miscellaneous Agency Services           ,"-2,060.00",31/03/2014,REV,REDACTED
274,Childrens & Education Services,Chidren's Homes,ART Residential Placements,W1DE57,Third Party Payments          ,Private Contractors           ,EH01,Miscellaneous Agency Services           ,"2,500.00",31/03/2014,REV,REDACTED
275,Childrens & Education Services,Chidren's Homes,ART Residential Placements,W1DE57,Third Party Payments          ,Private Contractors           ,EH01,Miscellaneous Agency Services           ,"2,982.71",31/03/2014,REV,REDACTED
276,Childrens & Education Services,Chidren's Homes,ART Residential Placements,W1DE57,Third Party Payments          ,Private Contractors           ,EH01,Miscellaneous Agency Services           ,"3,068.57",31/03/2014,REV,REDACTED
277,Adult Social Care,LD u65 Direct Payments,LD Direct Payment Scheme,W2KB36,Third Party Payments          ,Private Contractors           ,EH73,Direct Payments                         ,694.96,11/04/2014,REV,REDACTED
278,Adult Social Care,LD u65 Direct Payments,LD Direct Payment Scheme,W2KB36,Third Party Payments          ,Private Contractors           ,EH73,Direct Payments                         ,694.96,11/04/2014,REV,REDACTED
279,Adult Social Care,LD u65 Direct Payments,LD Direct Payment Scheme,W2KB36,Third Party Payments          ,Private Contractors           ,EH73,Direct Payments                         ,694.96,11/04/2014,REV,REDACTED
280,Adult Social Care,LD u65 Direct Payments,LD Direct Payment Scheme,W2KB36,Third Party Payments          ,Private Contractors           ,EH73,Direct Payments                         ,694.96,11/04/2014,REV,REDACTED
281,Childrens & Education Services,Nursery schools,EARLY YEARS NURSERY GRANTS,K90042,Supplies & Services           ,Grants and Subscriptions      ,DJ57,Nursery Grant Payment-4yr olds          ,"1,555.20",21/04/2014,REV,REDACTED
282,Childrens & Education Services,Nursery schools,2Year Old Offer                         ,K90051,Supplies & Services           ,Grants and Subscriptions      ,DJ01,Grants                                  ,777.6,21/04/2014,REV,REDACTED
283,Childrens & Education Services,Statutory & Regulatory Duties,Governor Support,K09081,Supplies & Services           ,Services                      ,DF03,Consultants                             ,"6,000.00",03/04/2014,REV,REDACTED
284,Childrens & Education Services,Leaving Care Services,"MASH, FR and VCT NRTPF                  ",W1CE39,Third Party Payments          ,Private Contractors           ,EH04,Accommodation Based Support             ,"2,100.00",03/04/2014,REV,THE BEULAH HOUSE HOTEL        
285,Central Services,SupS Legal,Richmond Legal,E10289,Supplies & Services           ,Services                      ,DF95,Services from Provider                  ,"14,377.00",11/03/2014,REV,REDACTED
286,Central Services,SupS Legal,Richmond Legal,E10289,Supplies & Services           ,Services                      ,DF95,Services from Provider                  ,"16,206.92",03/04/2014,REV,REDACTED
287,Central Services,SupS Legal,Richmond Legal,E10289,Supplies & Services           ,Services                      ,DF95,Services from Provider                  ,"6,463.00",17/02/2014,REV,REDACTED
288,Central Services,SupS Legal,Richmond Legal,E10289,Supplies & Services           ,Services                      ,DF95,Services from Provider                  ,"3,491.75",03/04/2014,REV,REDACTED
289,Childrens & Education Services,Support for SEN Pupils,Non-Delegated Statements,K90024,Third Party Payments          ,Other Establishments          ,EG50,Ind Day Schs Payments                   ,"17,237.40",27/03/2014,REV,BEYOND AUTISM                 
290,Adult Social Care,OP 65&Over Resi Care Placement,OP East - Residential Care Ext,W2LH55,Third Party Payments          ,Private Contractors           ,EH01,Miscellaneous Agency Services           ,524.22,01/04/2014,REV,BHAKTI SHYAMA CARE CENTRE     
291,Adult Social Care,OP 65&Over Resi Care Placement,OP East - Residential Care Ext,W2LH55,Third Party Payments          ,Private Contractors           ,EH01,Miscellaneous Agency Services           ,524.22,01/04/2014,REV,BHAKTI SHYAMA CARE CENTRE     
292,Adult Social Care,OP 65&Over Resi Care Placement,OP East - Residential Care Ext,W2LH55,Third Party Payments          ,Private Contractors           ,EH01,Miscellaneous Agency Services           ,524.22,01/04/2014,REV,BHAKTI SHYAMA CARE CENTRE     
293,Adult Social Care,OP 65&Over Resi Care Placement,OP East - Residential Care Ext,W2LH55,Third Party Payments          ,Private Contractors           ,EH01,Miscellaneous Agency Services           ,524.22,01/04/2014,REV,BHAKTI SHYAMA CARE CENTRE     
294,Childrens & Education Services,Statutory & Regulatory Duties,Senior Mngt & Support Services,K01005,Supplies & Services           ,Services                      ,DF11,Counsel's Fees                          ,520,03/03/2014,REV,REDACTED
295,Childrens & Education Services,Statutory & Regulatory Duties,Senior Mngt & Support Services,K01005,Supplies & Services           ,Services                      ,DF11,Counsel's Fees                          ,"3,670.00",07/01/2014,REV,REDACTED
296,Adult Social Care,PS u65 Direct Payments,PD WEST TEAM-Direct Payment,W2JK36,Third Party Payments          ,Private Contractors           ,EH73,Direct Payments                         ,680.28,11/04/2014,REV,REDACTED
297,Adult Social Care,PS u65 Direct Payments,PD WEST TEAM-Direct Payment,W2JK36,Third Party Payments          ,Private Contractors           ,EH73,Direct Payments                         ,680.28,11/04/2014,REV,REDACTED
298,Adult Social Care,PS u65 Direct Payments,PD WEST TEAM-Direct Payment,W2JK36,Third Party Payments          ,Private Contractors           ,EH73,Direct Payments                         ,680.28,11/04/2014,REV,REDACTED
299,Adult Social Care,PS u65 Direct Payments,PD WEST TEAM-Direct Payment,W2JK36,Third Party Payments          ,Private Contractors           ,EH73,Direct Payments                         ,680.28,11/04/2014,REV,REDACTED
300,Central Services,SupS Chief Execs,NON-STATUTORY MARKETING & COMM,A02019,Supplies & Services           ,Services                      ,DF35,Graphic Design                          ,"1,462.50",31/03/2014,REV,THE BIG IDEA 
301,Central Services,Council tax collection,Local Taxation Services,E02100,Supplies & Services           ,Comms and Computing           ,DG09,Computer Purchases - Misc               ,600,31/03/2014,REV,BLAZIE                        
302,Childrens & Education Services,Nursery schools,EARLY YEARS NURSERY GRANTS,K90042,Supplies & Services           ,Grants and Subscriptions      ,DJ57,Nursery Grant Payment-4yr olds          ,"3,953.38",04/04/2014,REV,BLOSSOM HOUSE SCHOOL          
303,Childrens & Education Services,Support for SEN Pupils,Non-Delegated Statements,K90024,Third Party Payments          ,Other Establishments          ,EG50,Ind Day Schs Payments                   ,"10,575.00",01/04/2014,REV,BLOSSOM LOWER SCHOOL LTD      
304,Childrens & Education Services,Support for SEN Pupils,Non-Delegated Statements,K90024,Third Party Payments          ,Other Establishments          ,EG50,Ind Day Schs Payments                   ,"9,720.00",01/04/2014,REV,BLOSSOM LOWER SCHOOL LTD      
305,Childrens & Education Services,Support for SEN Pupils,Non-Delegated Statements,K90024,Third Party Payments          ,Other Establishments          ,EG50,Ind Day Schs Payments                   ,"10,575.00",01/04/2014,REV,BLOSSOM LOWER SCHOOL LTD      
306,Childrens & Education Services,Support for SEN Pupils,Non-Delegated Statements,K90024,Third Party Payments          ,Other Establishments          ,EG50,Ind Day Schs Payments                   ,"10,056.00",01/04/2014,REV,BLOSSOM LOWER SCHOOL LTD      
307,Childrens & Education Services,Support for SEN Pupils,Non-Delegated Statements,K90024,Third Party Payments          ,Other Establishments          ,EG50,Ind Day Schs Payments                   ,"10,797.00",01/04/2014,REV,BLOSSOM LOWER SCHOOL LTD      
308,Childrens & Education Services,Support for SEN Pupils,Non-Delegated Statements,K90024,Third Party Payments          ,Other Establishments          ,EG50,Ind Day Schs Payments                   ,"6,779.20",01/04/2014,REV,BLOSSOM LOWER SCHOOL LTD      
309,Childrens & Education Services,Support for SEN Pupils,Non-Delegated Statements,K90024,Third Party Payments          ,Other Establishments          ,EG50,Ind Day Schs Payments                   ,"10,575.00",01/04/2014,REV,BLOSSOM LOWER SCHOOL LTD      
310,Childrens & Education Services,Support for SEN Pupils,Non-Delegated Statements,K90024,Third Party Payments          ,Other Establishments          ,EG50,Ind Day Schs Payments                   ,"10,056.00",01/04/2014,REV,BLOSSOM LOWER SCHOOL LTD      
311,Childrens & Education Services,Support for SEN Pupils,Non-Delegated Statements,K90024,Third Party Payments          ,Other Establishments          ,EG50,Ind Day Schs Payments                   ,"10,575.00",01/04/2014,REV,BLOSSOM LOWER SCHOOL LTD      
312,Childrens & Education Services,Support for SEN Pupils,Non-Delegated Statements,K90024,Third Party Payments          ,Other Establishments          ,EG50,Ind Day Schs Payments                   ,"9,720.00",01/04/2014,REV,BLOSSOM LOWER SCHOOL LTD      
313,Childrens & Education Services,Support for SEN Pupils,Non-Delegated Statements,K90024,Third Party Payments          ,Other Establishments          ,EG50,Ind Day Schs Payments                   ,"10,575.00",01/04/2014,REV,BLOSSOM LOWER SCHOOL LTD      
314,Childrens & Education Services,Support for SEN Pupils,Non-Delegated Statements,K90024,Third Party Payments          ,Other Establishments          ,EG50,Ind Day Schs Payments                   ,"10,797.00",01/04/2014,REV,BLOSSOM LOWER SCHOOL LTD      
315,Childrens & Education Services,Support for SEN Pupils,Non-Delegated Statements,K90024,Third Party Payments          ,Other Establishments          ,EG50,Ind Day Schs Payments                   ,"5,398.00",01/04/2014,REV,BLOSSOM LOWER SCHOOL LTD      
316,Childrens & Education Services,Support for SEN Pupils,Non-Delegated Statements,K90024,Third Party Payments          ,Other Establishments          ,EG50,Ind Day Schs Payments                   ,"10,056.00",01/04/2014,REV,BLOSSOM LOWER SCHOOL LTD      
317,Childrens & Education Services,Support for SEN Pupils,Non-Delegated Statements,K90024,Third Party Payments          ,Other Establishments          ,EG50,Ind Day Schs Payments                   ,"9,720.00",01/04/2014,REV,BLOSSOM LOWER SCHOOL LTD      
318,Childrens & Education Services,Support for SEN Pupils,Non-Delegated Statements,K90024,Third Party Payments          ,Other Establishments          ,EG50,Ind Day Schs Payments                   ,"10,797.00",01/04/2014,REV,BLOSSOM LOWER SCHOOL LTD      
319,Childrens & Education Services,Support for SEN Pupils,Non-Delegated Statements,K90024,Third Party Payments          ,Other Establishments          ,EG50,Ind Day Schs Payments                   ,"8,722.67",01/04/2014,REV,BLOSSOM LOWER SCHOOL LTD      
320,Childrens & Education Services,Support for SEN Pupils,Non-Delegated Statements,K90024,Third Party Payments          ,Other Establishments          ,EG50,Ind Day Schs Payments                   ,"11,963.00",01/04/2014,REV,BLOSSOM LOWER SCHOOL LTD      
321,Childrens & Education Services,Support for SEN Pupils,Non-Delegated Statements,K90024,Third Party Payments          ,Other Establishments          ,EG50,Ind Day Schs Payments                   ,"10,575.00",01/04/2014,REV,BLOSSOM LOWER SCHOOL LTD      
322,Childrens & Education Services,Support for SEN Pupils,Non-Delegated Statements,K90024,Third Party Payments          ,Other Establishments          ,EG50,Ind Day Schs Payments                   ,"11,963.00",01/04/2014,REV,BLOSSOM LOWER SCHOOL LTD      
323,Childrens & Education Services,Support for SEN Pupils,Non-Delegated Statements,K90024,Third Party Payments          ,Other Establishments          ,EG50,Ind Day Schs Payments                   ,"10,575.00",01/04/2014,REV,BLOSSOM LOWER SCHOOL LTD      
324,Childrens & Education Services,Support for SEN Pupils,Non-Delegated Statements,K90024,Third Party Payments          ,Other Establishments          ,EG50,Ind Day Schs Payments                   ,"1,077.00",01/04/2014,REV,BLOSSOM LOWER SCHOOL LTD      
325,Childrens & Education Services,Support for SEN Pupils,Non-Delegated Statements,K90024,Third Party Payments          ,Other Establishments          ,EG50,Ind Day Schs Payments                   ,"10,575.00",01/04/2014,REV,BLOSSOM LOWER SCHOOL LTD      
326,Childrens & Education Services,Support for SEN Pupils,Non-Delegated Statements,K90024,Third Party Payments          ,Other Establishments          ,EG50,Ind Day Schs Payments                   ,"11,963.00",01/04/2014,REV,BLOSSOM LOWER SCHOOL LTD      
327,Childrens & Education Services,Support for SEN Pupils,Non-Delegated Statements,K90024,Third Party Payments          ,Other Establishments          ,EG50,Ind Day Schs Payments                   ,"10,797.00",01/04/2014,REV,BLOSSOM LOWER SCHOOL LTD      
328,Childrens & Education Services,Support for SEN Pupils,Non-Delegated Statements,K90024,Third Party Payments          ,Other Establishments          ,EG50,Ind Day Schs Payments                   ,"10,575.00",01/04/2014,REV,BLOSSOM LOWER SCHOOL LTD      
329,Childrens & Education Services,Support for SEN Pupils,Non-Delegated Statements,K90024,Third Party Payments          ,Other Local Authorities       ,EB55,Placements                              ,"2,046.60",01/04/2014,REV,BOW LANE PRE-SCHOOL           
330,Childrens & Education Services,Nursery schools,EARLY YEARS NURSERY GRANTS,K90042,Supplies & Services           ,Grants and Subscriptions      ,DJ57,Nursery Grant Payment-4yr olds          ,"10,228.70",07/04/2014,REV,BOW LANE PRE-SCHOOL           
331,Adult Social Care,OP 65 & Over Direct Payments,OP R/Park-Direct PaymentScheme,W2LR36,Third Party Payments          ,Private Contractors           ,EH73,Direct Payments                         ,531.12,11/04/2014,REV,REDACTED
332,Adult Social Care,OP 65 & Over Direct Payments,OP R/Park-Direct PaymentScheme,W2LR36,Third Party Payments          ,Private Contractors           ,EH73,Direct Payments                         ,531.12,11/04/2014,REV,REDACTED
333,Adult Social Care,OP 65 & Over Direct Payments,OP R/Park-Direct PaymentScheme,W2LR36,Third Party Payments          ,Private Contractors           ,EH73,Direct Payments                         ,531.12,11/04/2014,REV,REDACTED
334,Adult Social Care,OP 65 & Over Direct Payments,OP R/Park-Direct PaymentScheme,W2LR36,Third Party Payments          ,Private Contractors           ,EH73,Direct Payments                         ,531.12,11/04/2014,REV,REDACTED
335,Adult Social Care,LD u65 Residentl Care Placemnt,LD Residential Care External,W2KB55,Third Party Payments          ,Private Contractors           ,EH01,Miscellaneous Agency Services           ,"1,420.00",24/03/2014,REV,BROADHAM CARE LTD             
336,Adult Social Care,LD u65 Residentl Care Placemnt,LD Residential Care External,W2KB55,Third Party Payments          ,Private Contractors           ,EH01,Miscellaneous Agency Services           ,"1,681.31",24/03/2014,REV,BROADHAM CARE LTD             
337,Adult Social Care,LD u65 Residentl Care Placemnt,LD Residential Care External,W2KB55,Third Party Payments          ,Private Contractors           ,EH01,Miscellaneous Agency Services           ,"1,681.31",24/03/2014,REV,BROADHAM CARE LTD             
338,Adult Social Care,LD u65 Residentl Care Placemnt,LD Residential Care External,W2KB55,Third Party Payments          ,Private Contractors           ,EH01,Miscellaneous Agency Services           ,"1,420.00",24/03/2014,REV,BROADHAM CARE LTD             
339,Adult Social Care,LD u65 Residentl Care Placemnt,LD Residential Care External,W2KB55,Third Party Payments          ,Private Contractors           ,EH01,Miscellaneous Agency Services           ,"1,681.31",24/03/2014,REV,BROADHAM CARE LTD             
340,Adult Social Care,LD u65 Residentl Care Placemnt,LD Residential Care External,W2KB55,Third Party Payments          ,Private Contractors           ,EH01,Miscellaneous Agency Services           ,"1,420.00",24/03/2014,REV,BROADHAM CARE LTD             
341,Adult Social Care,LD u65 Residentl Care Placemnt,LD Residential Care External,W2KB55,Third Party Payments          ,Private Contractors           ,EH01,Miscellaneous Agency Services           ,"1,420.00",24/03/2014,REV,BROADHAM CARE LTD             
342,Adult Social Care,LD u65 Residentl Care Placemnt,LD Residential Care External,W2KB55,Third Party Payments          ,Private Contractors           ,EH01,Miscellaneous Agency Services           ,"1,681.31",24/03/2014,REV,BROADHAM CARE LTD             
343,Adult Social Care,PS u65 Residentl Care Placemnt,PD EAST TEAM-Residential,W2JJ55,Third Party Payments          ,Private Contractors           ,EH01,Miscellaneous Agency Services           ,"1,527.90",14/04/2014,REV,BRAMBLEDOWN CARE HOME         
344,Adult Social Care,PS u65 Residentl Care Placemnt,PD EAST TEAM-Residential,W2JJ55,Third Party Payments          ,Private Contractors           ,EH01,Miscellaneous Agency Services           ,"1,527.90",14/04/2014,REV,BRAMBLEDOWN CARE HOME         
345,Adult Social Care,PS u65 Residentl Care Placemnt,PD EAST TEAM-Residential,W2JJ55,Third Party Payments          ,Private Contractors           ,EH01,Miscellaneous Agency Services           ,"1,527.90",14/04/2014,REV,BRAMBLEDOWN CARE HOME         
346,Adult Social Care,PS u65 Residentl Care Placemnt,PD EAST TEAM-Residential,W2JJ55,Third Party Payments          ,Private Contractors           ,EH01,Miscellaneous Agency Services           ,"1,527.90",14/04/2014,REV,BRAMBLEDOWN CARE HOME         
347,Adult Social Care,OP 65&Over NursingCarePlacemts,OP R/Park - Nursing Care,W2LR53,Third Party Payments          ,Private Contractors           ,EH01,Miscellaneous Agency Services           ,585.46,01/04/2014,REV,BRIDGE HOUSE CARE CENTRE      
348,Adult Social Care,OP 65&Over NursingCarePlacemts,OP R/Park - Nursing Care,W2LR53,Third Party Payments          ,Private Contractors           ,EH01,Miscellaneous Agency Services           ,585.46,01/04/2014,REV,BRIDGE HOUSE CARE CENTRE      
349,Adult Social Care,OP 65&Over NursingCarePlacemts,OP R/Park - Nursing Care,W2LR53,Third Party Payments          ,Private Contractors           ,EH01,Miscellaneous Agency Services           ,585.46,01/04/2014,REV,BRIDGE HOUSE CARE CENTRE      
350,Adult Social Care,OP 65&Over NursingCarePlacemts,OP R/Park - Nursing Care,W2LR53,Third Party Payments          ,Private Contractors           ,EH01,Miscellaneous Agency Services           ,585.46,01/04/2014,REV,BRIDGE HOUSE CARE CENTRE      
351,Adult Social Care,OP 65&Over NursingCarePlacemts,OP R/Park - Nursing Care,W2LR53,Third Party Payments          ,Private Contractors           ,EH01,Miscellaneous Agency Services           ,585.46,01/04/2014,REV,BRIDGE HOUSE CARE CENTRE      
352,Childrens & Education Services,Nursery schools,EARLY YEARS NURSERY GRANTS,K90042,Supplies & Services           ,Grants and Subscriptions      ,DJ57,Nursery Grant Payment-4yr olds          ,"11,088.00",07/04/2014,REV,BRIGHT CHOICE DAY NURSERY     
353,Childrens & Education Services,Fostering Services,ART Independent Agency Foster,W1DE46,Supplies & Services           ,Services                      ,DF53,Task Based Fostering                    ,760,04/03/2014,REV,BRIGHTER FUTURES FOSTER CARE  
354,Childrens & Education Services,Fostering Services,ART Independent Agency Foster,W1DE46,Supplies & Services           ,Services                      ,DF53,Task Based Fostering                    ,760,04/03/2014,REV,BRIGHTER FUTURES FOSTER CARE  
355,Childrens & Education Services,Fostering Services,ART Independent Agency Foster,W1DE46,Supplies & Services           ,Services                      ,DF53,Task Based Fostering                    ,760,04/03/2014,REV,BRIGHTER FUTURES FOSTER CARE  
356,Childrens & Education Services,Fostering Services,ART Independent Agency Foster,W1DE46,Supplies & Services           ,Services                      ,DF53,Task Based Fostering                    ,760,04/03/2014,REV,BRIGHTER FUTURES FOSTER CARE  
357,Childrens & Education Services,Fostering Services,ART Independent Agency Foster,W1DE46,Supplies & Services           ,Services                      ,DF53,Task Based Fostering                    ,-651.43,04/03/2014,REV,BRIGHTER FUTURES FOSTER CARE  
358,Childrens & Education Services,Fostering Services,ART Independent Agency Foster,W1DE46,Supplies & Services           ,Services                      ,DF53,Task Based Fostering                    ,760,04/03/2014,REV,BRIGHTER FUTURES FOSTER CARE  
359,Adult Social Care,LD u65 Residentl Care Placemnt,LD Residential Care External,W2KB55,Third Party Payments          ,Private Contractors           ,EH01,Miscellaneous Agency Services           ,949.51,17/04/2014,REV,BRIGSTOCK HOUSE               
360,Adult Social Care,LD u65 Residentl Care Placemnt,LD Residential Care External,W2KB55,Third Party Payments          ,Private Contractors           ,EH01,Miscellaneous Agency Services           ,949.51,17/04/2014,REV,BRIGSTOCK HOUSE               
361,Adult Social Care,LD u65 Residentl Care Placemnt,LD Residential Care External,W2KB55,Third Party Payments          ,Private Contractors           ,EH01,Miscellaneous Agency Services           ,949.51,17/04/2014,REV,BRIGSTOCK HOUSE               
362,Adult Social Care,LD u65 Residentl Care Placemnt,LD Residential Care External,W2KB55,Third Party Payments          ,Private Contractors           ,EH01,Miscellaneous Agency Services           ,949.51,17/04/2014,REV,BRIGSTOCK HOUSE               
363,Cultural Env Reg&Plan Services,Waste Disposal (not separated),Waste Disposal .,G00550,Third Party Payments          ,Private Contractors           ,EH01,Dog Bin Disposal - Biffa                ,"1,626.48",15/03/2014,REV,BRITANNIA CREST RECYCLING LTD 
364,Cultural Env Reg&Plan Services,Waste Disposal (not separated),Waste Disposal .,G00550,Third Party Payments          ,Private Contractors           ,EH01,Dog Bin Disposal - Biffa                ,"2,154.32",15/03/2014,REV,BRITANNIA CREST RECYCLING LTD 
365,Cultural Env Reg&Plan Services,Recycling (Collection),Recycling Activities,G00640,Third Party Payments          ,Private Contractors           ,EH65,PAYMENTS - SITA                         ,"1,553.44",31/03/2014,REV,BRITANNIA CREST RECYCLING LTD 
366,Central Services,Emergency Planning (Cent Serv),Emergency Planning,B06138,Premises Related Expenditure  ,RepairsAlterations&MtceOfBldgs,BA62,Emergency Call-Out                      ,"2,000.00",24/04/2014,REV,BRITISH RED CROSS SOCIETY     
368,Adult Social Care,OP 65&Over NursingCarePlacemts,OP R/Park - Nursing Care,W2LR53,Third Party Payments          ,Private Contractors           ,EH01,Miscellaneous Agency Services           ,585.46,01/04/2014,REV,BROADLANDS NURSING HOME       
369,Adult Social Care,OP 65&Over NursingCarePlacemts,OP R/Park - Nursing Care,W2LR53,Third Party Payments          ,Private Contractors           ,EH01,Miscellaneous Agency Services           ,585.46,01/04/2014,REV,BROADLANDS NURSING HOME       
370,Adult Social Care,OP 65&Over NursingCarePlacemts,OP R/Park - Nursing Care,W2LR53,Third Party Payments          ,Private Contractors           ,EH01,Miscellaneous Agency Services           ,585.46,01/04/2014,REV,BROADLANDS NURSING HOME       
371,Adult Social Care,OP 65&Over NursingCarePlacemts,OP R/Park - Nursing Care,W2LR53,Third Party Payments          ,Private Contractors           ,EH01,Miscellaneous Agency Services           ,585.46,01/04/2014,REV,BROADLANDS NURSING HOME       
372,Housing Services,Bed / breakfast accommodation,Homelessness Prevention,N47171,Transfer Payments             ,Housing Benefits              ,FA12,Rent Deposits                           ,"1,200.00",25/04/2014,REV,BROADWAY HOMELESS & SUPPORT   
373,Adult Social Care,LD u65 Residentl Care Placemnt,LD Residential Care External,W2KB55,Third Party Payments          ,Private Contractors           ,EH01,Miscellaneous Agency Services           ,"1,602.00",11/03/2014,REV,CARRICKS BROOK                
374,Adult Social Care,LD u65 Residentl Care Placemnt,LD Residential Care External,W2KB55,Third Party Payments          ,Private Contractors           ,EH01,Miscellaneous Agency Services           ,-915.42,11/03/2014,REV,CARRICKS BROOK                
375,Adult Social Care,LD u65 Residentl Care Placemnt,LD Residential Care External,W2KB55,Third Party Payments          ,Private Contractors           ,EH01,Miscellaneous Agency Services           ,"1,602.00",11/03/2014,REV,CARRICKS BROOK                
376,Adult Social Care,LD u65 Residentl Care Placemnt,LD Residential Care External,W2KB55,Third Party Payments          ,Private Contractors           ,EH01,Miscellaneous Agency Services           ,"1,602.00",11/03/2014,REV,CARRICKS BROOK                
377,Adult Social Care,LD u65 Residentl Care Placemnt,LD Residential Care External,W2KB55,Third Party Payments          ,Private Contractors           ,EH01,Miscellaneous Agency Services           ,"1,602.00",11/03/2014,REV,CARRICKS BROOK                
378,Adult Social Care,LD u65 Residentl Care Placemnt,LD Residential Care External,W2KB55,Third Party Payments          ,Private Contractors           ,EH01,Miscellaneous Agency Services           ,"1,602.00",11/03/2014,REV,CARRICKS BROOK                
379,Adult Social Care,MH u65 Residentl Care Placemnt,MH ResidentialCare Ext-Morden,W2HB55,Third Party Payments          ,Private Contractors           ,EH01,Miscellaneous Agency Services           ,524.28,01/04/2014,REV,BROOKDALE HEALTH CARE         
380,Adult Social Care,MH u65 Residentl Care Placemnt,MH ResidentialCare Ext-Morden,W2HB55,Third Party Payments          ,Private Contractors           ,EH01,Miscellaneous Agency Services           ,524.28,01/04/2014,REV,BROOKDALE HEALTH CARE         
381,Adult Social Care,MH u65 Residentl Care Placemnt,MH ResidentialCare Ext-Morden,W2HB55,Third Party Payments          ,Private Contractors           ,EH01,Miscellaneous Agency Services           ,524.28,01/04/2014,REV,BROOKDALE HEALTH CARE         
382,Adult Social Care,MH u65 Residentl Care Placemnt,MH ResidentialCare Ext-Morden,W2HB55,Third Party Payments          ,Private Contractors           ,EH01,Miscellaneous Agency Services           ,524.28,01/04/2014,REV,BROOKDALE HEALTH CARE         
383,Adult Social Care,MH u65 Residentl Care Placemnt,MH ResidentialCare Ext-Morden,W2HB55,Third Party Payments          ,Private Contractors           ,EH01,Miscellaneous Agency Services           ,524.28,01/04/2014,REV,BROOKDALE HEALTH CARE         
384,Central Services,SupS Legal,Kingston Legal                          ,E10292,Supplies & Services           ,Services                      ,DF11,Counsel's Fees                          ,550,24/03/2014,REV,REDACTED
385,Cultural Env Reg&Plan Services,Street Clean - Not highways,Street Cleansing (Inc. Gully),G00492,Supplies & Services           ,Equip Furniture/Materials     ,DA01,Equipment - R & M                       ,818.8,27/03/2014,REV,N A BROWN LTD                 
386,CS -Oth Operating Inc & Expend,T/A Vehicle Maintenance etc,Transport-Contract Hire,J01374,Transport Related Expenditure ,Contract Hire and Op Leasing  ,CC64,HIRING TRANSPORT SEN CABS               ,714,31/03/2014,REV,BRUNSWICK CARS LTD            
387,CS -Oth Operating Inc & Expend,T/A Vehicle Maintenance etc,Transport-Contract Hire,J01374,Transport Related Expenditure ,Contract Hire and Op Leasing  ,CC64,HIRING TRANSPORT SEN CABS               ,"2,499.00",31/03/2014,REV,BRUNSWICK CARS LTD            
388,CS -Oth Operating Inc & Expend,T/A Vehicle Maintenance etc,Transport-Workshop,J01376,Transport Related Expenditure ,Contract Hire and Op Leasing  ,CC60,Vehicle Hire for LB Sutton              ,"2,940.00",31/03/2014,REV,BRUNSWICK CARS LTD            
389,CS -Oth Operating Inc & Expend,T/A Vehicle Maintenance etc,Transport-Workshop,J01376,Transport Related Expenditure ,Contract Hire and Op Leasing  ,CC60,Vehicle Hire for LB Sutton              ,"2,163.00",31/03/2014,REV,BRUNSWICK CARS LTD            
390,Childrens & Education Services,Statutory & Regulatory Duties,Senior Mngt & Support Services,K01005,Supplies & Services           ,Services                      ,DF11,Counsel's Fees                          ,650,18/12/2013,REV,REDACTED
391,Childrens & Education Services,Statutory & Regulatory Duties,Senior Mngt & Support Services,K01005,Supplies & Services           ,Services                      ,DF11,Counsel's Fees                          ,807,11/02/2014,REV,REDACTED
392,Cultural Env Reg&Plan Services,BC Regs & Other not split,Building Control,H01100,Supplies & Services           ,Services                      ,DF57,Consulting Engineers Fees               ,620,01/04/2014,REV,BSI                           
393,Childrens & Education Services,Chidren's Homes,CS Brightwell,W1CG00,Employees                     ,Direct Employee Expenses      ,AA17,Agency Staff & Casual Paymts            ,621.99,19/03/2014,REV,REDACTED
394,Childrens & Education Services,Chidren's Homes,CS Brightwell,W1CG00,Employees                     ,Direct Employee Expenses      ,AA17,Agency Staff & Casual Paymts            ,595.1,09/04/2014,REV,REDACTED
395,Central Services,SupS IT,Operations & Telecomms,E14367,Supplies & Services           ,Comms and Computing           ,DG15,Network Maintenance                     ,"3,542.00",20/02/2014,REV,BTS                           
396,Childrens & Education Services,Facilitating School Improvemnt,SSQ,K09077,Supplies & Services           ,Services                      ,DF03,Consultants                             ,"4,200.00",31/03/2014,REV,REDACTED
397,Childrens & Education Services,Nursery schools,EARLY YEARS NURSERY GRANTS,K90042,Supplies & Services           ,Grants and Subscriptions      ,DJ57,Nursery Grant Payment-4yr olds          ,"8,316.00",04/04/2014,REV,COOPERATIVE CHILDCARE         
398,Childrens & Education Services,Nursery schools,2Year Old Offer                         ,K90051,Supplies & Services           ,Grants and Subscriptions      ,DJ01,Grants                                  ,"2,332.80",10/04/2014,REV,COOPERATIVE CHILDCARE         
399,Childrens & Education Services,Nursery schools,EARLY YEARS NURSERY GRANTS,K90042,Supplies & Services           ,Grants and Subscriptions      ,DJ57,Nursery Grant Payment-4yr olds          ,"27,276.50",07/04/2014,REV,BUILDING BLOCKS NURSERY       
400,Childrens & Education Services,Nursery schools,EARLY YEARS NURSERY GRANTS,K90042,Supplies & Services           ,Grants and Subscriptions      ,DJ57,Nursery Grant Payment-4yr olds          ,"1,108.80",30/04/2014,REV,BUILDING BLOCKS KIDS CLUB PLUS
401,Adult Social Care,PS u65 Direct Payments,PD EAST TEAM-Direct Payment,W2JJ36,Third Party Payments          ,Private Contractors           ,EH73,Direct Payments                         ,590.75,11/04/2014,REV,REDACTED
402,Adult Social Care,PS u65 Direct Payments,PD EAST TEAM-Direct Payment,W2JJ36,Third Party Payments          ,Private Contractors           ,EH73,Direct Payments                         ,590.75,11/04/2014,REV,REDACTED
403,Adult Social Care,PS u65 Direct Payments,PD EAST TEAM-Direct Payment,W2JJ36,Third Party Payments          ,Private Contractors           ,EH73,Direct Payments                         ,590.75,11/04/2014,REV,REDACTED
404,Adult Social Care,PS u65 Direct Payments,PD EAST TEAM-Direct Payment,W2JJ36,Third Party Payments          ,Private Contractors           ,EH73,Direct Payments                         ,590.75,11/04/2014,REV,REDACTED
405,Childrens & Education Services,Nursery schools,EARLY YEARS NURSERY GRANTS,K90042,Supplies & Services           ,Grants and Subscriptions      ,DJ57,Nursery Grant Payment-4yr olds          ,"10,533.60",07/04/2014,REV,BUMBLE BEES'S DAY NURSERY-COCC
406,Central Services,SupS Legal,Sutton Legal                            ,E10293,Supplies & Services           ,Services                      ,DF11,Counsel's Fees                          ,522.5,25/02/2014,REV,REDACTED
407,Adult Social Care,PS u65 Nursing Care Placements,PD WEST TEAM-Nursing,W2JK53,Third Party Payments          ,Private Contractors           ,EH01,Miscellaneous Agency Services           ,680,08/04/2014,REV,BUPA CARE HOMES               
408,Adult Social Care,PS u65 Nursing Care Placements,PD WEST TEAM-Nursing,W2JK53,Third Party Payments          ,Private Contractors           ,EH01,Miscellaneous Agency Services           ,680,08/04/2014,REV,BUPA CARE HOMES               
409,Adult Social Care,PS u65 Nursing Care Placements,PD WEST TEAM-Nursing,W2JK53,Third Party Payments          ,Private Contractors           ,EH01,Miscellaneous Agency Services           ,680,08/04/2014,REV,BUPA CARE HOMES               
410,Adult Social Care,PS u65 Nursing Care Placements,PD WEST TEAM-Nursing,W2JK53,Third Party Payments          ,Private Contractors           ,EH01,Miscellaneous Agency Services           ,680,08/04/2014,REV,BUPA CARE HOMES               
411,Adult Social Care,OP 65&Over NursingCarePlacemts,OP West - Nursing Care,W2LG53,Third Party Payments          ,Private Contractors           ,EH01,Miscellaneous Agency Services           ,650,08/04/2014,REV,BUPA CARE HOMES               
412,Adult Social Care,OP 65&Over NursingCarePlacemts,OP West - Nursing Care,W2LG53,Third Party Payments          ,Private Contractors           ,EH01,Miscellaneous Agency Services           ,650,08/04/2014,REV,BUPA CARE HOMES               
413,Adult Social Care,OP 65&Over NursingCarePlacemts,OP West - Nursing Care,W2LG53,Third Party Payments          ,Private Contractors           ,EH01,Miscellaneous Agency Services           ,601.65,08/04/2014,REV,BUPA CARE HOMES               
414,Adult Social Care,OP 65&Over NursingCarePlacemts,OP West - Nursing Care,W2LG53,Third Party Payments          ,Private Contractors           ,EH01,Miscellaneous Agency Services           ,601.65,08/04/2014,REV,BUPA CARE HOMES               
415,Adult Social Care,OP 65&Over NursingCarePlacemts,OP West - Nursing Care,W2LG53,Third Party Payments          ,Private Contractors           ,EH01,Miscellaneous Agency Services           ,601.65,08/04/2014,REV,BUPA CARE HOMES               
416,Adult Social Care,OP 65&Over NursingCarePlacemts,OP West - Nursing Care,W2LG53,Third Party Payments          ,Private Contractors           ,EH01,Miscellaneous Agency Services           ,650,08/04/2014,REV,BUPA CARE HOMES               
417,Adult Social Care,OP 65&Over NursingCarePlacemts,OP West - Nursing Care,W2LG53,Third Party Payments          ,Private Contractors           ,EH01,Miscellaneous Agency Services           ,650,08/04/2014,REV,BUPA CARE HOMES               
418,Adult Social Care,OP 65&Over NursingCarePlacemts,OP West - Nursing Care,W2LG53,Third Party Payments          ,Private Contractors           ,EH01,Miscellaneous Agency Services           ,601.65,08/04/2014,REV,BUPA CARE HOMES               
419,Adult Social Care,OP 65&Over NursingCarePlacemts,OP R/Park - Nursing Care,W2LR53,Third Party Payments          ,Private Contractors           ,EH01,Miscellaneous Agency Services           ,601.65,08/04/2014,REV,BUPA CARE HOMES               
420,Adult Social Care,OP 65&Over NursingCarePlacemts,OP R/Park - Nursing Care,W2LR53,Third Party Payments          ,Private Contractors           ,EH01,Miscellaneous Agency Services           ,601.65,08/04/2014,REV,BUPA CARE HOMES               
421,Adult Social Care,OP 65&Over NursingCarePlacemts,OP R/Park - Nursing Care,W2LR53,Third Party Payments          ,Private Contractors           ,EH01,Miscellaneous Agency Services           ,601.65,08/04/2014,REV,BUPA CARE HOMES               
422,Adult Social Care,OP 65&Over NursingCarePlacemts,OP R/Park - Nursing Care,W2LR53,Third Party Payments          ,Private Contractors           ,EH01,Miscellaneous Agency Services           ,601.65,08/04/2014,REV,BUPA CARE HOMES               
423,Adult Social Care,OP 65&Over NursingCarePlacemts,OP R/Park - Nursing Care,W2LR53,Third Party Payments          ,Private Contractors           ,EH01,Miscellaneous Agency Services           ,825,08/04/2014,REV,BUPA CARE HOMES               
424,Adult Social Care,OP 65&Over NursingCarePlacemts,OP R/Park - Nursing Care,W2LR53,Third Party Payments          ,Private Contractors           ,EH01,Miscellaneous Agency Services           ,601.65,08/04/2014,REV,BUPA CARE HOMES               
425,Adult Social Care,OP 65&Over NursingCarePlacemts,OP R/Park - Nursing Care,W2LR53,Third Party Payments          ,Private Contractors           ,EH01,Miscellaneous Agency Services           ,825,08/04/2014,REV,BUPA CARE HOMES               
426,Adult Social Care,OP 65&Over NursingCarePlacemts,OP R/Park - Nursing Care,W2LR53,Third Party Payments          ,Private Contractors           ,EH01,Miscellaneous Agency Services           ,908.9,08/04/2014,REV,BUPA CARE HOMES               
427,Adult Social Care,OP 65&Over NursingCarePlacemts,OP R/Park - Nursing Care,W2LR53,Third Party Payments          ,Private Contractors           ,EH01,Miscellaneous Agency Services           ,908.9,08/04/2014,REV,BUPA CARE HOMES               
428,Adult Social Care,OP 65&Over NursingCarePlacemts,OP R/Park - Nursing Care,W2LR53,Third Party Payments          ,Private Contractors           ,EH01,Miscellaneous Agency Services           ,601.65,08/04/2014,REV,BUPA CARE HOMES               
429,Adult Social Care,OP 65&Over NursingCarePlacemts,OP R/Park - Nursing Care,W2LR53,Third Party Payments          ,Private Contractors           ,EH01,Miscellaneous Agency Services           ,601.65,08/04/2014,REV,BUPA CARE HOMES               
430,Adult Social Care,OP 65&Over NursingCarePlacemts,OP R/Park - Nursing Care,W2LR53,Third Party Payments          ,Private Contractors           ,EH01,Miscellaneous Agency Services           ,825,08/04/2014,REV,BUPA CARE HOMES               
431,Adult Social Care,OP 65&Over NursingCarePlacemts,OP R/Park - Nursing Care,W2LR53,Third Party Payments          ,Private Contractors           ,EH01,Miscellaneous Agency Services           ,908.9,08/04/2014,REV,BUPA CARE HOMES               
432,Adult Social Care,OP 65&Over NursingCarePlacemts,OP R/Park - Nursing Care,W2LR53,Third Party Payments          ,Private Contractors           ,EH01,Miscellaneous Agency Services           ,601.65,08/04/2014,REV,BUPA CARE HOMES               
433,Adult Social Care,OP 65&Over NursingCarePlacemts,OP R/Park - Nursing Care,W2LR53,Third Party Payments          ,Private Contractors           ,EH01,Miscellaneous Agency Services           ,825,08/04/2014,REV,BUPA CARE HOMES               
434,Adult Social Care,OP 65&Over NursingCarePlacemts,OP R/Park - Nursing Care,W2LR53,Third Party Payments          ,Private Contractors           ,EH01,Miscellaneous Agency Services           ,908.9,08/04/2014,REV,BUPA CARE HOMES               
435,Adult Social Care,MH u65 Nursing Care Placements,OP Nursing Care - NRTPF,W7AE53,Third Party Payments          ,Private Contractors           ,EH01,Miscellaneous Agency Services           ,601.65,08/04/2014,REV,BUPA CARE HOMES               
436,Adult Social Care,MH u65 Nursing Care Placements,OP Nursing Care - NRTPF,W7AE53,Third Party Payments          ,Private Contractors           ,EH01,Miscellaneous Agency Services           ,601.65,08/04/2014,REV,BUPA CARE HOMES               
437,Adult Social Care,MH u65 Nursing Care Placements,OP Nursing Care - NRTPF,W7AE53,Third Party Payments          ,Private Contractors           ,EH01,Miscellaneous Agency Services           ,601.65,08/04/2014,REV,BUPA CARE HOMES               
438,Adult Social Care,MH u65 Nursing Care Placements,OP Nursing Care - NRTPF,W7AE53,Third Party Payments          ,Private Contractors           ,EH01,Miscellaneous Agency Services           ,601.65,08/04/2014,REV,BUPA CARE HOMES               
439,Adult Social Care,OP 65&Over NursingCarePlacemts,OP East - Nursing Care,W2LH53,Third Party Payments          ,Private Contractors           ,EH01,Miscellaneous Agency Services           ,518.67,07/04/2014,REV,BUPA CARE HOMES               
440,Adult Social Care,OP 65&Over NursingCarePlacemts,OP East - Nursing Care,W2LH53,Third Party Payments          ,Private Contractors           ,EH01,Miscellaneous Agency Services           ,518.67,07/04/2014,REV,BUPA CARE HOMES               
441,Adult Social Care,OP 65&Over NursingCarePlacemts,OP East - Nursing Care,W2LH53,Third Party Payments          ,Private Contractors           ,EH01,Miscellaneous Agency Services           ,518.67,07/04/2014,REV,BUPA CARE HOMES               
442,Adult Social Care,OP 65&Over NursingCarePlacemts,OP East - Nursing Care,W2LH53,Third Party Payments          ,Private Contractors           ,EH01,Miscellaneous Agency Services           ,518.67,07/04/2014,REV,BUPA CARE HOMES               
443,Adult Social Care,PS u65 Nursing Care Placements,PD EAST TEAM-Nursing,W2JJ53,Third Party Payments          ,Private Contractors           ,EH01,Miscellaneous Agency Services           ,"1,890.36",15/04/2014,REV,BUPA CARE SERVICES BACS RECEIP
444,Adult Social Care,PS u65 Nursing Care Placements,PD EAST TEAM-Nursing,W2JJ53,Third Party Payments          ,Private Contractors           ,EH01,Miscellaneous Agency Services           ,"1,890.36",15/04/2014,REV,BUPA CARE SERVICES BACS RECEIP
445,Adult Social Care,PS u65 Nursing Care Placements,PD EAST TEAM-Nursing,W2JJ53,Third Party Payments          ,Private Contractors           ,EH01,Miscellaneous Agency Services           ,"1,890.36",15/04/2014,REV,BUPA CARE SERVICES BACS RECEIP
446,Adult Social Care,PS u65 Nursing Care Placements,PD EAST TEAM-Nursing,W2JJ53,Third Party Payments          ,Private Contractors           ,EH01,Miscellaneous Agency Services           ,"1,890.36",15/04/2014,REV,BUPA CARE SERVICES BACS RECEIP
447,Adult Social Care,PS u65 Home Care,PD EAST TEAM-Homecare,W2JJ49,Third Party Payments          ,Private Contractors           ,EH01,Miscellaneous Agency Services           ,552.72,17/04/2014,REV,BUPA CARE HOMES (ANS) LTD     
448,Adult Social Care,PS u65 Home Care,PD EAST TEAM-Homecare,W2JJ49,Third Party Payments          ,Private Contractors           ,EH01,Miscellaneous Agency Services           ,552.72,17/04/2014,REV,BUPA CARE HOMES (ANS) LTD     
449,Adult Social Care,PS u65 Home Care,PD EAST TEAM-Homecare,W2JJ49,Third Party Payments          ,Private Contractors           ,EH01,Miscellaneous Agency Services           ,552.72,17/04/2014,REV,BUPA CARE HOMES (ANS) LTD     
450,Adult Social Care,PS u65 Home Care,PD EAST TEAM-Homecare,W2JJ49,Third Party Payments          ,Private Contractors           ,EH01,Miscellaneous Agency Services           ,552.72,17/04/2014,REV,BUPA CARE HOMES (ANS) LTD     
451,Adult Social Care,PS u65 Nursing Care Placements,PD EAST TEAM-Nursing,W2JJ53,Third Party Payments          ,Private Contractors           ,EH01,Miscellaneous Agency Services           ,"1,000.00",17/04/2014,REV,BUPA CARE HOMES (ANS) LTD     
452,Adult Social Care,PS u65 Nursing Care Placements,PD EAST TEAM-Nursing,W2JJ53,Third Party Payments          ,Private Contractors           ,EH01,Miscellaneous Agency Services           ,"1,000.00",17/04/2014,REV,BUPA CARE HOMES (ANS) LTD     
453,Adult Social Care,PS u65 Nursing Care Placements,PD EAST TEAM-Nursing,W2JJ53,Third Party Payments          ,Private Contractors           ,EH01,Miscellaneous Agency Services           ,"1,000.00",17/04/2014,REV,BUPA CARE HOMES (ANS) LTD     
454,Adult Social Care,PS u65 Nursing Care Placements,PD EAST TEAM-Nursing,W2JJ53,Third Party Payments          ,Private Contractors           ,EH01,Miscellaneous Agency Services           ,"1,000.00",17/04/2014,REV,BUPA CARE HOMES (ANS) LTD     
455,Adult Social Care,PS u65 Residentl Care Placemnt,PD WEST TEAM-Residential Care,W2JK55,Third Party Payments          ,Private Contractors           ,EH01,Miscellaneous Agency Services           ,504,17/04/2014,REV,BUPA CARE HOMES (ANS) LTD     
456,Adult Social Care,PS u65 Residentl Care Placemnt,PD WEST TEAM-Residential Care,W2JK55,Third Party Payments          ,Private Contractors           ,EH01,Miscellaneous Agency Services           ,504,17/04/2014,REV,BUPA CARE HOMES (ANS) LTD     
457,Adult Social Care,PS u65 Residentl Care Placemnt,PD WEST TEAM-Residential Care,W2JK55,Third Party Payments          ,Private Contractors           ,EH01,Miscellaneous Agency Services           ,504,17/04/2014,REV,BUPA CARE HOMES (ANS) LTD     
458,Adult Social Care,PS u65 Residentl Care Placemnt,PD WEST TEAM-Residential Care,W2JK55,Third Party Payments          ,Private Contractors           ,EH01,Miscellaneous Agency Services           ,504,17/04/2014,REV,BUPA CARE HOMES (ANS) LTD     
459,Adult Social Care,PS u65 Nursing Care Placements,PS Nursing Care - NRTPF,W7AD53,Third Party Payments          ,Private Contractors           ,EH01,Miscellaneous Agency Services           ,900,17/04/2014,REV,BUPA CARE HOMES (ANS) LTD     
460,Adult Social Care,PS u65 Nursing Care Placements,PS Nursing Care - NRTPF,W7AD53,Third Party Payments          ,Private Contractors           ,EH01,Miscellaneous Agency Services           ,900,17/04/2014,REV,BUPA CARE HOMES (ANS) LTD     
461,Adult Social Care,PS u65 Nursing Care Placements,PS Nursing Care - NRTPF,W7AD53,Third Party Payments          ,Private Contractors           ,EH01,Miscellaneous Agency Services           ,900,17/04/2014,REV,BUPA CARE HOMES (ANS) LTD     
462,Adult Social Care,PS u65 Nursing Care Placements,PS Nursing Care - NRTPF,W7AD53,Third Party Payments          ,Private Contractors           ,EH01,Miscellaneous Agency Services           ,900,17/04/2014,REV,BUPA CARE HOMES (ANS) LTD     
463,Adult Social Care,MH u65 Nursing Care Placements,OP Nursing Care - NRTPF,W7AE53,Third Party Payments          ,Private Contractors           ,EH01,Miscellaneous Agency Services           ,950,06/01/2014,REV,BUPA CARE HOMES (ANS) LTD     
464,Adult Social Care,MH u65 Nursing Care Placements,OP Nursing Care - NRTPF,W7AE53,Third Party Payments          ,Private Contractors           ,EH01,Miscellaneous Agency Services           ,950,06/01/2014,REV,BUPA CARE HOMES (ANS) LTD     
465,Adult Social Care,MH u65 Nursing Care Placements,OP Nursing Care - NRTPF,W7AE53,Third Party Payments          ,Private Contractors           ,EH01,Miscellaneous Agency Services           ,950,13/03/2014,REV,BUPA CARE HOMES (ANS) LTD     
466,Adult Social Care,MH u65 Nursing Care Placements,OP Nursing Care - NRTPF,W7AE53,Third Party Payments          ,Private Contractors           ,EH01,Miscellaneous Agency Services           ,-950,13/03/2014,REV,BUPA CARE HOMES (ANS) LTD     
467,Adult Social Care,MH u65 Nursing Care Placements,OP Nursing Care - NRTPF,W7AE53,Third Party Payments          ,Private Contractors           ,EH01,Miscellaneous Agency Services           ,950,06/01/2014,REV,BUPA CARE HOMES (ANS) LTD     
468,Adult Social Care,MH u65 Nursing Care Placements,OP Nursing Care - NRTPF,W7AE53,Third Party Payments          ,Private Contractors           ,EH01,Miscellaneous Agency Services           ,950,13/03/2014,REV,BUPA CARE HOMES (ANS) LTD     
469,Adult Social Care,MH u65 Nursing Care Placements,OP Nursing Care - NRTPF,W7AE53,Third Party Payments          ,Private Contractors           ,EH01,Miscellaneous Agency Services           ,678.57,13/03/2014,REV,BUPA CARE HOMES (ANS) LTD     
470,Adult Social Care,MH u65 Nursing Care Placements,OP Nursing Care - NRTPF,W7AE53,Third Party Payments          ,Private Contractors           ,EH01,Miscellaneous Agency Services           ,950,06/01/2014,REV,BUPA CARE HOMES (ANS) LTD     
471,Adult Social Care,MH u65 Nursing Care Placements,OP Nursing Care - NRTPF,W7AE53,Third Party Payments          ,Private Contractors           ,EH01,Miscellaneous Agency Services           ,-542.86,13/03/2014,REV,BUPA CARE HOMES (ANS) LTD     
472,Adult Social Care,OP 65&Over NursingCarePlacemts,OP Hosp - Nursing Care,W2LF53,Third Party Payments          ,Private Contractors           ,EH01,Miscellaneous Agency Services           ,602.74,24/03/2014,REV,BUPA CARE HOMES               
473,Adult Social Care,OP 65&Over NursingCarePlacemts,OP Hosp - Nursing Care,W2LF53,Third Party Payments          ,Private Contractors           ,EH01,Miscellaneous Agency Services           ,602.74,24/03/2014,REV,BUPA CARE HOMES               
474,Adult Social Care,OP 65&Over NursingCarePlacemts,OP Hosp - Nursing Care,W2LF53,Third Party Payments          ,Private Contractors           ,EH01,Miscellaneous Agency Services           ,705.55,04/03/2014,REV,BUPA CARE HOMES               
475,Adult Social Care,OP 65&Over NursingCarePlacemts,OP Hosp - Nursing Care,W2LF53,Third Party Payments          ,Private Contractors           ,EH01,Miscellaneous Agency Services           ,705.55,04/03/2014,REV,BUPA CARE HOMES               
476,Adult Social Care,OP 65&Over NursingCarePlacemts,OP Hosp - Nursing Care,W2LF53,Third Party Payments          ,Private Contractors           ,EH01,Miscellaneous Agency Services           ,705.55,04/03/2014,REV,BUPA CARE HOMES               
477,Adult Social Care,OP 65&Over NursingCarePlacemts,OP Hosp - Nursing Care,W2LF53,Third Party Payments          ,Private Contractors           ,EH01,Miscellaneous Agency Services           ,705.55,04/03/2014,REV,BUPA CARE HOMES               
478,Adult Social Care,OP 65&Over NursingCarePlacemts,OP Hosp - Nursing Care,W2LF53,Third Party Payments          ,Private Contractors           ,EH01,Miscellaneous Agency Services           ,602.74,24/03/2014,REV,BUPA CARE HOMES               
479,Adult Social Care,OP 65&Over NursingCarePlacemts,OP Hosp - Nursing Care,W2LF53,Third Party Payments          ,Private Contractors           ,EH01,Miscellaneous Agency Services           ,602.74,24/03/2014,REV,BUPA CARE HOMES               
480,Adult Social Care,OP 65&Over NursingCarePlacemts,OP Hosp - Nursing Care,W2LF53,Third Party Payments          ,Private Contractors           ,EH01,Miscellaneous Agency Services           ,602.74,24/03/2014,REV,BUPA CARE HOMES               
481,Adult Social Care,OP 65&Over NursingCarePlacemts,OP Hosp - Nursing Care,W2LF53,Third Party Payments          ,Private Contractors           ,EH01,Miscellaneous Agency Services           ,602.74,24/03/2014,REV,BUPA CARE HOMES               
482,Adult Social Care,OP 65&Over NursingCarePlacemts,OP Hosp - Nursing Care,W2LF53,Third Party Payments          ,Private Contractors           ,EH01,Miscellaneous Agency Services           ,705.55,04/03/2014,REV,BUPA CARE HOMES               
483,Adult Social Care,OP 65&Over NursingCarePlacemts,OP Hosp - Nursing Care,W2LF53,Third Party Payments          ,Private Contractors           ,EH01,Miscellaneous Agency Services           ,705.55,04/03/2014,REV,BUPA CARE HOMES               
484,Adult Social Care,OP 65&Over NursingCarePlacemts,OP Hosp - Nursing Care,W2LF53,Third Party Payments          ,Private Contractors           ,EH01,Miscellaneous Agency Services           ,602.74,24/03/2014,REV,BUPA CARE HOMES               
485,Adult Social Care,OP 65&Over NursingCarePlacemts,OP Hosp - Nursing Care,W2LF53,Third Party Payments          ,Private Contractors           ,EH01,Miscellaneous Agency Services           ,602.74,24/03/2014,REV,BUPA CARE HOMES               
486,Adult Social Care,OP 65&Over NursingCarePlacemts,OP Hosp - Nursing Care,W2LF53,Third Party Payments          ,Private Contractors           ,EH01,Miscellaneous Agency Services           ,602.74,24/03/2014,REV,BUPA CARE HOMES               
487,Adult Social Care,OP 65&Over NursingCarePlacemts,OP Hosp - Nursing Care,W2LF53,Third Party Payments          ,Private Contractors           ,EH01,Miscellaneous Agency Services           ,602.74,24/03/2014,REV,BUPA CARE HOMES               
488,Adult Social Care,OP 65&Over NursingCarePlacemts,OP Hosp - Nursing Care,W2LF53,Third Party Payments          ,Private Contractors           ,EH01,Miscellaneous Agency Services           ,604.76,04/03/2014,REV,BUPA CARE HOMES               
489,Adult Social Care,OP 65&Over NursingCarePlacemts,OP Hosp - Nursing Care,W2LF53,Third Party Payments          ,Private Contractors           ,EH01,Miscellaneous Agency Services           ,705.55,04/03/2014,REV,BUPA CARE HOMES               
490,Adult Social Care,OP 65&Over NursingCarePlacemts,OP Hosp - Nursing Care,W2LF53,Third Party Payments          ,Private Contractors           ,EH01,Miscellaneous Agency Services           ,705.55,04/03/2014,REV,BUPA CARE HOMES               
491,Adult Social Care,OP 65&Over NursingCarePlacemts,OP Hosp - Nursing Care,W2LF53,Third Party Payments          ,Private Contractors           ,EH01,Miscellaneous Agency Services           ,705.55,04/03/2014,REV,BUPA CARE HOMES               
492,Adult Social Care,OP 65&Over NursingCarePlacemts,OP Hosp - Nursing Care,W2LF53,Third Party Payments          ,Private Contractors           ,EH01,Miscellaneous Agency Services           ,602.74,24/03/2014,REV,BUPA CARE HOMES               
493,Adult Social Care,OP 65&Over NursingCarePlacemts,OP Hosp - Nursing Care,W2LF53,Third Party Payments          ,Private Contractors           ,EH01,Miscellaneous Agency Services           ,602.74,24/03/2014,REV,BUPA CARE HOMES               
494,Adult Social Care,OP 65&Over NursingCarePlacemts,OP Hosp - Nursing Care,W2LF53,Third Party Payments          ,Private Contractors           ,EH01,Miscellaneous Agency Services           ,705.55,04/03/2014,REV,BUPA CARE HOMES               
495,Adult Social Care,OP 65&Over NursingCarePlacemts,OP Hosp - Nursing Care,W2LF53,Third Party Payments          ,Private Contractors           ,EH01,Miscellaneous Agency Services           ,705.55,04/03/2014,REV,BUPA CARE HOMES               
496,Adult Social Care,OP 65&Over NursingCarePlacemts,OP Hosp - Nursing Care,W2LF53,Third Party Payments          ,Private Contractors           ,EH01,Miscellaneous Agency Services           ,705.55,04/03/2014,REV,BUPA CARE HOMES               
497,Adult Social Care,OP 65&Over Resi Care Placement,OP Hosp - Residential Care Ext,W2LF55,Third Party Payments          ,Private Contractors           ,EH01,Miscellaneous Agency Services           ,-521.99,04/03/2014,REV,BUPA CARE HOMES               
498,Adult Social Care,OP 65&Over Resi Care Placement,OP Hosp - Residential Care Ext,W2LF55,Third Party Payments          ,Private Contractors           ,EH01,Miscellaneous Agency Services           ,-521.99,04/03/2014,REV,BUPA CARE HOMES               
499,Adult Social Care,OP 65&Over Resi Care Placement,OP Hosp - Residential Care Ext,W2LF55,Third Party Payments          ,Private Contractors           ,EH01,Miscellaneous Agency Services           ,521.99,24/03/2014,REV,BUPA CARE HOMES               
500,Adult Social Care,OP 65&Over Resi Care Placement,OP Hosp - Residential Care Ext,W2LF55,Third Party Payments          ,Private Contractors           ,EH01,Miscellaneous Agency Services           ,521.99,24/03/2014,REV,BUPA CARE HOMES               
501,Adult Social Care,OP 65&Over Resi Care Placement,OP Hosp - Residential Care Ext,W2LF55,Third Party Payments          ,Private Contractors           ,EH01,Miscellaneous Agency Services           ,521.99,24/03/2014,REV,BUPA CARE HOMES               
502,Adult Social Care,OP 65&Over Resi Care Placement,OP Hosp - Residential Care Ext,W2LF55,Third Party Payments          ,Private Contractors           ,EH01,Miscellaneous Agency Services           ,521.99,24/03/2014,REV,BUPA CARE HOMES               
503,Adult Social Care,OP 65&Over Resi Care Placement,OP Hosp - Residential Care Ext,W2LF55,Third Party Payments          ,Private Contractors           ,EH01,Miscellaneous Agency Services           ,521.99,24/03/2014,REV,BUPA CARE HOMES               
504,Adult Social Care,OP 65&Over Resi Care Placement,OP Hosp - Residential Care Ext,W2LF55,Third Party Payments          ,Private Contractors           ,EH01,Miscellaneous Agency Services           ,521.99,24/03/2014,REV,BUPA CARE HOMES               
505,Adult Social Care,OP 65&Over Resi Care Placement,OP Hosp - Residential Care Ext,W2LF55,Third Party Payments          ,Private Contractors           ,EH01,Miscellaneous Agency Services           ,521.99,24/03/2014,REV,BUPA CARE HOMES               
506,Adult Social Care,OP 65&Over Resi Care Placement,OP Hosp - Residential Care Ext,W2LF55,Third Party Payments          ,Private Contractors           ,EH01,Miscellaneous Agency Services           ,521.99,24/03/2014,REV,BUPA CARE HOMES               
507,Adult Social Care,OP 65&Over Resi Care Placement,OP Hosp - Residential Care Ext,W2LF55,Third Party Payments          ,Private Contractors           ,EH01,Miscellaneous Agency Services           ,521.99,24/03/2014,REV,BUPA CARE HOMES               
508,Adult Social Care,OP 65&Over Resi Care Placement,OP Hosp - Residential Care Ext,W2LF55,Third Party Payments          ,Private Contractors           ,EH01,Miscellaneous Agency Services           ,521.99,24/03/2014,REV,BUPA CARE HOMES               
509,Adult Social Care,OP 65&Over Resi Care Placement,OP Hosp - Residential Care Ext,W2LF55,Third Party Payments          ,Private Contractors           ,EH01,Miscellaneous Agency Services           ,-521.99,24/02/2014,REV,BUPA CARE HOMES               
510,Adult Social Care,OP 65&Over Resi Care Placement,OP Hosp - Residential Care Ext,W2LF55,Third Party Payments          ,Private Contractors           ,EH01,Miscellaneous Agency Services           ,-521.99,04/03/2014,REV,BUPA CARE HOMES               
511,Adult Social Care,OP 65&Over Resi Care Placement,OP Hosp - Residential Care Ext,W2LF55,Third Party Payments          ,Private Contractors           ,EH01,Miscellaneous Agency Services           ,-521.99,04/03/2014,REV,BUPA CARE HOMES               
512,Adult Social Care,OP 65&Over Resi Care Placement,OP Hosp - Residential Care Ext,W2LF55,Third Party Payments          ,Private Contractors           ,EH01,Miscellaneous Agency Services           ,-521.99,04/03/2014,REV,BUPA CARE HOMES               
513,Adult Social Care,OP 65&Over Resi Care Placement,OP Hosp - Residential Care Ext,W2LF55,Third Party Payments          ,Private Contractors           ,EH01,Miscellaneous Agency Services           ,521.99,24/03/2014,REV,BUPA CARE HOMES               
514,Adult Social Care,OP 65&Over Resi Care Placement,OP Hosp - Residential Care Ext,W2LF55,Third Party Payments          ,Private Contractors           ,EH01,Miscellaneous Agency Services           ,521.99,24/03/2014,REV,BUPA CARE HOMES               
515,Adult Social Care,OP 65&Over Resi Care Placement,OP Hosp - Residential Care Ext,W2LF55,Third Party Payments          ,Private Contractors           ,EH01,Miscellaneous Agency Services           ,521.99,24/03/2014,REV,BUPA CARE HOMES               
516,Adult Social Care,OP 65&Over Resi Care Placement,OP Hosp - Residential Care Ext,W2LF55,Third Party Payments          ,Private Contractors           ,EH01,Miscellaneous Agency Services           ,521.99,24/03/2014,REV,BUPA CARE HOMES               
517,Adult Social Care,OP 65&Over Resi Care Placement,OP Hosp - Residential Care Ext,W2LF55,Third Party Payments          ,Private Contractors           ,EH01,Miscellaneous Agency Services           ,521.99,24/03/2014,REV,BUPA CARE HOMES               
518,Adult Social Care,OP 65&Over Resi Care Placement,OP Hosp - Residential Care Ext,W2LF55,Third Party Payments          ,Private Contractors           ,EH01,Miscellaneous Agency Services           ,521.99,24/03/2014,REV,BUPA CARE HOMES               
519,Adult Social Care,OP 65&Over Resi Care Placement,OP Hosp - Residential Care Ext,W2LF55,Third Party Payments          ,Private Contractors           ,EH01,Miscellaneous Agency Services           ,-521.99,04/03/2014,REV,BUPA CARE HOMES               
520,Adult Social Care,OP 65&Over Resi Care Placement,OP Hosp - Residential Care Ext,W2LF55,Third Party Payments          ,Private Contractors           ,EH01,Miscellaneous Agency Services           ,521.99,24/03/2014,REV,BUPA CARE HOMES               
521,Adult Social Care,OP 65&Over Resi Care Placement,OP Hosp - Residential Care Ext,W2LF55,Third Party Payments          ,Private Contractors           ,EH01,Miscellaneous Agency Services           ,521.99,24/03/2014,REV,BUPA CARE HOMES               
522,Adult Social Care,OP 65&Over Resi Care Placement,OP Hosp - Residential Care Ext,W2LF55,Third Party Payments          ,Private Contractors           ,EH01,Miscellaneous Agency Services           ,521.99,24/03/2014,REV,BUPA CARE HOMES               
523,Adult Social Care,OP 65&Over Resi Care Placement,OP Hosp - Residential Care Ext,W2LF55,Third Party Payments          ,Private Contractors           ,EH01,Miscellaneous Agency Services           ,521.99,24/03/2014,REV,BUPA CARE HOMES               
524,Adult Social Care,OP 65&Over Resi Care Placement,OP Hosp - Residential Care Ext,W2LF55,Third Party Payments          ,Private Contractors           ,EH01,Miscellaneous Agency Services           ,521.99,24/03/2014,REV,BUPA CARE HOMES               
525,Adult Social Care,OP 65&Over Resi Care Placement,OP Hosp - Residential Care Ext,W2LF55,Third Party Payments          ,Private Contractors           ,EH01,Miscellaneous Agency Services           ,521.99,24/03/2014,REV,BUPA CARE HOMES               
526,Adult Social Care,OP 65&Over Resi Care Placement,OP Hosp - Residential Care Ext,W2LF55,Third Party Payments          ,Private Contractors           ,EH01,Miscellaneous Agency Services           ,-521.99,04/03/2014,REV,BUPA CARE HOMES               
527,Adult Social Care,OP 65&Over Resi Care Placement,OP Hosp - Residential Care Ext,W2LF55,Third Party Payments          ,Private Contractors           ,EH01,Miscellaneous Agency Services           ,-521.99,04/03/2014,REV,BUPA CARE HOMES               
528,Adult Social Care,OP 65&Over Resi Care Placement,OP Hosp - Residential Care Ext,W2LF55,Third Party Payments          ,Private Contractors           ,EH01,Miscellaneous Agency Services           ,521.99,24/02/2014,REV,BUPA CARE HOMES               
529,Adult Social Care,OP 65&Over Resi Care Placement,OP Hosp - Residential Care Ext,W2LF55,Third Party Payments          ,Private Contractors           ,EH01,Miscellaneous Agency Services           ,521.99,24/03/2014,REV,BUPA CARE HOMES               
530,Adult Social Care,OP 65&Over Resi Care Placement,OP Hosp - Residential Care Ext,W2LF55,Third Party Payments          ,Private Contractors           ,EH01,Miscellaneous Agency Services           ,521.99,24/03/2014,REV,BUPA CARE HOMES               
531,Adult Social Care,OP 65&Over NursingCarePlacemts,OP West - Nursing Care,W2LG53,Third Party Payments          ,Private Contractors           ,EH01,Miscellaneous Agency Services           ,602.74,24/03/2014,REV,BUPA CARE HOMES               
532,Adult Social Care,OP 65&Over NursingCarePlacemts,OP West - Nursing Care,W2LG53,Third Party Payments          ,Private Contractors           ,EH01,Miscellaneous Agency Services           ,602.74,24/03/2014,REV,BUPA CARE HOMES               
533,Adult Social Care,OP 65&Over NursingCarePlacemts,OP West - Nursing Care,W2LG53,Third Party Payments          ,Private Contractors           ,EH01,Miscellaneous Agency Services           ,602.74,24/03/2014,REV,BUPA CARE HOMES               
534,Adult Social Care,OP 65&Over NursingCarePlacemts,OP West - Nursing Care,W2LG53,Third Party Payments          ,Private Contractors           ,EH01,Miscellaneous Agency Services           ,602.74,24/03/2014,REV,BUPA CARE HOMES               
535,Adult Social Care,OP 65&Over NursingCarePlacemts,OP West - Nursing Care,W2LG53,Third Party Payments          ,Private Contractors           ,EH01,Miscellaneous Agency Services           ,602.74,24/03/2014,REV,BUPA CARE HOMES               
536,Adult Social Care,OP 65&Over NursingCarePlacemts,OP West - Nursing Care,W2LG53,Third Party Payments          ,Private Contractors           ,EH01,Miscellaneous Agency Services           ,602.74,24/03/2014,REV,BUPA CARE HOMES               
537,Adult Social Care,OP 65&Over NursingCarePlacemts,OP West - Nursing Care,W2LG53,Third Party Payments          ,Private Contractors           ,EH01,Miscellaneous Agency Services           ,602.74,24/03/2014,REV,BUPA CARE HOMES               
538,Adult Social Care,OP 65&Over NursingCarePlacemts,OP West - Nursing Care,W2LG53,Third Party Payments          ,Private Contractors           ,EH01,Miscellaneous Agency Services           ,602.74,24/03/2014,REV,BUPA CARE HOMES               
539,Adult Social Care,OP 65&Over Resi Care Placement,OP West - Residential Care Ext,W2LG55,Third Party Payments          ,Private Contractors           ,EH01,Miscellaneous Agency Services           ,521.99,24/03/2014,REV,BUPA CARE HOMES               
540,Adult Social Care,OP 65&Over Resi Care Placement,OP West - Residential Care Ext,W2LG55,Third Party Payments          ,Private Contractors           ,EH01,Miscellaneous Agency Services           ,521.99,24/03/2014,REV,BUPA CARE HOMES               
541,Adult Social Care,OP 65&Over Resi Care Placement,OP West - Residential Care Ext,W2LG55,Third Party Payments          ,Private Contractors           ,EH01,Miscellaneous Agency Services           ,521.99,24/03/2014,REV,BUPA CARE HOMES               
542,Adult Social Care,OP 65&Over Resi Care Placement,OP West - Residential Care Ext,W2LG55,Third Party Payments          ,Private Contractors           ,EH01,Miscellaneous Agency Services           ,521.99,24/03/2014,REV,BUPA CARE HOMES               
543,Adult Social Care,OP 65&Over Resi Care Placement,OP West - Residential Care Ext,W2LG55,Third Party Payments          ,Private Contractors           ,EH01,Miscellaneous Agency Services           ,521.99,24/03/2014,REV,BUPA CARE HOMES               
544,Adult Social Care,OP 65&Over Resi Care Placement,OP West - Residential Care Ext,W2LG55,Third Party Payments          ,Private Contractors           ,EH01,Miscellaneous Agency Services           ,521.99,24/03/2014,REV,BUPA CARE HOMES               
545,Adult Social Care,OP 65&Over Resi Care Placement,OP West - Residential Care Ext,W2LG55,Third Party Payments          ,Private Contractors           ,EH01,Miscellaneous Agency Services           ,521.99,24/03/2014,REV,BUPA CARE HOMES               
546,Adult Social Care,OP 65&Over Resi Care Placement,OP West - Residential Care Ext,W2LG55,Third Party Payments          ,Private Contractors           ,EH01,Miscellaneous Agency Services           ,521.99,24/03/2014,REV,BUPA CARE HOMES               
547,Adult Social Care,OP 65&Over NursingCarePlacemts,OP East - Nursing Care,W2LH53,Third Party Payments          ,Private Contractors           ,EH01,Miscellaneous Agency Services           ,602.74,24/03/2014,REV,BUPA CARE HOMES               
548,Adult Social Care,OP 65&Over NursingCarePlacemts,OP East - Nursing Care,W2LH53,Third Party Payments          ,Private Contractors           ,EH01,Miscellaneous Agency Services           ,602.74,24/03/2014,REV,BUPA CARE HOMES               
549,Adult Social Care,OP 65&Over NursingCarePlacemts,OP East - Nursing Care,W2LH53,Third Party Payments          ,Private Contractors           ,EH01,Miscellaneous Agency Services           ,602.74,24/03/2014,REV,BUPA CARE HOMES               
550,Adult Social Care,OP 65&Over NursingCarePlacemts,OP East - Nursing Care,W2LH53,Third Party Payments          ,Private Contractors           ,EH01,Miscellaneous Agency Services           ,602.74,24/03/2014,REV,BUPA CARE HOMES               
551,Adult Social Care,OP 65&Over NursingCarePlacemts,OP East - Nursing Care,W2LH53,Third Party Payments          ,Private Contractors           ,EH01,Miscellaneous Agency Services           ,602.74,24/03/2014,REV,BUPA CARE HOMES               
552,Adult Social Care,OP 65&Over NursingCarePlacemts,OP East - Nursing Care,W2LH53,Third Party Payments          ,Private Contractors           ,EH01,Miscellaneous Agency Services           ,705.55,24/03/2014,REV,BUPA CARE HOMES               
553,Adult Social Care,OP 65&Over NursingCarePlacemts,OP East - Nursing Care,W2LH53,Third Party Payments          ,Private Contractors           ,EH01,Miscellaneous Agency Services           ,705.55,24/03/2014,REV,BUPA CARE HOMES               
554,Adult Social Care,OP 65&Over NursingCarePlacemts,OP East - Nursing Care,W2LH53,Third Party Payments          ,Private Contractors           ,EH01,Miscellaneous Agency Services           ,705.55,24/03/2014,REV,BUPA CARE HOMES               
555,Adult Social Care,OP 65&Over NursingCarePlacemts,OP East - Nursing Care,W2LH53,Third Party Payments          ,Private Contractors           ,EH01,Miscellaneous Agency Services           ,602.74,24/03/2014,REV,BUPA CARE HOMES               
556,Adult Social Care,OP 65&Over NursingCarePlacemts,OP East - Nursing Care,W2LH53,Third Party Payments          ,Private Contractors           ,EH01,Miscellaneous Agency Services           ,602.74,24/03/2014,REV,BUPA CARE HOMES               
557,Adult Social Care,OP 65&Over NursingCarePlacemts,OP East - Nursing Care,W2LH53,Third Party Payments          ,Private Contractors           ,EH01,Miscellaneous Agency Services           ,602.74,24/03/2014,REV,BUPA CARE HOMES               
558,Adult Social Care,OP 65&Over NursingCarePlacemts,OP East - Nursing Care,W2LH53,Third Party Payments          ,Private Contractors           ,EH01,Miscellaneous Agency Services           ,602.74,24/03/2014,REV,BUPA CARE HOMES               
559,Adult Social Care,OP 65&Over NursingCarePlacemts,OP East - Nursing Care,W2LH53,Third Party Payments          ,Private Contractors           ,EH01,Miscellaneous Agency Services           ,602.74,24/03/2014,REV,BUPA CARE HOMES               
560,Adult Social Care,OP 65&Over NursingCarePlacemts,OP East - Nursing Care,W2LH53,Third Party Payments          ,Private Contractors           ,EH01,Miscellaneous Agency Services           ,602.74,24/03/2014,REV,BUPA CARE HOMES               
561,Adult Social Care,OP 65&Over NursingCarePlacemts,OP East - Nursing Care,W2LH53,Third Party Payments          ,Private Contractors           ,EH01,Miscellaneous Agency Services           ,602.74,24/03/2014,REV,BUPA CARE HOMES               
562,Adult Social Care,OP 65&Over NursingCarePlacemts,OP East - Nursing Care,W2LH53,Third Party Payments          ,Private Contractors           ,EH01,Miscellaneous Agency Services           ,602.74,24/03/2014,REV,BUPA CARE HOMES               
563,Adult Social Care,OP 65&Over NursingCarePlacemts,OP East - Nursing Care,W2LH53,Third Party Payments          ,Private Contractors           ,EH01,Miscellaneous Agency Services           ,602.74,24/03/2014,REV,BUPA CARE HOMES               
564,Adult Social Care,OP 65&Over NursingCarePlacemts,OP East - Nursing Care,W2LH53,Third Party Payments          ,Private Contractors           ,EH01,Miscellaneous Agency Services           ,705.55,24/03/2014,REV,BUPA CARE HOMES               
565,Adult Social Care,OP 65&Over NursingCarePlacemts,OP East - Nursing Care,W2LH53,Third Party Payments          ,Private Contractors           ,EH01,Miscellaneous Agency Services           ,705.55,24/03/2014,REV,BUPA CARE HOMES               
566,Adult Social Care,OP 65&Over NursingCarePlacemts,OP East - Nursing Care,W2LH53,Third Party Payments          ,Private Contractors           ,EH01,Miscellaneous Agency Services           ,602.74,24/03/2014,REV,BUPA CARE HOMES               
567,Adult Social Care,OP 65&Over NursingCarePlacemts,OP East - Nursing Care,W2LH53,Third Party Payments          ,Private Contractors           ,EH01,Miscellaneous Agency Services           ,602.74,24/03/2014,REV,BUPA CARE HOMES               
568,Adult Social Care,OP 65&Over NursingCarePlacemts,OP East - Nursing Care,W2LH53,Third Party Payments          ,Private Contractors           ,EH01,Miscellaneous Agency Services           ,602.74,24/03/2014,REV,BUPA CARE HOMES               
569,Adult Social Care,OP 65&Over NursingCarePlacemts,OP East - Nursing Care,W2LH53,Third Party Payments          ,Private Contractors           ,EH01,Miscellaneous Agency Services           ,602.74,24/03/2014,REV,BUPA CARE HOMES               
570,Adult Social Care,OP 65&Over NursingCarePlacemts,OP East - Nursing Care,W2LH53,Third Party Payments          ,Private Contractors           ,EH01,Miscellaneous Agency Services           ,602.74,24/03/2014,REV,BUPA CARE HOMES               
571,Adult Social Care,OP 65&Over NursingCarePlacemts,OP East - Nursing Care,W2LH53,Third Party Payments          ,Private Contractors           ,EH01,Miscellaneous Agency Services           ,602.74,24/03/2014,REV,BUPA CARE HOMES               
572,Adult Social Care,OP 65&Over NursingCarePlacemts,OP East - Nursing Care,W2LH53,Third Party Payments          ,Private Contractors           ,EH01,Miscellaneous Agency Services           ,705.55,24/03/2014,REV,BUPA CARE HOMES               
573,Adult Social Care,OP 65&Over NursingCarePlacemts,OP East - Nursing Care,W2LH53,Third Party Payments          ,Private Contractors           ,EH01,Miscellaneous Agency Services           ,705.55,24/03/2014,REV,BUPA CARE HOMES               
574,Adult Social Care,OP 65&Over NursingCarePlacemts,OP East - Nursing Care,W2LH53,Third Party Payments          ,Private Contractors           ,EH01,Miscellaneous Agency Services           ,705.55,24/03/2014,REV,BUPA CARE HOMES               
575,Adult Social Care,OP 65&Over NursingCarePlacemts,OP East - Nursing Care,W2LH53,Third Party Payments          ,Private Contractors           ,EH01,Miscellaneous Agency Services           ,705.55,24/03/2014,REV,BUPA CARE HOMES               
576,Adult Social Care,OP 65&Over NursingCarePlacemts,OP East - Nursing Care,W2LH53,Third Party Payments          ,Private Contractors           ,EH01,Miscellaneous Agency Services           ,705.55,24/03/2014,REV,BUPA CARE HOMES               
577,Adult Social Care,OP 65&Over NursingCarePlacemts,OP East - Nursing Care,W2LH53,Third Party Payments          ,Private Contractors           ,EH01,Miscellaneous Agency Services           ,602.74,24/03/2014,REV,BUPA CARE HOMES               
578,Adult Social Care,OP 65&Over NursingCarePlacemts,OP East - Nursing Care,W2LH53,Third Party Payments          ,Private Contractors           ,EH01,Miscellaneous Agency Services           ,602.74,24/03/2014,REV,BUPA CARE HOMES               
579,Adult Social Care,OP 65&Over NursingCarePlacemts,OP East - Nursing Care,W2LH53,Third Party Payments          ,Private Contractors           ,EH01,Miscellaneous Agency Services           ,602.74,24/03/2014,REV,BUPA CARE HOMES               
580,Adult Social Care,OP 65&Over NursingCarePlacemts,OP East - Nursing Care,W2LH53,Third Party Payments          ,Private Contractors           ,EH01,Miscellaneous Agency Services           ,602.74,24/03/2014,REV,BUPA CARE HOMES               
581,Adult Social Care,OP 65&Over NursingCarePlacemts,OP East - Nursing Care,W2LH53,Third Party Payments          ,Private Contractors           ,EH01,Miscellaneous Agency Services           ,602.74,24/03/2014,REV,BUPA CARE HOMES               
582,Adult Social Care,OP 65&Over NursingCarePlacemts,OP East - Nursing Care,W2LH53,Third Party Payments          ,Private Contractors           ,EH01,Miscellaneous Agency Services           ,602.74,24/03/2014,REV,BUPA CARE HOMES               
583,Adult Social Care,OP 65&Over NursingCarePlacemts,OP East - Nursing Care,W2LH53,Third Party Payments          ,Private Contractors           ,EH01,Miscellaneous Agency Services           ,602.74,24/03/2014,REV,BUPA CARE HOMES               
584,Adult Social Care,OP 65&Over NursingCarePlacemts,OP East - Nursing Care,W2LH53,Third Party Payments          ,Private Contractors           ,EH01,Miscellaneous Agency Services           ,602.74,24/03/2014,REV,BUPA CARE HOMES               
585,Adult Social Care,OP 65&Over NursingCarePlacemts,OP East - Nursing Care,W2LH53,Third Party Payments          ,Private Contractors           ,EH01,Miscellaneous Agency Services           ,705.55,24/03/2014,REV,BUPA CARE HOMES               
586,Adult Social Care,OP 65&Over NursingCarePlacemts,OP East - Nursing Care,W2LH53,Third Party Payments          ,Private Contractors           ,EH01,Miscellaneous Agency Services           ,705.55,24/03/2014,REV,BUPA CARE HOMES               
587,Adult Social Care,OP 65&Over Resi Care Placement,OP East - Residential Care Ext,W2LH55,Third Party Payments          ,Private Contractors           ,EH01,Miscellaneous Agency Services           ,521.99,24/03/2014,REV,BUPA CARE HOMES               
588,Adult Social Care,OP 65&Over Resi Care Placement,OP East - Residential Care Ext,W2LH55,Third Party Payments          ,Private Contractors           ,EH01,Miscellaneous Agency Services           ,521.99,24/03/2014,REV,BUPA CARE HOMES               
589,Adult Social Care,OP 65&Over Resi Care Placement,OP East - Residential Care Ext,W2LH55,Third Party Payments          ,Private Contractors           ,EH01,Miscellaneous Agency Services           ,521.99,24/03/2014,REV,BUPA CARE HOMES               
590,Adult Social Care,OP 65&Over Resi Care Placement,OP East - Residential Care Ext,W2LH55,Third Party Payments          ,Private Contractors           ,EH01,Miscellaneous Agency Services           ,521.99,24/03/2014,REV,BUPA CARE HOMES               
591,Adult Social Care,OP 65&Over NursingCarePlacemts,OP R/Park - Nursing Care,W2LR53,Third Party Payments          ,Private Contractors           ,EH01,Miscellaneous Agency Services           ,602.74,24/03/2014,REV,BUPA CARE HOMES               
592,Adult Social Care,OP 65&Over NursingCarePlacemts,OP R/Park - Nursing Care,W2LR53,Third Party Payments          ,Private Contractors           ,EH01,Miscellaneous Agency Services           ,602.74,24/03/2014,REV,BUPA CARE HOMES               
593,Adult Social Care,OP 65&Over NursingCarePlacemts,OP R/Park - Nursing Care,W2LR53,Third Party Payments          ,Private Contractors           ,EH01,Miscellaneous Agency Services           ,602.74,24/03/2014,REV,BUPA CARE HOMES               
594,Adult Social Care,OP 65&Over NursingCarePlacemts,OP R/Park - Nursing Care,W2LR53,Third Party Payments          ,Private Contractors           ,EH01,Miscellaneous Agency Services           ,602.74,24/03/2014,REV,BUPA CARE HOMES               
595,Adult Social Care,OP 65&Over NursingCarePlacemts,OP R/Park - Nursing Care,W2LR53,Third Party Payments          ,Private Contractors           ,EH01,Miscellaneous Agency Services           ,602.74,24/03/2014,REV,BUPA CARE HOMES               
596,Adult Social Care,OP 65&Over NursingCarePlacemts,OP R/Park - Nursing Care,W2LR53,Third Party Payments          ,Private Contractors           ,EH01,Miscellaneous Agency Services           ,602.74,24/03/2014,REV,BUPA CARE HOMES               
597,Adult Social Care,OP 65&Over NursingCarePlacemts,OP R/Park - Nursing Care,W2LR53,Third Party Payments          ,Private Contractors           ,EH01,Miscellaneous Agency Services           ,602.74,24/03/2014,REV,BUPA CARE HOMES               
598,Adult Social Care,OP 65&Over NursingCarePlacemts,OP R/Park - Nursing Care,W2LR53,Third Party Payments          ,Private Contractors           ,EH01,Miscellaneous Agency Services           ,602.74,24/03/2014,REV,BUPA CARE HOMES               
599,Adult Social Care,OP 65&Over NursingCarePlacemts,OP R/Park - Nursing Care,W2LR53,Third Party Payments          ,Private Contractors           ,EH01,Miscellaneous Agency Services           ,602.74,24/03/2014,REV,BUPA CARE HOMES               
600,Adult Social Care,OP 65&Over NursingCarePlacemts,OP R/Park - Nursing Care,W2LR53,Third Party Payments          ,Private Contractors           ,EH01,Miscellaneous Agency Services           ,602.74,24/03/2014,REV,BUPA CARE HOMES               
601,Adult Social Care,OP 65&Over NursingCarePlacemts,OP R/Park - Nursing Care,W2LR53,Third Party Payments          ,Private Contractors           ,EH01,Miscellaneous Agency Services           ,602.74,24/03/2014,REV,BUPA CARE HOMES               
602,Adult Social Care,OP 65&Over NursingCarePlacemts,OP R/Park - Nursing Care,W2LR53,Third Party Payments          ,Private Contractors           ,EH01,Miscellaneous Agency Services           ,602.74,24/03/2014,REV,BUPA CARE HOMES               
603,Adult Social Care,OP 65&Over Resi Care Placement,OP R/Park-Residential Care Ext,W2LR55,Third Party Payments          ,Private Contractors           ,EH01,Miscellaneous Agency Services           ,521.99,24/03/2014,REV,BUPA CARE HOMES               
604,Adult Social Care,OP 65&Over Resi Care Placement,OP R/Park-Residential Care Ext,W2LR55,Third Party Payments          ,Private Contractors           ,EH01,Miscellaneous Agency Services           ,521.99,24/03/2014,REV,BUPA CARE HOMES               
605,Adult Social Care,OP 65&Over Resi Care Placement,OP R/Park-Residential Care Ext,W2LR55,Third Party Payments          ,Private Contractors           ,EH01,Miscellaneous Agency Services           ,521.99,24/03/2014,REV,BUPA CARE HOMES               
606,Adult Social Care,OP 65&Over Resi Care Placement,OP R/Park-Residential Care Ext,W2LR55,Third Party Payments          ,Private Contractors           ,EH01,Miscellaneous Agency Services           ,521.99,24/03/2014,REV,BUPA CARE HOMES               
607,Adult Social Care,PS u65 Nursing Care Placements,PD EAST TEAM-Nursing,W2JJ53,Third Party Payments          ,Private Contractors           ,EH01,Miscellaneous Agency Services           ,"1,450.00",24/03/2014,REV,BUPA CARE HOMES               
608,Adult Social Care,PS u65 Nursing Care Placements,PD EAST TEAM-Nursing,W2JJ53,Third Party Payments          ,Private Contractors           ,EH01,Miscellaneous Agency Services           ,"1,450.00",24/03/2014,REV,BUPA CARE HOMES               
609,Adult Social Care,PS u65 Nursing Care Placements,PD EAST TEAM-Nursing,W2JJ53,Third Party Payments          ,Private Contractors           ,EH01,Miscellaneous Agency Services           ,"1,450.00",24/03/2014,REV,BUPA CARE HOMES               
610,Adult Social Care,PS u65 Nursing Care Placements,PD EAST TEAM-Nursing,W2JJ53,Third Party Payments          ,Private Contractors           ,EH01,Miscellaneous Agency Services           ,"1,450.00",15/04/2014,REV,BUPA CARE HOMES               
611,Adult Social Care,PS u65 Nursing Care Placements,PD EAST TEAM-Nursing,W2JJ53,Third Party Payments          ,Private Contractors           ,EH01,Miscellaneous Agency Services           ,"1,450.00",15/04/2014,REV,BUPA CARE HOMES               
612,Adult Social Care,PS u65 Nursing Care Placements,PD EAST TEAM-Nursing,W2JJ53,Third Party Payments          ,Private Contractors           ,EH01,Miscellaneous Agency Services           ,"1,450.00",24/03/2014,REV,BUPA CARE HOMES               
613,Adult Social Care,PS u65 Nursing Care Placements,PD EAST TEAM-Nursing,W2JJ53,Third Party Payments          ,Private Contractors           ,EH01,Miscellaneous Agency Services           ,"1,450.00",15/04/2014,REV,BUPA CARE HOMES               
614,Adult Social Care,PS u65 Nursing Care Placements,PD EAST TEAM-Nursing,W2JJ53,Third Party Payments          ,Private Contractors           ,EH01,Miscellaneous Agency Services           ,"1,450.00",15/04/2014,REV,BUPA CARE HOMES               
615,Central Services,SupS Best Value,Merton Link,A04070,Premises Related Expenditure  ,Ground Maintenance Costs      ,BL03,Maintenance of Grounds                  ,"2,568.00",31/03/2014,REV,G BURLEY & SONS LTD           
616,Central Services,SupS Best Value,Merton Link,A04070,Premises Related Expenditure  ,Ground Maintenance Costs      ,BL03,Maintenance of Grounds                  ,"1,020.00",31/03/2014,REV,G BURLEY & SONS LTD           
617,Central Services,SupS Facilities,Morden Park House,E02229,Premises Related Expenditure  ,Ground Maintenance Costs      ,BL03,Maintenance of Grounds                  ,680,31/03/2014,REV,G BURLEY & SONS LTD           
618,CS -Oth Operating Inc & Expend,T/A Vehicle Maintenance etc,Transport-Contract Hire,J01374,Transport Related Expenditure ,Contract Hire and Op Leasing  ,CC59,HIRING TRANSPORT OPERATIONS             ,"1,386.00",31/03/2014,REV,BURNT TREE VEHICLE RENTAL     
619,CS -Oth Operating Inc & Expend,T/A Vehicle Maintenance etc,Transport-Contract Hire,J01374,Transport Related Expenditure ,Contract Hire and Op Leasing  ,CC59,HIRING TRANSPORT OPERATIONS             ,"1,386.00",31/03/2014,REV,BURNT TREE VEHICLE RENTAL     
620,CS -Oth Operating Inc & Expend,T/A Vehicle Maintenance etc,Transport-Contract Hire,J01374,Transport Related Expenditure ,Contract Hire and Op Leasing  ,CC59,HIRING TRANSPORT OPERATIONS             ,"1,386.00",31/03/2014,REV,BURNT TREE VEHICLE RENTAL     
621,Adult Social Care,OP 65 & Over Other Services,MA Mascot Wardens Alarms,W2LN00,Supplies & Services           ,Equip Furniture/Materials     ,DA09,Equip-Purchases                         ,537.6,27/02/2014,REV,BUSINESS SYSTEMS (UK) LTD     
622,Adult Social Care,OP 65 & Over Other Services,MA Mascot Wardens Alarms,W2LN00,Supplies & Services           ,Equip Furniture/Materials     ,DA09,Equip-Purchases                         ,"1,833.30",27/02/2014,REV,BUSINESS SYSTEMS (UK) LTD     
623,Cultural Env Reg&Plan Services,Planning Policy not split,Spatial Policy,H01173,Third Party Payments          ,Private Contractors           ,EH10,Contract Payments                       ,535,04/04/2014,REV,REDACTED
624,Childrens & Education Services,Nursery schools,EARLY YEARS NURSERY GRANTS,K90042,Supplies & Services           ,Grants and Subscriptions      ,DJ57,Nursery Grant Payment-4yr olds          ,"2,272.00",17/04/2014,REV,BUTTERFLIES CHILDCARE LIMITED 
625,Childrens & Education Services,Nursery schools,EARLY YEARS NURSERY GRANTS,K90042,Supplies & Services           ,Grants and Subscriptions      ,DJ57,Nursery Grant Payment-4yr olds          ,"4,435.20",04/04/2014,REV,BUTTERFLIES CHILDCARE LIMITED 
626,Cultural Env Reg&Plan Services,Parks & Open Spaces,Wimbledon Tennis Fortnight,P05096,Customer and client receipts  ,Charges                       ,RC04,Misc Exps Recovered X                   ,"3,700.00",28/04/2014,REV,REDACTED
627,Childrens & Education Services,Fostering Services,ART Independent Agency Foster,W1DE46,Supplies & Services           ,Services                      ,DF53,Task Based Fostering                    ,911.65,01/04/2014,REV,BY THE BRIDGE                 
628,Central Services,Grants - Voluntary Groups,VOLUNTARY SECTOR COORDINATION,A04082,Supplies & Services           ,Grants and Subscriptions      ,DJ01,Grants                                  ,"177,878.00",22/04/2014,REV,MERTON CITIZEN ADVICE BUREAU  
629,Highways & Transport Services,Hwys/Rds (struct) not split,C'way & F'way Mtce,G00121,Supplies & Services           ,Comms and Computing           ,DG07,Computer Software                       ,"4,230.00",31/03/2014,REV,CADLINE LTD                   
630,Highways & Transport Services,Hwys/Rds (struct) not split,C'way & F'way Mtce,G00121,Supplies & Services           ,Comms and Computing           ,DG07,Computer Software                       ,"15,792.00",31/03/2014,REV,CADLINE LTD                   
631,Childrens & Education Services,Chidren's Homes,ART Residential Placements,W1DE57,Third Party Payments          ,Private Contractors           ,EH01,Miscellaneous Agency Services           ,"1,312.50",12/03/2014,REV,REDACTED
632,Childrens & Education Services,Chidren's Homes,ART Residential Placements,W1DE57,Third Party Payments          ,Private Contractors           ,EH01,Miscellaneous Agency Services           ,"1,312.50",12/03/2014,REV,REDACTED
633,Childrens & Education Services,Chidren's Homes,ART Residential Placements,W1DE57,Third Party Payments          ,Private Contractors           ,EH01,Miscellaneous Agency Services           ,"1,312.50",12/03/2014,REV,REDACTED
634,Childrens & Education Services,Chidren's Homes,ART Residential Placements,W1DE57,Third Party Payments          ,Private Contractors           ,EH01,Miscellaneous Agency Services           ,"1,312.50",12/03/2014,REV,REDACTED
635,Childrens & Education Services,Chidren's Homes,ART Residential Placements,W1DE57,Third Party Payments          ,Private Contractors           ,EH01,Miscellaneous Agency Services           ,"1,312.50",12/03/2014,REV,REDACTED
636,Childrens & Education Services,Chidren's Homes,ART Residential Placements,W1DE57,Third Party Payments          ,Private Contractors           ,EH01,Miscellaneous Agency Services           ,"1,312.50",12/03/2014,REV,REDACTED
637,Childrens & Education Services,Chidren's Homes,ART Residential Placements,W1DE57,Third Party Payments          ,Private Contractors           ,EH01,Miscellaneous Agency Services           ,750,12/03/2014,REV,REDACTED
638,Childrens & Education Services,Chidren's Homes,ART Residential Placements,W1DE57,Third Party Payments          ,Private Contractors           ,EH01,Miscellaneous Agency Services           ,"1,312.50",12/03/2014,REV,REDACTED
639,Childrens & Education Services,Chidren's Homes,ART Residential Placements,W1DE57,Third Party Payments          ,Private Contractors           ,EH01,Miscellaneous Agency Services           ,"1,312.50",12/03/2014,REV,REDACTED
640,Childrens & Education Services,Chidren's Homes,ART Residential Placements,W1DE57,Third Party Payments          ,Private Contractors           ,EH01,Miscellaneous Agency Services           ,"1,312.50",12/03/2014,REV,REDACTED
641,Childrens & Education Services,Chidren's Homes,ART Residential Placements,W1DE57,Third Party Payments          ,Private Contractors           ,EH01,Miscellaneous Agency Services           ,"1,312.50",12/03/2014,REV,REDACTED
642,Childrens & Education Services,Chidren's Homes,ART Residential Placements,W1DE57,Third Party Payments          ,Private Contractors           ,EH01,Miscellaneous Agency Services           ,"1,312.50",12/03/2014,REV,REDACTED
643,Childrens & Education Services,Chidren's Homes,ART Residential Placements,W1DE57,Third Party Payments          ,Private Contractors           ,EH01,Miscellaneous Agency Services           ,"1,312.50",12/03/2014,REV,REDACTED
644,Childrens & Education Services,Chidren's Homes,ART Residential Placements,W1DE57,Third Party Payments          ,Private Contractors           ,EH01,Miscellaneous Agency Services           ,"1,312.50",12/03/2014,REV,REDACTED
645,Childrens & Education Services,Chidren's Homes,ART Residential Placements,W1DE57,Third Party Payments          ,Private Contractors           ,EH01,Miscellaneous Agency Services           ,"1,312.50",12/03/2014,REV,REDACTED
646,Childrens & Education Services,Chidren's Homes,ART Residential Placements,W1DE57,Third Party Payments          ,Private Contractors           ,EH01,Miscellaneous Agency Services           ,"1,312.50",12/03/2014,REV,REDACTED
647,Childrens & Education Services,Chidren's Homes,ART Residential Placements,W1DE57,Third Party Payments          ,Private Contractors           ,EH01,Miscellaneous Agency Services           ,"1,312.50",12/03/2014,REV,REDACTED
648,Childrens & Education Services,Chidren's Homes,ART Residential Placements,W1DE57,Third Party Payments          ,Private Contractors           ,EH01,Miscellaneous Agency Services           ,"1,312.50",12/03/2014,REV,REDACTED
649,Childrens & Education Services,Chidren's Homes,ART Residential Placements,W1DE57,Third Party Payments          ,Private Contractors           ,EH01,Miscellaneous Agency Services           ,"1,312.50",12/03/2014,REV,REDACTED
650,Childrens & Education Services,Chidren's Homes,ART Residential Placements,W1DE57,Third Party Payments          ,Private Contractors           ,EH01,Miscellaneous Agency Services           ,"1,312.50",12/03/2014,REV,REDACTED
651,Childrens & Education Services,Chidren's Homes,ART Residential Placements,W1DE57,Third Party Payments          ,Private Contractors           ,EH01,Miscellaneous Agency Services           ,"1,312.50",12/03/2014,REV,REDACTED
652,Childrens & Education Services,Chidren's Homes,ART Residential Placements,W1DE57,Third Party Payments          ,Private Contractors           ,EH01,Miscellaneous Agency Services           ,"1,312.50",12/03/2014,REV,REDACTED
653,Childrens & Education Services,Chidren's Homes,ART Residential Placements,W1DE57,Third Party Payments          ,Private Contractors           ,EH01,Miscellaneous Agency Services           ,"1,312.50",12/03/2014,REV,REDACTED
654,Childrens & Education Services,Chidren's Homes,ART Residential Placements,W1DE57,Third Party Payments          ,Private Contractors           ,EH01,Miscellaneous Agency Services           ,"1,312.50",12/03/2014,REV,REDACTED
655,Childrens & Education Services,Chidren's Homes,ART Residential Placements,W1DE57,Third Party Payments          ,Private Contractors           ,EH01,Miscellaneous Agency Services           ,"1,312.50",12/03/2014,REV,REDACTED
656,Childrens & Education Services,Chidren's Homes,ART Residential Placements,W1DE57,Third Party Payments          ,Private Contractors           ,EH01,Miscellaneous Agency Services           ,"1,312.50",12/03/2014,REV,REDACTED
658,Childrens & Education Services,Statutory & Regulatory Duties,Senior Mngt & Support Services,K01005,Supplies & Services           ,Services                      ,DF11,Counsel's Fees                          ,900,25/03/2014,REV,REDACTED
659,Childrens & Education Services,Support for SEN Pupils,Non-Delegated Statements,K90024,Third Party Payments          ,Other Establishments          ,EG50,Ind Day Schs Payments                   ,"8,059.60",25/03/2014,REV,CANBURY SCHOOL LIMITED        
660,Cultural Env Reg&Plan Services,Parks & Open Spaces,Wimbledon Parks,P05111,Premises Related Expenditure  ,Cleaning and Domestic Supplies,BH03,Cleaning Services                       ,"2,507.16",01/04/2014,REV,OCS GROUP UK LTD T/A CANNON   
661,Public Health,,PH � NHS Health check�                  ,WPHN01,Supplies & Services           ,Services                      ,DF14,Doctors and Other Fees                  ,"1,800.00",10/04/2014,REV,CANNON HILL LANE MEDICAL PRAC.
662,Childrens & Education Services,Admissions & Planning Sch Prov,Retained Schools Budgets,K90030,Supplies & Services           ,Comms and Computing           ,DG02,Software Licences                       ,"113,123.68",27/02/2014,REV,CAPITA BUSINESS SERVICES LTD  
663,Housing Services,Hsg Dept Supp Staff & Costs,Housing Needs & Enablg-central,N51000,Supplies & Services           ,Comms and Computing           ,DG02,Software Licences                       ,"11,614.69",03/03/2014,REV,CAPITA BUSINESS SERVICES LTD  
664,CS -Oth Operating Inc & Expend,T/A Vehicle Maintenance etc,Transport-Contract Hire,J01374,Transport Related Expenditure ,Contract Hire and Op Leasing  ,CC64,HIRING TRANSPORT SEN CABS               ,"1,927.00",31/03/2014,REV,CAPITAL CARS                  
665,CS -Oth Operating Inc & Expend,T/A Vehicle Maintenance etc,Transport-Contract Hire,J01374,Transport Related Expenditure ,Contract Hire and Op Leasing  ,CC64,HIRING TRANSPORT SEN CABS               ,"1,632.00",31/03/2014,REV,CAPITAL CARS                  
666,CS -Oth Operating Inc & Expend,T/A Vehicle Maintenance etc,Transport-Contract Hire,J01374,Transport Related Expenditure ,Contract Hire and Op Leasing  ,CC64,HIRING TRANSPORT SEN CABS               ,855,31/03/2014,REV,CAPITAL CARS                  
667,CS -Oth Operating Inc & Expend,T/A Vehicle Maintenance etc,Transport-Contract Hire,J01374,Transport Related Expenditure ,Contract Hire and Op Leasing  ,CC64,HIRING TRANSPORT SEN CABS               ,"2,022.00",31/03/2014,REV,CAPITAL CARS                  
668,CS -Oth Operating Inc & Expend,T/A Vehicle Maintenance etc,Transport-Contract Hire,J01374,Transport Related Expenditure ,Contract Hire and Op Leasing  ,CC64,HIRING TRANSPORT SEN CABS               ,"1,482.00",31/03/2014,REV,CAPITAL CARS                  
669,CS -Oth Operating Inc & Expend,T/A Vehicle Maintenance etc,Transport-Contract Hire,J01374,Transport Related Expenditure ,Contract Hire and Op Leasing  ,CC64,HIRING TRANSPORT SEN CABS               ,720,31/03/2014,REV,CAPITAL CARS                  
670,CS -Oth Operating Inc & Expend,T/A Vehicle Maintenance etc,Transport-Contract Hire,J01374,Transport Related Expenditure ,Contract Hire and Op Leasing  ,CC64,HIRING TRANSPORT SEN CABS               ,"2,690.00",31/03/2014,REV,CAPITAL CARS                  
671,CS -Oth Operating Inc & Expend,T/A Vehicle Maintenance etc,Transport-Contract Hire,J01374,Transport Related Expenditure ,Contract Hire and Op Leasing  ,CC64,HIRING TRANSPORT SEN CABS               ,"4,830.00",31/03/2014,REV,CAPITAL CARS                  
672,CS -Oth Operating Inc & Expend,T/A Vehicle Maintenance etc,Transport-Contract Hire,J01374,Transport Related Expenditure ,Contract Hire and Op Leasing  ,CC64,HIRING TRANSPORT SEN CABS               ,"1,400.00",31/03/2014,REV,CAPITAL CARS                  
673,CS -Oth Operating Inc & Expend,T/A Vehicle Maintenance etc,Transport-Contract Hire,J01374,Transport Related Expenditure ,Contract Hire and Op Leasing  ,CC64,HIRING TRANSPORT SEN CABS               ,"1,692.00",31/03/2014,REV,CAPITAL CARS                  
674,CS -Oth Operating Inc & Expend,T/A Vehicle Maintenance etc,Transport-Contract Hire,J01374,Transport Related Expenditure ,Contract Hire and Op Leasing  ,CC64,HIRING TRANSPORT SEN CABS               ,"2,880.00",31/03/2014,REV,CAPITAL CARS                  
675,CS -Oth Operating Inc & Expend,T/A Vehicle Maintenance etc,Transport-Contract Hire,J01374,Transport Related Expenditure ,Contract Hire and Op Leasing  ,CC64,HIRING TRANSPORT SEN CABS               ,680,31/03/2014,REV,CAPITAL CARS                  
676,CS -Oth Operating Inc & Expend,T/A Vehicle Maintenance etc,Transport-Contract Hire,J01374,Transport Related Expenditure ,Contract Hire and Op Leasing  ,CC64,HIRING TRANSPORT SEN CABS               ,"2,080.00",31/03/2014,REV,CAPITAL CARS                  
677,CS -Oth Operating Inc & Expend,T/A Vehicle Maintenance etc,Transport-Contract Hire,J01374,Transport Related Expenditure ,Contract Hire and Op Leasing  ,CC64,HIRING TRANSPORT SEN CABS               ,"1,480.00",31/03/2014,REV,CAPITAL CARS                  
678,CS -Oth Operating Inc & Expend,T/A Vehicle Maintenance etc,Transport-Contract Hire,J01374,Transport Related Expenditure ,Contract Hire and Op Leasing  ,CC64,HIRING TRANSPORT SEN CABS               ,"2,772.00",31/03/2014,REV,CAPITAL CARS                  
679,CS -Oth Operating Inc & Expend,T/A Vehicle Maintenance etc,Transport-Contract Hire,J01374,Transport Related Expenditure ,Contract Hire and Op Leasing  ,CC64,HIRING TRANSPORT SEN CABS               ,"2,120.00",31/03/2014,REV,CAPITAL CARS                  
680,CS -Oth Operating Inc & Expend,T/A Vehicle Maintenance etc,Transport-Contract Hire,J01374,Transport Related Expenditure ,Contract Hire and Op Leasing  ,CC64,HIRING TRANSPORT SEN CABS               ,945,31/03/2014,REV,CAPITAL CARS                  
681,CS -Oth Operating Inc & Expend,T/A Vehicle Maintenance etc,Transport-Contract Hire,J01374,Transport Related Expenditure ,Contract Hire and Op Leasing  ,CC64,HIRING TRANSPORT SEN CABS               ,"1,480.00",31/03/2014,REV,CAPITAL CARS                  
682,CS -Oth Operating Inc & Expend,T/A Vehicle Maintenance etc,Transport-Contract Hire,J01374,Transport Related Expenditure ,Contract Hire and Op Leasing  ,CC64,HIRING TRANSPORT SEN CABS               ,554,31/03/2014,REV,CAPITAL CARS                  
683,CS -Oth Operating Inc & Expend,T/A Vehicle Maintenance etc,Transport-Contract Hire,J01374,Transport Related Expenditure ,Contract Hire and Op Leasing  ,CC64,HIRING TRANSPORT SEN CABS               ,990,31/03/2014,REV,CAPITAL CARS                  
684,CS -Oth Operating Inc & Expend,T/A Vehicle Maintenance etc,Transport-Contract Hire,J01374,Transport Related Expenditure ,Contract Hire and Op Leasing  ,CC67,HIRING TRANSPORT H&SS CAB ADULTS        ,705,31/03/2014,REV,CAPITAL CARS                  
685,CS -Oth Operating Inc & Expend,T/A Vehicle Maintenance etc,Transport-Contract Hire,J01374,Transport Related Expenditure ,Contract Hire and Op Leasing  ,CC67,HIRING TRANSPORT H&SS CAB ADULTS        ,"1,216.00",31/03/2014,REV,CAPITAL CARS                  
686,CS -Oth Operating Inc & Expend,T/A Vehicle Maintenance etc,Transport-Contract Hire,J01374,Transport Related Expenditure ,Contract Hire and Op Leasing  ,CC67,HIRING TRANSPORT H&SS CAB ADULTS        ,756,30/09/2013,REV,CAPITAL CARS                  
687,CS -Oth Operating Inc & Expend,T/A Vehicle Maintenance etc,Transport-Contract Hire,J01374,Transport Related Expenditure ,Contract Hire and Op Leasing  ,CC67,HIRING TRANSPORT H&SS CAB ADULTS        ,592,31/03/2014,REV,CAPITAL CARS                  
688,CS -Oth Operating Inc & Expend,T/A Vehicle Maintenance etc,Transport-Contract Hire,J01374,Transport Related Expenditure ,Contract Hire and Op Leasing  ,CC67,HIRING TRANSPORT H&SS CAB ADULTS        ,810,31/03/2014,REV,CAPITAL CARS                  
689,CS -Oth Operating Inc & Expend,T/A Vehicle Maintenance etc,Transport-Contract Hire,J01374,Transport Related Expenditure ,Contract Hire and Op Leasing  ,CC67,HIRING TRANSPORT H&SS CAB ADULTS        ,"1,062.00",31/03/2014,REV,CAPITAL CARS                  
690,CS -Oth Operating Inc & Expend,T/A Vehicle Maintenance etc,Transport-Contract Hire,J01374,Transport Related Expenditure ,Contract Hire and Op Leasing  ,CC67,HIRING TRANSPORT H&SS CAB ADULTS        ,810,31/03/2014,REV,CAPITAL CARS                  
691,CS -Oth Operating Inc & Expend,T/A Vehicle Maintenance etc,Transport-Contract Hire,J01374,Transport Related Expenditure ,Contract Hire and Op Leasing  ,CC68,HIRING TRANSPORT SEN COLLEGES CABS      ,"1,764.00",31/03/2014,REV,CAPITAL CARS                  
692,CS -Oth Operating Inc & Expend,T/A Vehicle Maintenance etc,Transport-Contract Hire,J01374,Transport Related Expenditure ,Contract Hire and Op Leasing  ,CC68,HIRING TRANSPORT SEN COLLEGES CABS      ,"1,216.00",31/03/2014,REV,CAPITAL CARS                  
693,CS -Oth Operating Inc & Expend,T/A Vehicle Maintenance etc,Transport-Contract Hire,J01374,Transport Related Expenditure ,Contract Hire and Op Leasing  ,CC68,HIRING TRANSPORT SEN COLLEGES CABS      ,520,31/03/2014,REV,CAPITAL CARS                  
694,CS -Oth Operating Inc & Expend,T/A Vehicle Maintenance etc,Transport-Workshop,J01376,Transport Related Expenditure ,Contract Hire and Op Leasing  ,CC60,Vehicle Hire for LB Sutton              ,"2,940.00",31/03/2014,REV,CAPITAL CARS                  
695,CS -Oth Operating Inc & Expend,T/A Vehicle Maintenance etc,Transport-Workshop,J01376,Transport Related Expenditure ,Contract Hire and Op Leasing  ,CC65,Vehicle Hire for Education              ,"1,008.00",31/03/2014,REV,CAPITAL CARS                  
696,CS -Oth Operating Inc & Expend,T/A Vehicle Maintenance etc,Transport-Workshop,J01376,Transport Related Expenditure ,Contract Hire and Op Leasing  ,CC65,Vehicle Hire for Education              ,700,31/03/2014,REV,CAPITAL CARS                  
697,CS -Oth Operating Inc & Expend,T/A Vehicle Maintenance etc,Transport-Workshop,J01376,Transport Related Expenditure ,Contract Hire and Op Leasing  ,CC65,Vehicle Hire for Education              ,"1,554.00",31/03/2014,REV,CAPITAL CARS                  
698,Cultural Env Reg&Plan Services,Planning Policy not split,Spatial Policy,H01173,Third Party Payments          ,Private Contractors           ,EH10,Contract Payments                       ,"3,050.00",31/03/2014,REV,CAPITA SYMONDS LTD            
699,Adult Social Care,LD u65 Residentl Care Placemnt,LD 112 Riverside Drive,W2KK00,Premises Related Expenditure  ,Cleaning and Domestic Supplies,BH07,Hygiene and Sanitary                    ,513.72,25/03/2014,REV,CARE SHOP                     
700,Adult Social Care,LD u65 Residentl Care Placemnt,LD Residential Care External,W2KB55,Third Party Payments          ,Private Contractors           ,EH01,Miscellaneous Agency Services           ,"1,795.54",19/03/2014,REV,CARE ASPIRATIONS LIMITED      
701,Adult Social Care,LD u65 Residentl Care Placemnt,LD Residential Care External,W2KB55,Third Party Payments          ,Private Contractors           ,EH01,Miscellaneous Agency Services           ,"1,795.54",19/03/2014,REV,CARE ASPIRATIONS LIMITED      
702,Adult Social Care,LD u65 Residentl Care Placemnt,LD Residential Care External,W2KB55,Third Party Payments          ,Private Contractors           ,EH01,Miscellaneous Agency Services           ,"1,795.54",19/03/2014,REV,CARE ASPIRATIONS LIMITED      
703,Adult Social Care,LD u65 Residentl Care Placemnt,LD Residential Care External,W2KB55,Third Party Payments          ,Private Contractors           ,EH01,Miscellaneous Agency Services           ,"1,795.54",19/03/2014,REV,CARE ASPIRATIONS LIMITED      
704,Adult Social Care,LD u65 Residentl Care Placemnt,LD Residential Care External,W2KB55,Third Party Payments          ,Private Contractors           ,EH01,Miscellaneous Agency Services           ,"-1,026.02",19/03/2014,REV,CARE ASPIRATIONS LIMITED      
705,Adult Social Care,LD u65 Residentl Care Placemnt,LD Residential Care External,W2KB55,Third Party Payments          ,Private Contractors           ,EH01,Miscellaneous Agency Services           ,"1,795.54",19/03/2014,REV,CARE ASPIRATIONS LIMITED      
706,Adult Social Care,OP 65&Over NursingCarePlacemts,OP Hosp - Nursing Care,W2LF53,Third Party Payments          ,Private Contractors           ,EH01,Miscellaneous Agency Services           ,633.43,04/04/2014,REV,CARE UK                       
707,Adult Social Care,OP 65&Over NursingCarePlacemts,OP Hosp - Nursing Care,W2LF53,Third Party Payments          ,Private Contractors           ,EH01,Miscellaneous Agency Services           ,633.43,04/04/2014,REV,CARE UK                       
708,Adult Social Care,OP 65&Over NursingCarePlacemts,OP Hosp - Nursing Care,W2LF53,Third Party Payments          ,Private Contractors           ,EH01,Miscellaneous Agency Services           ,633.43,04/04/2014,REV,CARE UK                       
709,Adult Social Care,OP 65&Over NursingCarePlacemts,OP Hosp - Nursing Care,W2LF53,Third Party Payments          ,Private Contractors           ,EH01,Miscellaneous Agency Services           ,752.81,04/04/2014,REV,CARE UK                       
710,Adult Social Care,OP 65&Over NursingCarePlacemts,OP Hosp - Nursing Care,W2LF53,Third Party Payments          ,Private Contractors           ,EH01,Miscellaneous Agency Services           ,633.43,04/04/2014,REV,CARE UK                       
711,Adult Social Care,OP 65&Over NursingCarePlacemts,OP Hosp - Nursing Care,W2LF53,Third Party Payments          ,Private Contractors           ,EH01,Miscellaneous Agency Services           ,633.43,04/04/2014,REV,CARE UK                       
712,Adult Social Care,OP 65&Over NursingCarePlacemts,OP Hosp - Nursing Care,W2LF53,Third Party Payments          ,Private Contractors           ,EH01,Miscellaneous Agency Services           ,650,06/03/2014,REV,CARE UK                       
713,Adult Social Care,OP 65&Over NursingCarePlacemts,OP Hosp - Nursing Care,W2LF53,Third Party Payments          ,Private Contractors           ,EH01,Miscellaneous Agency Services           ,650,04/04/2014,REV,CARE UK                       
714,Adult Social Care,OP 65&Over NursingCarePlacemts,OP Hosp - Nursing Care,W2LF53,Third Party Payments          ,Private Contractors           ,EH01,Miscellaneous Agency Services           ,633.43,04/04/2014,REV,CARE UK                       
715,Adult Social Care,OP 65&Over NursingCarePlacemts,OP Hosp - Nursing Care,W2LF53,Third Party Payments          ,Private Contractors           ,EH01,Miscellaneous Agency Services           ,633.43,04/04/2014,REV,CARE UK                       
716,Adult Social Care,OP 65&Over NursingCarePlacemts,OP Hosp - Nursing Care,W2LF53,Third Party Payments          ,Private Contractors           ,EH01,Miscellaneous Agency Services           ,650,06/03/2014,REV,CARE UK                       
717,Adult Social Care,OP 65&Over NursingCarePlacemts,OP Hosp - Nursing Care,W2LF53,Third Party Payments          ,Private Contractors           ,EH01,Miscellaneous Agency Services           ,650,06/03/2014,REV,CARE UK                       
718,Adult Social Care,OP 65&Over NursingCarePlacemts,OP Hosp - Nursing Care,W2LF53,Third Party Payments          ,Private Contractors           ,EH01,Miscellaneous Agency Services           ,650,06/03/2014,REV,CARE UK                       
719,Adult Social Care,OP 65&Over NursingCarePlacemts,OP Hosp - Nursing Care,W2LF53,Third Party Payments          ,Private Contractors           ,EH01,Miscellaneous Agency Services           ,650,04/04/2014,REV,CARE UK                       
720,Adult Social Care,OP 65&Over NursingCarePlacemts,OP Hosp - Nursing Care,W2LF53,Third Party Payments          ,Private Contractors           ,EH01,Miscellaneous Agency Services           ,650,04/04/2014,REV,CARE UK                       
721,Adult Social Care,OP 65&Over NursingCarePlacemts,OP Hosp - Nursing Care,W2LF53,Third Party Payments          ,Private Contractors           ,EH01,Miscellaneous Agency Services           ,752.81,04/04/2014,REV,CARE UK                       
722,Adult Social Care,OP 65&Over NursingCarePlacemts,OP Hosp - Nursing Care,W2LF53,Third Party Payments          ,Private Contractors           ,EH01,Miscellaneous Agency Services           ,542.94,04/04/2014,REV,CARE UK                       
723,Adult Social Care,OP 65&Over NursingCarePlacemts,OP Hosp - Nursing Care,W2LF53,Third Party Payments          ,Private Contractors           ,EH01,Miscellaneous Agency Services           ,633.43,04/04/2014,REV,CARE UK                       
724,Adult Social Care,OP 65&Over NursingCarePlacemts,OP Hosp - Nursing Care,W2LF53,Third Party Payments          ,Private Contractors           ,EH01,Miscellaneous Agency Services           ,633.43,04/04/2014,REV,CARE UK                       
725,Adult Social Care,OP 65&Over NursingCarePlacemts,OP Hosp - Nursing Care,W2LF53,Third Party Payments          ,Private Contractors           ,EH01,Miscellaneous Agency Services           ,650,06/03/2014,REV,CARE UK                       
726,Adult Social Care,OP 65&Over NursingCarePlacemts,OP Hosp - Nursing Care,W2LF53,Third Party Payments          ,Private Contractors           ,EH01,Miscellaneous Agency Services           ,650,04/04/2014,REV,CARE UK                       
727,Adult Social Care,OP 65&Over NursingCarePlacemts,OP Hosp - Nursing Care,W2LF53,Third Party Payments          ,Private Contractors           ,EH01,Miscellaneous Agency Services           ,752.81,04/04/2014,REV,CARE UK                       
728,Adult Social Care,OP 65&Over NursingCarePlacemts,OP Hosp - Nursing Care,W2LF53,Third Party Payments          ,Private Contractors           ,EH01,Miscellaneous Agency Services           ,752.81,04/04/2014,REV,CARE UK                       
729,Adult Social Care,OP 65&Over NursingCarePlacemts,OP West - Nursing Care,W2LG53,Third Party Payments          ,Private Contractors           ,EH01,Miscellaneous Agency Services           ,542.94,04/04/2014,REV,CARE UK                       
730,Adult Social Care,OP 65&Over NursingCarePlacemts,OP West - Nursing Care,W2LG53,Third Party Payments          ,Private Contractors           ,EH01,Miscellaneous Agency Services           ,633.43,04/04/2014,REV,CARE UK                       
731,Adult Social Care,OP 65&Over NursingCarePlacemts,OP West - Nursing Care,W2LG53,Third Party Payments          ,Private Contractors           ,EH01,Miscellaneous Agency Services           ,633.43,04/04/2014,REV,CARE UK                       
732,Adult Social Care,OP 65&Over NursingCarePlacemts,OP West - Nursing Care,W2LG53,Third Party Payments          ,Private Contractors           ,EH01,Miscellaneous Agency Services           ,633.43,04/04/2014,REV,CARE UK                       
733,Adult Social Care,OP 65&Over NursingCarePlacemts,OP West - Nursing Care,W2LG53,Third Party Payments          ,Private Contractors           ,EH01,Miscellaneous Agency Services           ,633.43,04/04/2014,REV,CARE UK                       
734,Adult Social Care,OP 65&Over NursingCarePlacemts,OP West - Nursing Care,W2LG53,Third Party Payments          ,Private Contractors           ,EH01,Miscellaneous Agency Services           ,633.43,04/04/2014,REV,CARE UK                       
735,Adult Social Care,OP 65&Over NursingCarePlacemts,OP West - Nursing Care,W2LG53,Third Party Payments          ,Private Contractors           ,EH01,Miscellaneous Agency Services           ,650,04/04/2014,REV,CARE UK                       
736,Adult Social Care,OP 65&Over NursingCarePlacemts,OP West - Nursing Care,W2LG53,Third Party Payments          ,Private Contractors           ,EH01,Miscellaneous Agency Services           ,650,04/04/2014,REV,CARE UK                       
737,Adult Social Care,OP 65&Over NursingCarePlacemts,OP West - Nursing Care,W2LG53,Third Party Payments          ,Private Contractors           ,EH01,Miscellaneous Agency Services           ,650,04/04/2014,REV,CARE UK                       
738,Adult Social Care,OP 65&Over NursingCarePlacemts,OP West - Nursing Care,W2LG53,Third Party Payments          ,Private Contractors           ,EH01,Miscellaneous Agency Services           ,650,06/03/2014,REV,CARE UK                       
739,Adult Social Care,OP 65&Over NursingCarePlacemts,OP West - Nursing Care,W2LG53,Third Party Payments          ,Private Contractors           ,EH01,Miscellaneous Agency Services           ,633.43,04/04/2014,REV,CARE UK                       
740,Adult Social Care,OP 65&Over NursingCarePlacemts,OP West - Nursing Care,W2LG53,Third Party Payments          ,Private Contractors           ,EH01,Miscellaneous Agency Services           ,633.43,04/04/2014,REV,CARE UK                       
741,Adult Social Care,OP 65&Over NursingCarePlacemts,OP West - Nursing Care,W2LG53,Third Party Payments          ,Private Contractors           ,EH01,Miscellaneous Agency Services           ,650,04/04/2014,REV,CARE UK                       
742,Adult Social Care,OP 65&Over NursingCarePlacemts,OP West - Nursing Care,W2LG53,Third Party Payments          ,Private Contractors           ,EH01,Miscellaneous Agency Services           ,650,04/04/2014,REV,CARE UK                       
743,Adult Social Care,OP 65&Over NursingCarePlacemts,OP West - Nursing Care,W2LG53,Third Party Payments          ,Private Contractors           ,EH01,Miscellaneous Agency Services           ,650,04/04/2014,REV,CARE UK                       
744,Adult Social Care,OP 65&Over NursingCarePlacemts,OP West - Nursing Care,W2LG53,Third Party Payments          ,Private Contractors           ,EH01,Miscellaneous Agency Services           ,650,06/03/2014,REV,CARE UK                       
745,Adult Social Care,OP 65&Over NursingCarePlacemts,OP West - Nursing Care,W2LG53,Third Party Payments          ,Private Contractors           ,EH01,Miscellaneous Agency Services           ,650,06/03/2014,REV,CARE UK                       
746,Adult Social Care,OP 65&Over NursingCarePlacemts,OP West - Nursing Care,W2LG53,Third Party Payments          ,Private Contractors           ,EH01,Miscellaneous Agency Services           ,650,06/03/2014,REV,CARE UK                       
747,Adult Social Care,OP 65&Over NursingCarePlacemts,OP West - Nursing Care,W2LG53,Third Party Payments          ,Private Contractors           ,EH01,Miscellaneous Agency Services           ,633.43,04/04/2014,REV,CARE UK                       
748,Adult Social Care,OP 65&Over NursingCarePlacemts,OP West - Nursing Care,W2LG53,Third Party Payments          ,Private Contractors           ,EH01,Miscellaneous Agency Services           ,633.43,04/04/2014,REV,CARE UK                       
749,Adult Social Care,OP 65&Over NursingCarePlacemts,OP West - Nursing Care,W2LG53,Third Party Payments          ,Private Contractors           ,EH01,Miscellaneous Agency Services           ,633.43,04/04/2014,REV,CARE UK                       
750,Adult Social Care,OP 65&Over NursingCarePlacemts,OP West - Nursing Care,W2LG53,Third Party Payments          ,Private Contractors           ,EH01,Miscellaneous Agency Services           ,633.43,04/04/2014,REV,CARE UK                       
751,Adult Social Care,OP 65&Over NursingCarePlacemts,OP West - Nursing Care,W2LG53,Third Party Payments          ,Private Contractors           ,EH01,Miscellaneous Agency Services           ,650,04/04/2014,REV,CARE UK                       
752,Adult Social Care,OP 65&Over NursingCarePlacemts,OP West - Nursing Care,W2LG53,Third Party Payments          ,Private Contractors           ,EH01,Miscellaneous Agency Services           ,650,04/04/2014,REV,CARE UK                       
753,Adult Social Care,OP 65&Over NursingCarePlacemts,OP West - Nursing Care,W2LG53,Third Party Payments          ,Private Contractors           ,EH01,Miscellaneous Agency Services           ,650,04/04/2014,REV,CARE UK                       
754,Adult Social Care,OP 65&Over NursingCarePlacemts,OP West - Nursing Care,W2LG53,Third Party Payments          ,Private Contractors           ,EH01,Miscellaneous Agency Services           ,650,06/03/2014,REV,CARE UK                       
755,Adult Social Care,OP 65&Over NursingCarePlacemts,OP West - Nursing Care,W2LG53,Third Party Payments          ,Private Contractors           ,EH01,Miscellaneous Agency Services           ,633.43,04/04/2014,REV,CARE UK                       
756,Adult Social Care,OP 65&Over NursingCarePlacemts,OP West - Nursing Care,W2LG53,Third Party Payments          ,Private Contractors           ,EH01,Miscellaneous Agency Services           ,633.43,04/04/2014,REV,CARE UK                       
757,Adult Social Care,OP 65&Over NursingCarePlacemts,OP West - Nursing Care,W2LG53,Third Party Payments          ,Private Contractors           ,EH01,Miscellaneous Agency Services           ,650,04/04/2014,REV,CARE UK                       
758,Adult Social Care,OP 65&Over NursingCarePlacemts,OP West - Nursing Care,W2LG53,Third Party Payments          ,Private Contractors           ,EH01,Miscellaneous Agency Services           ,650,06/03/2014,REV,CARE UK                       
759,Adult Social Care,OP 65&Over NursingCarePlacemts,OP West - Nursing Care,W2LG53,Third Party Payments          ,Private Contractors           ,EH01,Miscellaneous Agency Services           ,650,06/03/2014,REV,CARE UK                       
760,Adult Social Care,OP 65&Over NursingCarePlacemts,OP West - Nursing Care,W2LG53,Third Party Payments          ,Private Contractors           ,EH01,Miscellaneous Agency Services           ,650,06/03/2014,REV,CARE UK                       
761,Adult Social Care,OP 65&Over NursingCarePlacemts,OP East - Nursing Care,W2LH53,Third Party Payments          ,Private Contractors           ,EH01,Miscellaneous Agency Services           ,633.43,04/04/2014,REV,CARE UK                       
762,Adult Social Care,OP 65&Over NursingCarePlacemts,OP East - Nursing Care,W2LH53,Third Party Payments          ,Private Contractors           ,EH01,Miscellaneous Agency Services           ,633.43,04/04/2014,REV,CARE UK                       
763,Adult Social Care,OP 65&Over NursingCarePlacemts,OP East - Nursing Care,W2LH53,Third Party Payments          ,Private Contractors           ,EH01,Miscellaneous Agency Services           ,633.43,04/04/2014,REV,CARE UK                       
764,Adult Social Care,OP 65&Over NursingCarePlacemts,OP East - Nursing Care,W2LH53,Third Party Payments          ,Private Contractors           ,EH01,Miscellaneous Agency Services           ,633.43,04/04/2014,REV,CARE UK                       
765,Adult Social Care,OP 65&Over NursingCarePlacemts,OP East - Nursing Care,W2LH53,Third Party Payments          ,Private Contractors           ,EH01,Miscellaneous Agency Services           ,633.43,04/04/2014,REV,CARE UK                       
766,Adult Social Care,OP 65&Over NursingCarePlacemts,OP East - Nursing Care,W2LH53,Third Party Payments          ,Private Contractors           ,EH01,Miscellaneous Agency Services           ,542.94,04/04/2014,REV,CARE UK                       
767,Adult Social Care,OP 65&Over NursingCarePlacemts,OP East - Nursing Care,W2LH53,Third Party Payments          ,Private Contractors           ,EH01,Miscellaneous Agency Services           ,542.94,04/04/2014,REV,CARE UK                       
768,Adult Social Care,OP 65&Over NursingCarePlacemts,OP East - Nursing Care,W2LH53,Third Party Payments          ,Private Contractors           ,EH01,Miscellaneous Agency Services           ,633.43,04/04/2014,REV,CARE UK                       
769,Adult Social Care,OP 65&Over NursingCarePlacemts,OP East - Nursing Care,W2LH53,Third Party Payments          ,Private Contractors           ,EH01,Miscellaneous Agency Services           ,633.43,04/04/2014,REV,CARE UK                       
770,Adult Social Care,OP 65&Over NursingCarePlacemts,OP East - Nursing Care,W2LH53,Third Party Payments          ,Private Contractors           ,EH01,Miscellaneous Agency Services           ,633.43,04/04/2014,REV,CARE UK                       
771,Adult Social Care,OP 65&Over NursingCarePlacemts,OP East - Nursing Care,W2LH53,Third Party Payments          ,Private Contractors           ,EH01,Miscellaneous Agency Services           ,633.43,04/04/2014,REV,CARE UK                       
772,Adult Social Care,OP 65&Over NursingCarePlacemts,OP East - Nursing Care,W2LH53,Third Party Payments          ,Private Contractors           ,EH01,Miscellaneous Agency Services           ,633.43,04/04/2014,REV,CARE UK                       
773,Adult Social Care,OP 65&Over NursingCarePlacemts,OP East - Nursing Care,W2LH53,Third Party Payments          ,Private Contractors           ,EH01,Miscellaneous Agency Services           ,633.43,04/04/2014,REV,CARE UK                       
774,Adult Social Care,OP 65&Over NursingCarePlacemts,OP East - Nursing Care,W2LH53,Third Party Payments          ,Private Contractors           ,EH01,Miscellaneous Agency Services           ,633.43,04/04/2014,REV,CARE UK                       
775,Adult Social Care,OP 65&Over NursingCarePlacemts,OP East - Nursing Care,W2LH53,Third Party Payments          ,Private Contractors           ,EH01,Miscellaneous Agency Services           ,633.43,04/04/2014,REV,CARE UK                       
776,Adult Social Care,OP 65&Over NursingCarePlacemts,OP East - Nursing Care,W2LH53,Third Party Payments          ,Private Contractors           ,EH01,Miscellaneous Agency Services           ,633.43,04/04/2014,REV,CARE UK                       
777,Adult Social Care,OP 65&Over NursingCarePlacemts,OP East - Nursing Care,W2LH53,Third Party Payments          ,Private Contractors           ,EH01,Miscellaneous Agency Services           ,633.43,04/04/2014,REV,CARE UK                       
778,Adult Social Care,OP 65&Over NursingCarePlacemts,OP East - Nursing Care,W2LH53,Third Party Payments          ,Private Contractors           ,EH01,Miscellaneous Agency Services           ,633.43,04/04/2014,REV,CARE UK                       
779,Adult Social Care,OP 65&Over NursingCarePlacemts,OP East - Nursing Care,W2LH53,Third Party Payments          ,Private Contractors           ,EH01,Miscellaneous Agency Services           ,633.43,04/04/2014,REV,CARE UK                       
780,Adult Social Care,OP 65&Over NursingCarePlacemts,OP East - Nursing Care,W2LH53,Third Party Payments          ,Private Contractors           ,EH01,Miscellaneous Agency Services           ,633.43,04/04/2014,REV,CARE UK                       
781,Adult Social Care,OP 65&Over NursingCarePlacemts,OP R/Park - Nursing Care,W2LR53,Third Party Payments          ,Private Contractors           ,EH01,Miscellaneous Agency Services           ,633.43,04/04/2014,REV,CARE UK                       
782,Adult Social Care,OP 65&Over NursingCarePlacemts,OP R/Park - Nursing Care,W2LR53,Third Party Payments          ,Private Contractors           ,EH01,Miscellaneous Agency Services           ,633.43,04/04/2014,REV,CARE UK                       
783,Adult Social Care,OP 65&Over NursingCarePlacemts,OP R/Park - Nursing Care,W2LR53,Third Party Payments          ,Private Contractors           ,EH01,Miscellaneous Agency Services           ,650,06/03/2014,REV,CARE UK                       
784,Adult Social Care,OP 65&Over NursingCarePlacemts,OP R/Park - Nursing Care,W2LR53,Third Party Payments          ,Private Contractors           ,EH01,Miscellaneous Agency Services           ,700,06/03/2014,REV,CARE UK                       
785,Adult Social Care,OP 65&Over NursingCarePlacemts,OP R/Park - Nursing Care,W2LR53,Third Party Payments          ,Private Contractors           ,EH01,Miscellaneous Agency Services           ,700,06/03/2014,REV,CARE UK                       
786,Adult Social Care,OP 65&Over NursingCarePlacemts,OP R/Park - Nursing Care,W2LR53,Third Party Payments          ,Private Contractors           ,EH01,Miscellaneous Agency Services           ,700,06/03/2014,REV,CARE UK                       
787,Adult Social Care,OP 65&Over NursingCarePlacemts,OP R/Park - Nursing Care,W2LR53,Third Party Payments          ,Private Contractors           ,EH01,Miscellaneous Agency Services           ,700,04/04/2014,REV,CARE UK                       
788,Adult Social Care,OP 65&Over NursingCarePlacemts,OP R/Park - Nursing Care,W2LR53,Third Party Payments          ,Private Contractors           ,EH01,Miscellaneous Agency Services           ,505.89,04/04/2014,REV,CARE UK                       
789,Adult Social Care,OP 65&Over NursingCarePlacemts,OP R/Park - Nursing Care,W2LR53,Third Party Payments          ,Private Contractors           ,EH01,Miscellaneous Agency Services           ,633.43,04/04/2014,REV,CARE UK                       
790,Adult Social Care,OP 65&Over NursingCarePlacemts,OP R/Park - Nursing Care,W2LR53,Third Party Payments          ,Private Contractors           ,EH01,Miscellaneous Agency Services           ,633.43,04/04/2014,REV,CARE UK                       
791,Adult Social Care,OP 65&Over NursingCarePlacemts,OP R/Park - Nursing Care,W2LR53,Third Party Payments          ,Private Contractors           ,EH01,Miscellaneous Agency Services           ,650,06/03/2014,REV,CARE UK                       
792,Adult Social Care,OP 65&Over NursingCarePlacemts,OP R/Park - Nursing Care,W2LR53,Third Party Payments          ,Private Contractors           ,EH01,Miscellaneous Agency Services           ,650,04/04/2014,REV,CARE UK                       
793,Adult Social Care,OP 65&Over NursingCarePlacemts,OP R/Park - Nursing Care,W2LR53,Third Party Payments          ,Private Contractors           ,EH01,Miscellaneous Agency Services           ,650,04/04/2014,REV,CARE UK                       
794,Adult Social Care,OP 65&Over NursingCarePlacemts,OP R/Park - Nursing Care,W2LR53,Third Party Payments          ,Private Contractors           ,EH01,Miscellaneous Agency Services           ,700,06/03/2014,REV,CARE UK                       
795,Adult Social Care,OP 65&Over NursingCarePlacemts,OP R/Park - Nursing Care,W2LR53,Third Party Payments          ,Private Contractors           ,EH01,Miscellaneous Agency Services           ,700,04/04/2014,REV,CARE UK                       
796,Adult Social Care,OP 65&Over NursingCarePlacemts,OP R/Park - Nursing Care,W2LR53,Third Party Payments          ,Private Contractors           ,EH01,Miscellaneous Agency Services           ,700,04/04/2014,REV,CARE UK                       
797,Adult Social Care,OP 65&Over NursingCarePlacemts,OP R/Park - Nursing Care,W2LR53,Third Party Payments          ,Private Contractors           ,EH01,Miscellaneous Agency Services           ,-505.89,06/03/2014,REV,CARE UK                       
798,Adult Social Care,OP 65&Over NursingCarePlacemts,OP R/Park - Nursing Care,W2LR53,Third Party Payments          ,Private Contractors           ,EH01,Miscellaneous Agency Services           ,633.43,04/04/2014,REV,CARE UK                       
799,Adult Social Care,OP 65&Over NursingCarePlacemts,OP R/Park - Nursing Care,W2LR53,Third Party Payments          ,Private Contractors           ,EH01,Miscellaneous Agency Services           ,650,06/03/2014,REV,CARE UK                       
800,Adult Social Care,OP 65&Over NursingCarePlacemts,OP R/Park - Nursing Care,W2LR53,Third Party Payments          ,Private Contractors           ,EH01,Miscellaneous Agency Services           ,650,04/04/2014,REV,CARE UK                       
801,Adult Social Care,OP 65&Over NursingCarePlacemts,OP R/Park - Nursing Care,W2LR53,Third Party Payments          ,Private Contractors           ,EH01,Miscellaneous Agency Services           ,650,06/03/2014,REV,CARE UK                       
802,Adult Social Care,OP 65&Over NursingCarePlacemts,OP R/Park - Nursing Care,W2LR53,Third Party Payments          ,Private Contractors           ,EH01,Miscellaneous Agency Services           ,650,06/03/2014,REV,CARE UK                       
803,Adult Social Care,OP 65&Over NursingCarePlacemts,OP R/Park - Nursing Care,W2LR53,Third Party Payments          ,Private Contractors           ,EH01,Miscellaneous Agency Services           ,650,04/04/2014,REV,CARE UK                       
804,Adult Social Care,OP 65&Over NursingCarePlacemts,OP R/Park - Nursing Care,W2LR53,Third Party Payments          ,Private Contractors           ,EH01,Miscellaneous Agency Services           ,700,06/03/2014,REV,CARE UK                       
805,Adult Social Care,OP 65&Over NursingCarePlacemts,OP R/Park - Nursing Care,W2LR53,Third Party Payments          ,Private Contractors           ,EH01,Miscellaneous Agency Services           ,700,04/04/2014,REV,CARE UK                       
806,Childrens & Education Services,Leaving Care Services,CL Setting Up Home Allowance,W1DF41,Third Party Payments          ,Private Contractors           ,EH01,Miscellaneous Agency Services           ,750,24/04/2014,REV,REDACTED
807,Childrens & Education Services,Nursery schools,EARLY YEARS NURSERY GRANTS,K90042,Supplies & Services           ,Grants and Subscriptions      ,DJ57,Nursery Grant Payment-4yr olds          ,"14,968.80",07/04/2014,REV,CAROUSEL DAY NURSERY          
808,Childrens & Education Services,Nursery schools,EARLY YEARS NURSERY GRANTS,K90042,Supplies & Services           ,Grants and Subscriptions      ,DJ57,Nursery Grant Payment-4yr olds          ,"6,652.80",04/04/2014,REV,CAROUSEL LTD                  
809,Childrens & Education Services,Nursery schools,2Year Old Offer                         ,K90051,Supplies & Services           ,Grants and Subscriptions      ,DJ01,Grants                                  ,"1,555.20",24/04/2014,REV,CAROUSEL LTD                  
810,Adult Social Care,OP 65&Over NursingCarePlacemts,OP Hosp - Nursing Care,W2LF53,Third Party Payments          ,Private Contractors           ,EH01,Miscellaneous Agency Services           ,654.55,28/03/2014,REV,CARTER HOUSE                  
811,Adult Social Care,OP 65&Over NursingCarePlacemts,OP Hosp - Nursing Care,W2LF53,Third Party Payments          ,Private Contractors           ,EH01,Miscellaneous Agency Services           ,654.55,28/03/2014,REV,CARTER HOUSE                  
812,Adult Social Care,OP 65&Over NursingCarePlacemts,OP Hosp - Nursing Care,W2LF53,Third Party Payments          ,Private Contractors           ,EH01,Miscellaneous Agency Services           ,654.55,28/03/2014,REV,CARTER HOUSE                  
813,Adult Social Care,OP 65&Over NursingCarePlacemts,OP Hosp - Nursing Care,W2LF53,Third Party Payments          ,Private Contractors           ,EH01,Miscellaneous Agency Services           ,654.55,28/03/2014,REV,CARTER HOUSE                  
814,Adult Social Care,OP 65&Over Resi Care Placement,OP Hosp - Residential Care Ext,W2LF55,Third Party Payments          ,Private Contractors           ,EH01,Miscellaneous Agency Services           ,524.22,28/03/2014,REV,CARTER HOUSE                  
815,Adult Social Care,OP 65&Over Resi Care Placement,OP Hosp - Residential Care Ext,W2LF55,Third Party Payments          ,Private Contractors           ,EH01,Miscellaneous Agency Services           ,524.22,28/03/2014,REV,CARTER HOUSE                  
816,Adult Social Care,OP 65&Over Resi Care Placement,OP Hosp - Residential Care Ext,W2LF55,Third Party Payments          ,Private Contractors           ,EH01,Miscellaneous Agency Services           ,524.22,28/03/2014,REV,CARTER HOUSE                  
817,Adult Social Care,OP 65&Over Resi Care Placement,OP Hosp - Residential Care Ext,W2LF55,Third Party Payments          ,Private Contractors           ,EH01,Miscellaneous Agency Services           ,524.22,28/03/2014,REV,CARTER HOUSE                  
818,Adult Social Care,OP 65&Over Resi Care Placement,OP Hosp - Residential Care Ext,W2LF55,Third Party Payments          ,Private Contractors           ,EH01,Miscellaneous Agency Services           ,524.22,28/03/2014,REV,CARTER HOUSE                  
819,Adult Social Care,OP 65&Over Resi Care Placement,OP Hosp - Residential Care Ext,W2LF55,Third Party Payments          ,Private Contractors           ,EH01,Miscellaneous Agency Services           ,524.22,28/03/2014,REV,CARTER HOUSE                  
